Workbook

Sheet Ark3
B2: Planteavlerens modelværksted
B3: Udgiver: | C3: SEGES
C4: Landbrug & Fødevarer F.m.b.A.
B5: Udgivelsesdato: | C5: 10. december 2020
B6: Forfatter: | C6: Michael Højholdt / Maria Vejle Madsen (Oprindelig "økonomi i afgrøder og sædskifter" af Søren Kolind Hvid)
B7: Version: | C7: 2.0
B8: Datagrundlag og opdateringsfrekvens: | C8: Budgetkalkuler 2020 mv. Opdateres efter behov. Vær opmærksom på prisudvikling i forhold til normtal mv.
B9: Dokument: | C9: Se artikel
B10: Ansvar: | C10: Se vilkår
B13: Introduktion til regnearket
B14: Angiv formål og målgruppe | C14: Formålet med regnearket er at understøtte planlægning og modellering i markbruget af f.eks. nye afgrøder, afgrødesammensætninger og dyrkningsmetoder. Målgruppen er primært landmænd og landbrugsrådgivere.
B15: Anbefalet anvendelse af værktøjet | C15: Økonomi i afgrøder og sædskifter: Værktøjet kan anvendes til at give et bud på økonomien ved dyrkning af forskellige afgrøder og sædskifter under forskellige vilkår. Udbytter og omkostninger er estimeret med basis i afgrødekalkuler og kan tilpasses forhold og dyrkningsmetoder på bedriften. Forfrugtsværdi, husdyrgødning, om man er kornkøber eller -sælger, halmnedmuldning, tørring og lagring kan indregnes i de økonomiske konkurrenceforhold. Der findes uddybede forslag til anvendelse i den faglige vejledning nedenfor. Sædskifteplan: Dette regneark kan anvendes til at opstille en sædskifteplan med op til 3 delsædskifter på en bedrift. Placering af efterafgrøder i sædskiftet kan angives. Endvidere beregnes produktionen af korn til svinefoder. Svinebesætningens foderbehov (korn) kan beregnes. Sædskifteplan er ikke sammenkædet med Økonomi i afgrøder og sædskifter.
B16: Begrænsninger i værktøjet | C16: Værktøjet er baseret på normtal, og derfor vil resultaterne for hvert scenarie ikke nødvendigvis matche bedriftens egne tal. Forskellen mellem scenarier forventes dog give et godt bud på den konsekvens, man vil opleve i driften. I vejledning til anvendelse af værktøjet ses forslag til, hvordan normværdier kan tilpasses individuelle forhold. Vær opmærksom på, at der ingen kontrol er af, at det indtastede afgrødevalg og efterafgrødevalg kan lade sig gøre, om der er risiko for opformering af sygdomme eller ukrudt, om gældende efterafgrødekrav og lovgivning overholdes etc.
B17: Vejledning | C17: Udfyld "bedriftsspecifikke oplysninger" (JB, håndtering af halm, husdyrgødning mv.) og justér evt. "standardforudsætninger" (forhold omkring næringstoffer mv.). Opret evt. egen afgrøde, og definer afgrødevalg/sædskifter til sammenligning. Anvend de givne forslag til udbytter og priser eller justér efter behov. Ved modellering af ændring ved f.eks. nyt dyrkningssystem, er der mulighed for at støtte sig til faglige vejledninger,se nedenfor.
B18: Funktion og makroer | C18: Husk at aktivere makroer i Excel
B21: Faglig vejledning til økonomi i afgrøder og sædskifter
B22: Hvis du vil… | C22: ...kan du gøre følgende
B23: … estimere økonomi ved en ændring i afgrødesammensætning, f.eks. supplere korndyrkning med dyrkning af specialafgrøde | C23: Definere eksisterende afgrødesammensætning i sædskifte 1. Definere alternativ afgrødesammensætning i sædskifte 2. Justere diverse forudsætninger til bedriftens forhold og forventninger. Huske at dyrkning af mange specialafgrøder kræver kontrakt, muligheden for at få en sådan skal undersøges. Vurdere dyrkningssikkerheden på de to afgrødesammensætninger i forhold til hinanden. Vurdere sandsynligheden for prisudsving i de to afgrødesammensætninger; lav en følsomhedanalyse med høje/lave priser - du kan gemme regneark med forskellige valg af forudsætninger under passende forskellige navne og dermed hurtigt sammenligne ændringer i dine forudsætninger efter behov. Inddragelse af efterafgrøder beregnes kun som omkostninger til etablering og gevinst ved sparet N. Regnearket kan ikke anvendes til optimering af efterafgrødevalg mv. Hvis der mangler plads til flere afgrøder, kan efterafgrøder evt. kan puljes i én samlet efterafgrøde og dermed spare plads i den økonomiske beregning. Anvend sædskifteplanerne i funktionen "sædskifteplan" for at vise den samlede afgrødefølge; her er plads til flere afgrøder i sædskifterne og dermed god plads til at vise efterafgrøder efter hovedafgrøder.
B24: … estimere økonomi for en afgrøde, der ikke findes norm eller afgrødekalkule for | C24: Oprette egen afgrøde i værktøjet umiddelbart efter indtastning af bedriftsspecifikke oplysninger og standardforudsætninger. Angive afgrødens navn, forventet udbytte, afgrødepris, og evt. sekundært udbytte (halm), forfrugtsværdi, stykomkostninger, N,P og K mængde, omkostninger til planteværn, diverse, maskiner og arbejde samt tørring. Finde hjælp til at anslå disse niveauer ved eventuelt sammenlignelige afgrøder via afgrødekalkulerne på farmtal.dk. Undersøge om der findes udenlandske erfaringer som med fordel kan inddrages i overvejelserne. Huske det kan være vigtigt at foretage vurdering af risici ved dyrkning af "nye" afgrøder, herunder dyrkningssikkerhed og sikkerhed for afsætning.
B25: ... regne på at ændre din maskinpark og sælge maskinstationsydelser til andre | C25: Analysere nuværende maskinomkostninger med en maskinanalyse, kan foretages i planlægningsværktøjet FMS. Opstille forventet "ny maskinpark" og beregne tidsforbrug og økonomi i denne - igen i FMS. Husk egen anvendelse og opstille salgsmål på basis af maskinanalysen og lave en vurdering af totaløkonomi i forhold til indtjening og risiko. Inddrag en vurdering af behov for arbejdskraft. Brug evt. "Maskintid" (se link nedenfor) til at vurdere arbejdskraftbehov og spidsbelastninger.
B26: …regne på at ændre dyrkning fra pløjning til reduceret jordbearbejdning eller til no till / conservation agriculture | C26: Definere eksisterende afgrødesammensætning i sædskifte 1. Definere alternativ afgrødesammensætning i sædskifte 2, herunder ændret forhold mellem vintersæd og vårsæd, og behov for efterafgrøder. Se kommentar om efterafgrøder ved beregning af sædskifteøkonomi ovenfor. Justere diverse forudsætninger til bedriftens forhold og forventninger, herunder udbytteniveau og indkøringstab. Bemærk ved anvendelse af beregning af tidsforbrug at tilpasse de udførte maskinopgaver til forventede forhold, herunder med fokus på jordbearbejdning og planteværn. maskin- og arbejdsomkostninger bør være i fokus. Hvis ikke der er udarbejdet maskinanalyse og maskinstrategi for omlægning med FMS, bør det gøres. Brug evt. tal fra din driftsgrensanalyse eller lav en grovanalyse med Din Bundlinje Mark som udgangspunkt. I mange tilfælde vil en sådan omlægning medføre investeringer i nye maskiner, der de første år kan påvirke de samlede maskin- og arbejdsomkostninger i opadgående retning. På lidt længere sigt bør det være muligt at realisere et lavere niveau for maskin- og arbejdsomkostninger end før omlægning hvis jordbearbejdning reduceres eller helt fjernes. Vær opmærksom på, om frigjorte arbejdstimer fra marken kan aflønnes af andet værdiskabende arbejde eller bliver ufordelt omkostning som alligevel skal aflønnes.
B27: … vurdere økonomien ved økologisk produktion | C27: Der findes særskilte værktøjer og metoder til omlægningstjek indenfor økologi. Kontakt din lokale økologirådgiver eller SEGES økologi for at høre mere. Hvis du ønsker at anvende nærværende værktøj til groft at estimere konsekvenser i en sådan situation, kan du anvende de økologiske afgrøder der er udarbejdet kalkuler for i værktøjet, under hensyntagen til management og f.eks. fokus på bekæmpelse af rodukrudt. Ønsker du at anvende beregning af forfrugtsværdi, så husk at tilrette værdien heraf til økologisk. Et alternativ er selv at estimere udbytterne inkl. forfrugtsværdi for den enkelte afgrøde. Ved modellering af økologiske sædskifter er der behov for at være ekstra opmærksom på næringsstoftilførslen, da økologiske bedrifter ikke har samme muligheder for at øge tildelingen af N som konventionelle bedrifter. Kendskabet til nuværende næringsstofforsyning og dennes effekt på udbytteniveauer er afgørende for om udbytteniveau og gødningsomkostning i værktøjet stemmer overens med virkeligheden. Såfremt der er behov for at øge tildeling af P og K, giver gødningsværktøjet til økologer (link nedenfor) et overblik over mulige produkter og priser. Husk at næringsstoffer betyder meget for udbytter, omkostninger og tilskud. Hvis der ikke fuldgødskes med gylle, indreger værktøjet køb af N til den pris, der opgives i standardforudsætninger. Hvis der indkøbes gødning så husk at tilrette pris. Indkøbes der ikke gødning så husk at sætte omkostning = 0. Husk, at der findes en række tilskudsmuligheder for økologisk produktion. Se den opdaterede liste på www.farmtal.dk > støtteordninger: - økologitilskud 870 kr. pr. ha - omlægningstilskud 1.200 pr. år - reduceret N tildeling tilskud 500 kr. pr. ha - frugt og bær tilllæg kr. 4.000 pr. ha
B28: …vurdere økonomien i en forpagtning | C28: Anvend nedenstående regneark vedrørende økonomi i forpagtninger, hvori der findes oplysninger om niveauer for forpagtningsafgift og mulighed for at beregne økonomi med inddragelse af øndring i dyrket areal også i form af forpagtninger. Tilpas evt. værktøjet med oplysninger om indtjening i marken fra nærværende "Økonomi i afgrøder og sædskifter".
B29: …inddrage transportomkostninger i din beregning | C29: Anvende tommelfingerregler eller egne beregninger fra værktøj til beregning af transportomkostninger. De beregnede årlige omkostninger kan indarbejdes i maskin- og arbejdsomkostninger i nærværende program. Se link til beregning af bedrifts- og afgrødespecifikke transportomkostninger nedenfor. Tommelfingerreglerne er: Dyrkning af korn med handelsgødning og nedmuldning af halm koster ca. 100 kr. pr. km pr. ha pr. år Dyrkning af korn med gylle og bjærgning af halm eller majs til helsæd koster ca. 200 kr. pr. km pr. ha pr. år Dyrkning af græs til slæt med gylle koster ca. 300 kr. pr. km pr. ha pr. år
B30: …sammenholde normtal med din egen præstation | C30: Find inspiration i Business Check hvor der findes gennemsnitstal og fraktilanalyser for indtægter og omkostninger for både salgsafgrøder og grovfoder. Få lavet egen driftsgrensanalyse hos din rådgivningsvirksomhed, og start eventuelt med at lave egen grovanalyse med værktøjet "Din Bundlinje Mark".
B32: Links til viden og værktøjer
B33: Emne | C33: Links
B34: Afgrødekalkuler på farmtal.dk | C34: https://farmtalonline.dlbr.dk/Navigation/NavigationTree.aspx
B35: Økonomi ved forpagtning | C35: https://www.landbrugsinfo.dk/basis/f/e/a/produktionsokonomi_regneark_okonomi_ved_forpagtning_opdateret
B36: Maskintid - sæsonbelastning i marken | C36: https://www.landbrugsinfo.dk/basis/8/7/1/oekonomi_saet_fokus_paa_de_travle_perioder_markdriften
B37: Transportomkostninger mark-lagre t/r | C37: https://www.landbrugsinfo.dk/public/3/1/6/produktionsokonomi_hvor_meget_koster_transportopgaverne
B38: Markstørrelse, markform, kapacitet | C38: https://www.landbrugsinfo.dk/public/9/0/e/planter_beregn_arbejdsbehovet_ved_markarbejde
B39: FMS - maskinanalyse | C39: https://www.landbrugsinfo.dk/public/e/e/7/produktionsokonomi_planlag_arbejdet_med_vaerktojet_fms
B40: Investeringsberegning maskiner mv. | C40: https://www.landbrugsinfo.dk/public/6/b/5/oekonomi_investeringsberegning_grafisk_foelsomhedsanalyse
B41: Økonomi ved lagring af korn | C41: https://www.landbrugsinfo.dk/public/6/d/3/oekonomi_ved_lagring_af_korn
B42: Conservation agriculture | C42: https://www.landbrugsinfo.dk/basis/1/a/a/jord_bearbejdning_conservation_agriculture
B43: Gødning økologi | C43: https://oko-godning.dk/
B44: Sammenligningstal - Din Bundlinje Mark | C44: https://www.landbrugsinfo.dk/basis/2/7/3/planter_regnearket_din_bundlinje_mark_klar_til_brug
B45: Sammenligningstal - Business Check | C45: https://www.landbrugsinfo.dk/basis/b/8/8/produktionsokonomi_nyeste_version_business_check

Sheet Ark1
B1: Økonomi i afgrøder og sædskifter 2021
B3: Bedriftsoplysninger
CU4: JB_rækkenr. | CV4: Udbytte | CW4: N-gødning | CX4: Lager_rækkenr | CY4: Lagernr | DG4: Husdyrgødning
B5: Jordtype | G5: Lager til korn | CU5: 4 | CV5: =IF(CU5=1,5,IF(CU5=2,6,IF(CU5=3,7,IF(CU5=4,8,IF(CU5=5,9,""))))) -> 8 | CW5: =IF(CU5=1,25,IF(CU5=2,26,IF(CU5=3,27,IF(CU5=4,28,IF(CU5=5,29,""))))) -> 28 | CX5: 2 | CY5: =IF(CX5=1,1,IF(CX5=2,BQ285,IF(CX5=3,BR285,BS285))) -> 52 | DH5: DE/ha | DI5: N | DJ5: P | DK5: K
CU6: Halm | CV6: Halm_rækkenr. | CW6: Maskinomkostninger | CX6: Tørring_rækkenr. | CY6: Tørrenr | DF6: 1 | DG6: Ingen | DH6: 0 | DI6: 0 | DJ6: 0 | DK6: 0 | DM6: ton gylle pr. DE | DN6: 18
B7: Halm bjærges/nedmuldes | G7: Tørring af korn | CU7: 1 | CV7: =IF($CU$7=1,IF($CU$5=1,10,IF($CU$5=2,11,IF($CU$5=3,12,IF($CU$5=4,13,IF($CU$5=5,14,"")))))) -> 13 | CW7: =IF($CU$7=1,IF($CU$5=1,39,IF($CU$5=2,40,IF($CU$5=3,41,IF($CU$5=4,42,IF($CU$5=5,43,""))))),IF($CU$5=1,44,IF($CU$5=2,45,IF($CU$5=3,46,IF($CU$5=4,47,IF($CU$5=5,48,"")))))) -> 42 | CX7: 2 | CY7: =IF(Tørringnr=1,BN285,BO285) -> 50 | DF7: 2 | DG7: 10 kg N svin | DH7: 0.1 | DI7: =DH7*$D$298*UdnytNsvin*0.01 -> 8 | DJ7: =DH7*$D$300 -> 2.5 | DK7: =DH7*$D$302 -> 5 | DM7: DE pr. ha | DN7: =VLOOKUP(Hdgnr,_Hdg2,3) -> 0
CU8: Kornkøber | CV8: Kornkøber / - sælger | CX8: Foderenheder | DF8: 3 | DG8: 10 kg N kvæg | DH8: 0.1 | DI8: =DH8*$D$304*UdnytNkvæg*0.01 -> 7.5 | DJ8: =DH8*$D$306 -> 1.7 | DK8: =DH8*$D$308 -> 6.7
B9: Kornsælger eller kornkøber | G9: Foderenheder | CU9: 1 | CV9: =IF(CU9=2,IF(CU5=1,5,IF(CU5=2,6,IF(CU5=3,7,IF(CU5=4,8,IF(CU5=5,9,""))))),"") ->  | CX9: 2 | DF9: 4 | DG9: 30 kg N svin | DH9: 0.3 | DI9: =DH9*$D$298*UdnytNsvin*0.01 -> 24 | DJ9: =DH9*$D$300 -> 7.5 | DK9: =DH9*$D$302 -> 15
CU10: Hdg_rækkenr | CV10: Styk uden eller med husdyrgødning | DF10: 5 | DG10: 30 kg N kvæg | DH10: 0.3 | DI10: =DH10*$D$304*UdnytNkvæg*0.01 -> 22.5 | DJ10: =DH10*$D$306 -> 5.1 | DK10: =DH10*$D$308 -> 20.1
B11: Husdyrgødning | CU11: 1 | CV11: =IF(CU11=1,IF($CU$5=1,21,IF($CU$5=2,22,IF($CU$5=3,23,IF($CU$5=4,24,IF($CU$5=5,25,""))))),IF($CU$5=1,26,IF($CU$5=2,27,IF($CU$5=3,28,IF($CU$5=4,29,IF($CU$5=5,30,"")))))) -> 24 | DF11: 6 | DG11: 50 kg N svin | DH11: 0.5 | DI11: =DH11*$D$298*UdnytNsvin*0.01 -> 40 | DJ11: =DH11*$D$300 -> 12.5 | DK11: =DH11*$D$302 -> 25
CV12: Forfrugtsværdi | DF12: 7 | DG12: 50 kg N kvæg | DH12: 0.5 | DI12: =DH12*$D$304*UdnytNkvæg*0.01 -> 37.5 | DJ12: =DH12*$D$306 -> 8.5 | DK12: =DH12*$D$308 -> 33.5
B13: Forfrugtsværdi til forfrugten | CU13: 2 | CV13: =IF(CU13=1,IF($CU$5=1,15,IF($CU$5=2,16,IF($CU$5=3,17,IF($CU$5=4,18,IF($CU$5=5,19,"")))))) -> FALSE | DF13: 8 | DG13: 70 kg N svin | DH13: 0.7 | DI13: =DH13*$D$298*UdnytNsvin*0.01 -> 56 | DJ13: =DH13*$D$300 -> 17.5 | DK13: =DH13*$D$302 -> 35
DF14: 9 | DG14: 70 kg N kvæg | DH14: 0.7 | DI14: =DH14*$D$304*UdnytNkvæg*0.01 -> 52.5 | DJ14: =DH14*$D$306 -> 11.9 | DK14: =DH14*$D$308 -> 46.9
DF15: 10 | DG15: 80 kg N svin | DH15: 0.8 | DI15: =DH15*$D$298*UdnytNsvin*0.01 -> 64 | DJ15: =DH15*$D$300 -> 20 | DK15: =DH15*$D$302 -> 40
B16: Standardforudsætninger | DF16: 11 | DG16: 80 kg N kvæg | DH16: 0.8 | DI16: =DH16*$D$304*UdnytNkvæg*0.01 -> 60 | DJ16: =DH16*$D$306 -> 13.6 | DK16: =DH16*$D$308 -> 53.6
DF17: 12 | DG17: 90 kg N svin | DH17: 0.9 | DI17: =DH17*$D$298*UdnytNsvin*0.01 -> 72 | DJ17: =DH17*$D$300 -> 22.5 | DK17: =DH17*$D$302 -> 45
B18: Kvælstofpris | D18: 5.5 | F18: pr. kg | DF18: 13 | DG18: 90 kg N kvæg | DH18: 0.9 | DI18: =DH18*$D$304*UdnytNkvæg*0.01 -> 67.5 | DJ18: =DH18*$D$306 -> 15.3 | DK18: =DH18*$D$308 -> 60.3
DF19: 14 | DG19: 100 kg N svin | DH19: 1 | DI19: =DH19*$D$298*UdnytNsvin*0.01 -> 80 | DJ19: =DH19*$D$300 -> 25 | DK19: =DH19*$D$302 -> 50
B20: Fosforpris | D20: 9 | F20: pr. kg | DF20: 15 | DG20: 100 kg N kvæg | DH20: 1 | DI20: =DH20*$D$304*UdnytNkvæg*0.01 -> 75 | DJ20: =DH20*$D$306 -> 17 | DK20: =DH20*$D$308 -> 67
DF21: 16 | DG21: 110 kg N svin | DH21: 1.1 | DI21: =DH21*$D$298*UdnytNsvin*0.01 -> 88 | DJ21: =DH21*$D$300 -> 27.5 | DK21: =DH21*$D$302 -> 55
B22: Kaliumpris | D22: 6 | F22: pr. kg | DF22: 17 | DG22: 110 kg N kvæg | DH22: 1.1 | DI22: =DH22*$D$304*UdnytNkvæg*0.01 -> 82.5 | DJ22: =DH22*$D$306 -> 18.7 | DK22: =DH22*$D$308 -> 73.7
DF23: 18 | DG23: 120 kg N svin | DH23: 1.2 | DI23: =DH23*$D$298*UdnytNsvin*0.01 -> 96 | DJ23: =DH23*$D$300 -> 30 | DK23: =DH23*$D$302 -> 60
B24: Meromkostning til erstatningskorn | D24: 15 | F24: pr. hkg | DF24: 19 | DG24: 120 kg N kvæg | DH24: 1.2 | DI24: =DH24*$D$304*UdnytNkvæg*0.01 -> 90 | DJ24: =DH24*$D$306 -> 20.4 | DK24: =DH24*$D$308 -> 80.4
DF25: 20 | DG25: 130 kg N svin | DH25: 1.3 | DI25: =DH25*$D$298*UdnytNsvin*0.01 -> 104 | DJ25: =DH25*$D$300 -> 32.5 | DK25: =DH25*$D$302 -> 65
B26: Kornpris, forfrugtsværdi | D26: 115 | F26: pr. hkg | DF26: 21 | DG26: 130 kg N kvæg | DH26: 1.3 | DI26: =DH26*$D$304*UdnytNkvæg*0.01 -> 97.5 | DJ26: =DH26*$D$306 -> 22.1 | DK26: =DH26*$D$308 -> 87.1
DF27: 22 | DG27: 140 kg N svin | DH27: 1.4 | DI27: =DH27*$D$298*UdnytNsvin*0.01 -> 112 | DJ27: =DH27*$D$300 -> 35 | DK27: =DH27*$D$302 -> 70
B28: Udnyttelse af N i svinegødning | D28: 80 | F28: % | DF28: 23 | DG28: 140 kg N kvæg | DH28: 1.4 | DI28: =DH28*$D$304*UdnytNkvæg*0.01 -> 105 | DJ28: =DH28*$D$306 -> 23.8 | DK28: =DH28*$D$308 -> 93.8
DF29: 24 | DG29: 150 kg N svin | DH29: 1.5 | DI29: =DH29*$D$298*UdnytNsvin*0.01 -> 120 | DJ29: =DH29*$D$300 -> 37.5 | DK29: =DH29*$D$302 -> 75
B30: Udnyttelse af N i kvæggødning | D30: 75 | F30: % | DF30: 25 | DG30: 150 kg N kvæg | DH30: 1.5 | DI30: =DH30*$D$304*UdnytNkvæg*0.01 -> 112.5 | DJ30: =DH30*$D$306 -> 25.5 | DK30: =DH30*$D$308 -> 100.5
DF31: 26 | DG31: 160 kg N svin | DH31: 1.6 | DI31: =DH31*$D$298*UdnytNsvin*0.01 -> 128 | DJ31: =DH31*$D$300 -> 40 | DK31: =DH31*$D$302 -> 80
B32: Halmpris | D32: 0.5 | F32: kr. pr. kg | DF32: 27 | DG32: 160 kg N kvæg | DH32: 1.6 | DI32: =DH32*$D$304*UdnytNkvæg*0.01 -> 120 | DJ32: =DH32*$D$306 -> 27.2 | DK32: =DH32*$D$308 -> 107.2
DF33: 28 | DG33: 170 kg N svin | DH33: 1.7 | DI33: =DH33*$D$298*UdnytNsvin*0.01 -> 136 | DJ33: =DH33*$D$300 -> 42.5 | DK33: =DH33*$D$302 -> 85
B34: Årstal på udskrift | D34: 2021 | DF34: 29 | DG34: 170 kg N kvæg | DH34: 1.7 | DI34: =DH34*$D$304*UdnytNkvæg*0.01 -> 127.5 | DJ34: =DH34*$D$306 -> 28.9 | DK34: =DH34*$D$308 -> 113.9
DF35: 30 | DG35: 180 kg N kvæg | DH35: 1.8 | DI35: =DH35*$D$304*UdnytNkvæg*0.01 -> 135 | DJ35: =DH35*$D$306 -> 30.6 | DK35: =DH35*$D$308 -> 120.6
DF36: 31 | DG36: 190 kg N kvæg | DH36: 1.9 | DI36: =DH36*$D$304*UdnytNkvæg*0.01 -> 142.5 | DJ36: =DH36*$D$306 -> 32.3 | DK36: =DH36*$D$308 -> 127.3
DF37: 32 | DG37: 200 kg N kvæg | DH37: 2 | DI37: =DH37*$D$304*UdnytNkvæg*0.01 -> 150 | DJ37: =DH37*$D$306 -> 34 | DK37: =DH37*$D$308 -> 134
DF38: 33 | DG38: 210 kg N kvæg | DH38: 2.1 | DI38: 157.5 | DJ38: 35.7 | DK38: 140.7
DF39: 34 | DG39: 220 kg N kvæg | DH39: 2.2 | DI39: 165 | DJ39: 37.4 | DK39: 147.4
B40: Opret eventuelt egen afgrøde | S40: Her har du mulighed for at oprette egen afgrøde. Efter indtastningen af oplysningerne kan du vælge "Anden afgrøde" i rulleteksten under Sædskifte 1 og Sædskifte 2. | DF40: 35 | DG40: 230 kg N kvæg | DH40: 2.3 | DI40: 172.5 | DJ40: 39.1 | DK40: 154.1
DF41: 36 | DH41: 2.1 | DI41: 157.5 | DJ41: 35.7 | DK41: 140.7
DF42: 37 | DH42: 2.2 | DI42: 165 | DJ42: 37.4 | DK42: 147.4
B43: Indtast afgrødenavn | DF43: 38 | DH43: 2.3 | DI43: 172.5 | DJ43: 39.1 | DK43: 154.1
B45: Indtast forventet udbytte og pris | F45: Indtast stykomkostninger
B46: Udbytte, hkg / ae pr. ha | F46: Udsæd, kr. pr ha | K46: Hvis N behovet dækkes med NPK 21-3-10, så svarer | P46: =IF(OR($I$46>0),"Husk minus foran","") -> 
B47: Pris pr. hkg / ae | F47: Gødning beregnes ud fra mængde
G48: N-behov, kg pr. ha | K48: =I48 -> 0 | L48: kg N til
B49: Halmudbytte, kg pr. ha | G49: P-behov, kg pr. ha | K49: Kg P | L49: =K48/0.21*0.03 -> 0
G50: K-behov, kg pr. ha | K50: Kg K | L50: =K48/0.21*0.1 -> 0
F51: Planteværn | L51: =IF(OR($I$51>0),"Husk minus foran","") -> 
F52: Diverse | L52: =IF(OR($I$52>0),"Husk minus foran","") -> 
B54: Beregning af forfrugtsværdi | F54: Indtast maskin- og arbejdsomkostninger
B55: Forfrugtsværdi | D55: hkg pr. ha | F55: Maskiner og arbejde | J55: kr. pr. ha | L55: =IF(OR($I$55>0),"Husk minus foran","") -> 
B56: Sparet N til næste afgrøde | D56: kg pr. ha | F56: Tørring | J56: kr. pr. hkg | L56: =IF(OR($I$56>0),"Husk minus foran","") -> 
B63: Angiv sædskifte 1 og 2
B64: Her kan du angive, hvilke afgrøder der skal indgå i sædskifte 1 samt arealer, udbytter og priser.
B65: Sædskifte 1 | D65: Antal | F65: Eget | G65: Udbytte- | I65: Egen | K65: Standard | S65: Her kan du angive, hvilke afgrøder der skal indgå i sædskifte 1 samt arealer, udbytter og priser. For at få sædskifte 1 vist på udskriften skal det vælges i rullelisterne nedenfor til venstre.
D66: ha | F66: udbytte | G66: norm | I66: pris | K66: pris
G68: =IF(F68<>"","",IF(VLOOKUP($CU159,_Afg07,$CV$5)=0,"",VLOOKUP($CU159,_Afg07,$CV$5))) ->  | H68: =IF($CU159>1,IF(VLOOKUP($CU159,_Afg07,3)<>"",VLOOKUP($CU159,_Afg07,3),""),"") ->  | K68: =IF(I68<>"","",IF(VLOOKUP($CU159,_Afg07,$U$285)=0,"",VLOOKUP($CU159,_Afg07,$U$285))) ->  | L68: =IF($CU159>1,"kr.","") ->  | R68: =IF(AND(CU159>1,VLOOKUP(CU159,_Afg07,3)=""),"Areal med efterafgrøder tælles ikke med i dyrket areal i alt","") -> 
G70: =IF(F70<>"","",IF(VLOOKUP(CU161,_Afg07,$CV$5)=0,"",VLOOKUP(CU161,_Afg07,$CV$5))) ->  | H70: =IF($CU161>1,IF(VLOOKUP($CU161,_Afg07,3)<>"",VLOOKUP($CU161,_Afg07,3),""),"") ->  | K70: =IF(I70<>"","",IF(VLOOKUP($CU161,_Afg07,$U$285)=0,"",VLOOKUP($CU161,_Afg07,$U$285))) ->  | L70: =IF($CU161>1,"kr.","") ->  | R70: =IF(AND(CU161>1,VLOOKUP(CU161,_Afg07,3)=""),"Areal med efterafgrøder tælles ikke med i dyrket areal i alt","") -> 
G72: =IF(F72<>"","",IF(VLOOKUP(CU163,_Afg07,$CV$5)=0,"",VLOOKUP(CU163,_Afg07,$CV$5))) ->  | H72: =IF($CU163>1,IF(VLOOKUP($CU163,_Afg07,3)<>"",VLOOKUP($CU163,_Afg07,3),""),"") ->  | K72: =IF(I72<>"","",IF(VLOOKUP($CU163,_Afg07,$U$285)=0,"",VLOOKUP($CU163,_Afg07,$U$285))) ->  | L72: =IF($CU163>1,"kr.","") ->  | R72: =IF(AND(CU163>1,VLOOKUP(CU163,_Afg07,3)=""),"Areal med efterafgrøder tælles ikke med i dyrket areal i alt","") -> 
G74: =IF(F74<>"","",IF(VLOOKUP(CU165,_Afg07,$CV$5)=0,"",VLOOKUP(CU165,_Afg07,$CV$5))) ->  | H74: =IF($CU165>1,IF(VLOOKUP($CU165,_Afg07,3)<>"",VLOOKUP($CU165,_Afg07,3),""),"") ->  | K74: =IF(I74<>"","",IF(VLOOKUP($CU165,_Afg07,$U$285)=0,"",VLOOKUP($CU165,_Afg07,$U$285))) ->  | L74: =IF($CU165>1,"kr.","") ->  | R74: =IF(AND(CU165>1,VLOOKUP(CU165,_Afg07,3)=""),"Areal med efterafgrøder tælles ikke med i dyrket areal i alt","") -> 
G76: =IF(F76<>"","",IF(VLOOKUP(CU167,_Afg07,$CV$5)=0,"",VLOOKUP(CU167,_Afg07,$CV$5))) ->  | H76: =IF($CU167>1,IF(VLOOKUP($CU167,_Afg07,3)<>"",VLOOKUP($CU167,_Afg07,3),""),"") ->  | K76: =IF(I76<>"","",IF(VLOOKUP($CU167,_Afg07,$U$285)=0,"",VLOOKUP($CU167,_Afg07,$U$285))) ->  | L76: =IF($CU167>1,"kr.","") ->  | R76: =IF(AND(CU167>1,VLOOKUP(CU167,_Afg07,3)=""),"Areal med efterafgrøder tælles ikke med i dyrket areal i alt","") -> 
G78: =IF(F78<>"","",IF(VLOOKUP(CU169,_Afg07,$CV$5)=0,"",VLOOKUP(CU169,_Afg07,$CV$5))) ->  | H78: =IF($CU169>1,IF(VLOOKUP($CU169,_Afg07,3)<>"",VLOOKUP($CU169,_Afg07,3),""),"") ->  | K78: =IF(I78<>"","",IF(VLOOKUP($CU169,_Afg07,$U$285)=0,"",VLOOKUP($CU169,_Afg07,$U$285))) ->  | L78: =IF($CU169>1,"kr.","") ->  | R78: =IF(AND(CU169>1,VLOOKUP(CU169,_Afg07,3)=""),"Areal med efterafgrøder tælles ikke med i dyrket areal i alt","") -> 
G80: =IF(F80<>"","",IF(VLOOKUP(CU171,_Afg07,$CV$5)=0,"",VLOOKUP(CU171,_Afg07,$CV$5))) ->  | H80: =IF($CU171>1,IF(VLOOKUP($CU171,_Afg07,3)<>"",VLOOKUP($CU171,_Afg07,3),""),"") ->  | K80: =IF(I80<>"","",IF(VLOOKUP($CU171,_Afg07,$U$285)=0,"",VLOOKUP($CU171,_Afg07,$U$285))) ->  | L80: =IF($CU171>1,"kr.","") ->  | R80: =IF(AND(CU171>1,VLOOKUP(CU171,_Afg07,3)=""),"Areal med efterafgrøder tælles ikke med i dyrket areal i alt","") -> 
B82: Dyrket areal i alt | D82: =IF(AND(CU159>1,VLOOKUP(CU159,_Afg07,3)<>""),D68,0)+IF(AND(CU161>1,VLOOKUP(CU161,_Afg07,3)<>""),D70,0)+IF(AND(CU163>1,VLOOKUP(CU163,_Afg07,3)<>""),D72,0)+IF(AND(CU165>1,VLOOKUP(CU165,_Afg07,3)<>""),D74,0)+IF(AND(CU167>1,VLOOKUP(CU167,_Afg07,3)<>""),D76,0)+IF(AND(CU169>1,VLOOKUP(CU169,_Afg07,3)<>""),D78,0)+IF(AND(CU171>1,VLOOKUP(CU171,_Afg07,3)<>""),D80,0) -> 0
B85: Her kan du angive, hvilke afgrøder der skal indgå i sædskifte 2 samt arealer, udbytter og priser.
B86: Sædskifte 2 | D86: Antal | F86: Eget | G86: Udbytte- | I86: Egen | K86: Standard | S86: Her kan du angive, hvilke afgrøder der skal indgå i sædskifte 2 samt arealer, udbytter og priser. For at få sædskifte 2 vist på udskriften skal det vælges i rullelisterne nedenfor til venstre.
D87: ha | F87: udbytte | G87: norm | I87: pris | K87: pris
G89: =IF(F89<>"","",IF(VLOOKUP(CU160,_Afg07,$CV$5)=0,"",VLOOKUP(CU160,_Afg07,$CV$5))) ->  | H89: =IF(CU160>1,IF(VLOOKUP(CU160,_Afg07,3)<>"",VLOOKUP(CU160,_Afg07,3),""),"") ->  | K89: =IF(I89<>"","",IF(VLOOKUP($CU160,_Afg07,$U$285)=0,"",VLOOKUP($CU160,_Afg07,$U$285))) ->  | L89: =IF($CU160>1,"kr.","") ->  | R89: =IF(AND(CU160>1,VLOOKUP(CU160,_Afg07,3)=""),"Areal med efterafgrøder tælles ikke med i dyrket areal i alt","") -> 
G91: =IF(F91<>"","",IF(VLOOKUP(CU162,_Afg07,$CV$5)=0,"",VLOOKUP(CU162,_Afg07,$CV$5))) ->  | H91: =IF(CU162>1,IF(VLOOKUP(CU162,_Afg07,3)<>"",VLOOKUP(CU162,_Afg07,3),""),"") ->  | K91: =IF(I91<>"","",IF(VLOOKUP($CU162,_Afg07,$U$285)=0,"",VLOOKUP($CU162,_Afg07,$U$285))) ->  | L91: =IF($CU162>1,"kr.","") ->  | R91: =IF(AND(CU162>1,VLOOKUP(CU162,_Afg07,3)=""),"Areal med efterafgrøder tælles ikke med i dyrket areal i alt","") -> 
G93: =IF(F93<>"","",IF(VLOOKUP(CU164,_Afg07,$CV$5)=0,"",VLOOKUP(CU164,_Afg07,$CV$5))) ->  | H93: =IF(CU164>1,IF(VLOOKUP(CU164,_Afg07,3)<>"",VLOOKUP(CU164,_Afg07,3),""),"") ->  | K93: =IF(I93<>"","",IF(VLOOKUP($CU164,_Afg07,$U$285)=0,"",VLOOKUP($CU164,_Afg07,$U$285))) ->  | L93: =IF($CU164>1,"kr.","") ->  | R93: =IF(AND(CU164>1,VLOOKUP(CU164,_Afg07,3)=""),"Areal med efterafgrøder tælles ikke med i dyrket areal i alt","") -> 
G95: =IF(F95<>"","",IF(VLOOKUP(CU166,_Afg07,$CV$5)=0,"",VLOOKUP(CU166,_Afg07,$CV$5))) ->  | H95: =IF(CU166>1,IF(VLOOKUP(CU166,_Afg07,3)<>"",VLOOKUP(CU166,_Afg07,3),""),"") ->  | K95: =IF(I95<>"","",IF(VLOOKUP($CU166,_Afg07,$U$285)=0,"",VLOOKUP($CU166,_Afg07,$U$285))) ->  | L95: =IF($CU166>1,"kr.","") ->  | R95: =IF(AND(CU166>1,VLOOKUP(CU166,_Afg07,3)=""),"Areal med efterafgrøder tælles ikke med i dyrket areal i alt","") -> 
G97: =IF(F97<>"","",IF(VLOOKUP(CU168,_Afg07,$CV$5)=0,"",VLOOKUP(CU168,_Afg07,$CV$5))) ->  | H97: =IF(CU168>1,IF(VLOOKUP(CU168,_Afg07,3)<>"",VLOOKUP(CU168,_Afg07,3),""),"") ->  | K97: =IF(I97<>"","",IF(VLOOKUP($CU168,_Afg07,$U$285)=0,"",VLOOKUP($CU168,_Afg07,$U$285))) ->  | L97: =IF($CU168>1,"kr.","") ->  | R97: =IF(AND(CU168>1,VLOOKUP(CU168,_Afg07,3)=""),"Areal med efterafgrøder tælles ikke med i dyrket areal i alt","") -> 
G99: =IF(F99<>"","",IF(VLOOKUP(CU170,_Afg07,$CV$5)=0,"",VLOOKUP(CU170,_Afg07,$CV$5))) ->  | H99: =IF(CU170>1,IF(VLOOKUP(CU170,_Afg07,3)<>"",VLOOKUP(CU170,_Afg07,3),""),"") ->  | K99: =IF(I99<>"","",IF(VLOOKUP($CU170,_Afg07,$U$285)=0,"",VLOOKUP($CU170,_Afg07,$U$285))) ->  | L99: =IF($CU170>1,"kr.","") ->  | R99: =IF(AND(CU170>1,VLOOKUP(CU170,_Afg07,3)=""),"Areal med efterafgrøder tælles ikke med i dyrket areal i alt","") -> 
G101: =IF(F101<>"","",IF(VLOOKUP(CU172,_Afg07,$CV$5)=0,"",VLOOKUP(CU172,_Afg07,$CV$5))) ->  | H101: =IF(CU172>1,IF(VLOOKUP(CU172,_Afg07,3)<>"",VLOOKUP(CU172,_Afg07,3),""),"") ->  | K101: =IF(I101<>"","",IF(VLOOKUP($CU172,_Afg07,$U$285)=0,"",VLOOKUP($CU172,_Afg07,$U$285))) ->  | L101: =IF($CU172>1,"kr.","") ->  | R101: =IF(AND(CU172>1,VLOOKUP(CU172,_Afg07,3)=""),"Areal med efterafgrøder tælles ikke med i dyrket areal i alt","") -> 
B103: Dyrket areal i alt | D103: =IF(AND(CU160>1,VLOOKUP(CU160,_Afg07,3)<>""),D89,0)+IF(AND(CU162>1,VLOOKUP(CU162,_Afg07,3)<>""),D91,0)+IF(AND(CU164>1,VLOOKUP(CU164,_Afg07,3)<>""),D93,0)+IF(AND(CU166>1,VLOOKUP(CU166,_Afg07,3)<>""),D95,0)+IF(AND(CU168>1,VLOOKUP(CU168,_Afg07,3)<>""),D97,0)+IF(AND(CU170>1,VLOOKUP(CU170,_Afg07,3)<>""),D99,0)+IF(AND(CU172>1,VLOOKUP(CU172,_Afg07,3)<>""),D101,0) -> 0
B136: Angiv afgrøder og sædskifter til sammenligning (Sædskifte 1 og 2 findes nederst i rullemenuer)
D137: Afgrøde/sædskifte | H137: Alternativ 1 | L137: Alternativ 2
CU138: Afgrøde | CV138: Alternat 1 | CW138: Alternat 2 | CX138: Alternat 3
B139: Afgrøde | CT139: Afgrøderækkenummer | CU139: 1 | CV139: 1 | CW139: 1 | CX139: 1
D140: =IF(CU139=2,C43,"") ->  | H140: =IF(CV139=2,C43,"") ->  | L140: =IF(CW139=2,C43,"") -> 
B141: Udbyttenorm pr. ha | D141: =VLOOKUP(CU139,_Afg07,CV5) -> 0 | E141: =IF($CU$139>1,IF(VLOOKUP($CU$139,_Afg07,3)="","Hkg",VLOOKUP($CU$139,_Afg07,3)),"hkg") -> hkg | H141: =VLOOKUP(CV139,_Afg07,CV5) -> 0 | I141: =IF($CV$139>1,IF(VLOOKUP($CV$139,_Afg07,3)="","Hkg",VLOOKUP($CV$139,_Afg07,3)),"hkg") -> hkg | L141: =VLOOKUP(CW139,_Afg07,CV5) -> 0 | M141: =IF($CW$139>1,IF(VLOOKUP($CW$139,_Afg07,3)="","hkg",VLOOKUP($CW$139,_Afg07,3)),"hkg") -> hkg
B142: Udbytte forventet | E142: =IF($CU$139>1,IF(VLOOKUP($CU$139,_Afg07,3)="","Hkg",VLOOKUP($CU$139,_Afg07,3)),"hkg") -> hkg | I142: =IF($CV$139>1,IF(VLOOKUP($CV$139,_Afg07,3)="","Hkg",VLOOKUP($CV$139,_Afg07,3)),"hkg") -> hkg | M142: =IF($CW$139>1,IF(VLOOKUP($CW$139,_Afg07,3)="","hkg",VLOOKUP($CW$139,_Afg07,3)),"hkg") -> hkg
B144: Pris, standard pr. hkg | D144: =VLOOKUP(CU139,_Afg07,4) -> 0 | E144: kr. | H144: =VLOOKUP(CV139,_Afg07,4) -> 0 | I144: kr. | L144: =VLOOKUP(CW139,_Afg07,4) -> 0 | M144: kr.
B145: Pris forventet | E145: kr. | I145: kr. | M145: kr.
B147: Udskrift (side 1):
B149: Økonomi i afgrøder og sædskifter 2021
F151: =IF(CU139>1,VLOOKUP(CU139,_Afg07,2),"") ->  | I151: =IF(CV139>1,VLOOKUP(CV139,_Afg07,2),"") ->  | M151: =IF(CW139>1,VLOOKUP(CW139,_Afg07,2),"") ->  | CM151: Efterafgr. Olieræddike
B152: Udbytte pr. ha | D152: =IF(CU139>1,IF(D142="",D141,D142),"") ->  | E152: =IF(AND(D152<>"",D152>0),VLOOKUP(CU139,_Afg07,3),"") ->  | H152: =IF(CV139>1,IF(H142="",H141,H142),"") ->  | I152: =IF(AND(H152<>"",H152>0),VLOOKUP(CV139,_Afg07,3),"") ->  | L152: =IF(CW139>1,IF(L142="",L141,L142),"") ->  | M152: =IF(AND(L152<>"",L152>0),VLOOKUP(CW139,_Afg07,3),"") ->  | S152: I nedenstående felter kan du overskrive gennemsnitsværdier i økonomiberegning, kr. pr. ha | CM152: Efterafgr. Rajgræs
B153: Pris pr. hkg | D153: =IF(CU139>1,IF(D145="",D144,D145),"") ->  | E153: =IF(D153<>"","kr.","") ->  | H153: =IF(CV139>1,IF(H145="",H144,H145),"") ->  | I153: =IF(H153<>"","kr.","") ->  | L153: =IF(CW139>1,IF(L145="",L144,L145),"") ->  | M153: =IF(L153<>"","kr.","") ->  | S153: Husk minus foran omkostninger. | CM153: Efterafgr. Gul sennep | DN153: Plov (Plo) | DP153: Stubharve (Stu) | DR153: Såbedsharve (Såb) | DT153: Marksprøjte | DV153: Såmaskine (Såm) | DX153: Mejetærsker (Mej) | DZ153: Halmpresser (Hal) | EB153: Gylleudbringning | ED153: Gødningsspreder | EF153: Enkornsåmaskine | EH153: Kartoffellægger | EJ153: Kartoffeloptager | EL153: Roeoptager
S154: Husk at slette tallene igen før ny beregning.
B155: Udbytte, kerne/frø | D155: =IF(CU139>1,D152*D153,"") ->  | E155: =IF(D155<>"","kr.","") ->  | H155: =IF(CV139>1,H152*H153,"") ->  | I155: =IF(H155<>"","kr.","") ->  | L155: =IF(CW139>1,L152*L153,"") ->  | M155: =IF(L155<>"","kr.","") ->  | DN155: 3 | DP155: 2 | DR155: 2 | DT155: 1 | DV155: 2 | DX155: 2 | DZ155: 2 | EB155: 2 | ED155: 2 | EF155: 1 | EH155: 2 | EJ155: 1 | EL155: 1
B156: Udbytte, halm | D156: =IF(CU139>1,IF($CU$7=1,VLOOKUP(CU139,_Afg07,$CV$7,0)*Halmpris,""),"") ->  | E156: =IF(D156<>"","kr.","") ->  | H156: =IF(CV139>1,IF($CU$7=1,VLOOKUP(CV139,_Afg07,$CV$7,0)*Halmpris,""),"") ->  | I156: =IF(H156<>"","kr.","") ->  | L156: =IF(CW139>1,IF($CU$7=1,VLOOKUP(CW139,_Afg07,$CV$7,0)*Halmpris,""),"") ->  | M156: =IF(L156<>"","kr.","") ->  | T156: Afgrøde/ | V156: Alternativ 1 | X156: Alternativ 2 | DV156: Timer i alt
B157: Forfrugtsværdi | D157: =IF(CU139>1,IF($CU$13=1,(VLOOKUP(CU139,_Afg07,$CV$13)*ffvpris+VLOOKUP(CU139,_Afg07,20)*Npris),0),"") ->  | E157: =IF(D157<>"","kr.","") ->  | H157: =IF(CV139>1,IF($CU$13=1,(VLOOKUP(CV139,_Afg07,$CV$13)*ffvpris+VLOOKUP(CV139,_Afg07,20)*Npris),0),"") ->  | I157: =IF(H157<>"","kr.","") ->  | L157: =IF(CW139>1,IF($CU$13=1,(VLOOKUP(CW139,_Afg07,$CV$13)*ffvpris+VLOOKUP(CW139,_Afg07,20)*Npris),0),"") ->  | M157: =IF(L157<>"","kr.","") ->  | T157: sædskifte | CL157: Kagediagram 1 | CR157: Kagediagram Lopslag | CW157: Erstatningskorn,sædskifte | CX157: Udbytte, foderkorn | CY157: Areal, foderkorn | DB157: Halm fra foderkorn | DD157: Hovedafgrøde_areal | DN157: Pløjning | DP157: Harvning efter høst | DR157: Såbedsharvning | DT157: Glyphosatsprøjtning | DV157: Pløjning vinter/forå | DW157: Pløjning august | DX157: Pløjning sept | DY157: Harvning e høst juli | DZ157: Harvning e høst august | EA157: Harvning e høst oktober | EB157: Såbedsharvn forår | EC157: Såbedsharvn august | ED157: Såbedsharvn september | EE157: Glyphosat forår | EF157: Glyphosat august | EG157: Glyphosat september | EH157: Såning forår | EI157: Såning august | EJ157: Såning september | EK157: Høst juli | EL157: Høst august | EM157: Høst oktober | EN157: Halm juli | EO157: Halm august | EP157: Enkornsåning forår | EQ157: Kartof lægning forår | ER157: Kartof optag sept | ES157: Roeoptag | ET157: Planteværn | EU157: Gødning | EV157: Gylle
B158: Tilskud | D158: =IF(T158<>"",T158,"") ->  | E158: =IF(D158<>"","kr.","") ->  | H158: =IF(V158<>"",V158,"") ->  | I158: =IF(H158<>"","kr.","") ->  | L158: =IF(X158<>"",X158,"") ->  | M158: =IF(L158<>"","kr.","") ->  | S158: Tilskud | CL158: =IF(CM158=0,"",_xlfn.CONCAT(CM158," ","(",CO158,"ha",")")) ->  | CM158: =IF(CN158="Egen afgrøde",$C$43,CN158) -> 0 | CN158: =IF(CR158=$CM$151,0,IF(CR158=$CM$152,0,IF(CR158=$CM$153,0,CR158))) -> 0 | CO158: =IF(CR158=$CM$151,0,IF(CR158=$CM$152,0,IF(CR158=$CM$153,0,CS158))) -> 0 | CR158: =VLOOKUP(CU159,$R$288:$S$342,2) -> 0 | CS158: =D68 -> 0
B159: Bruttoudbytte i alt | D159: =IF(CU139>1,SUM(D155:D158),"") ->  | E159: =IF(D159<>"","kr.","") ->  | H159: =IF(CV139>1,SUM(H155:H158),"") ->  | I159: =IF(H159<>"","kr.","") ->  | L159: =IF(CW139>1,SUM(L155:L158),"") ->  | M159: =IF(L159<>"","kr.","") ->  | CL159: =IF(CM159=0,"",_xlfn.CONCAT(CM159," ","(",CO159,"ha",")")) ->  | CM159: =IF(CN159="Egen afgrøde",$C$43,CN159) -> 0 | CN159: =IF(CR159=$CM$151,0,IF(CR159=$CM$152,0,IF(CR159=$CM$153,0,CR159))) -> 0 | CO159: =IF(CR159=$CM$151,0,IF(CR159=$CM$152,0,IF(CR159=$CM$153,0,CS159))) -> 0 | CR159: =VLOOKUP(CU161,$R$288:$S$342,2) -> 0 | CS159: =D70 -> 0 | CU159: 1 | CW159: =IF(CU159>1,IF(VLOOKUP(CU159,_Afg07,$BU$285)=2,IF($CU$9=2,-VLOOKUP($R$324,_Afg07,$CV$9)*Erstatpris*D68,0),0),0) -> 0 | CX159: =IF(AND(CU159>1,VLOOKUP(CU159,_Afg07,$BU$285)=1),IF(F68<>"",F68,G68)*D68,0) -> 0 | CY159: =IF(AND(CU159>1,VLOOKUP(CU159,_Afg07,$BU$285)=1),D68,0) -> 0 | DB159: =IF(AND(CU159>1,VLOOKUP(CU159,_Afg07,$BU$285)=1),VLOOKUP(CU159,_Afg07,Halmnr)*D68,0) -> 0 | DN159: TRUE | DP159: FALSE | DR159: TRUE | DT159: FALSE | DV159: =IF(VLOOKUP($CU159,_Afg07,$BV$285)=1,IF($DN159,$D68/IF(_Plo2<>"",_Plo2,Plo),0),0) -> 0 | DW159: =IF(VLOOKUP($CU159,_Afg07,$BV$285)=2,IF($DN159,$D68/IF(_Plo2<>"",_Plo2,Plo),0),0) -> 0 | DX159: =IF(VLOOKUP($CU159,_Afg07,$BV$285)=3,IF($DN159,$D68/IF(_Plo2<>"",_Plo2,Plo),0),0) -> 0 | DY159: =IF(VLOOKUP($CU159,_Afg07,$BZ$285)=1,IF($DP159,$D68/IF(_Stu2<>"",_Stu2,Stu),0),0) -> 0 | DZ159: =IF(VLOOKUP($CU159,_Afg07,$BZ$285)=2,IF($DP159,$D68/IF(_Stu2<>"",_Stu2,Stu),0),0) -> 0 | EA159: =IF(VLOOKUP($CU159,_Afg07,$BZ$285)=3,IF($DP159,$D68/IF(_Stu2<>"",_Stu2,Stu),0),0) -> 0 | EB159: =IF(VLOOKUP($CU159,_Afg07,$BW$285)=1,IF($DR159,$D68/IF(Såb2<>"",Såb2,Såb),0),0) -> 0 | EC159: =IF(VLOOKUP($CU159,_Afg07,$BW$285)=2,IF($DR159,$D68/IF(Såb2<>"",Såb2,Såb),0),0) -> 0 | ED159: =IF(VLOOKUP($CU159,_Afg07,$BW$285)=3,IF($DR159,$D68/IF(Såb2<>"",Såb2,Såb),0),0) -> 0 | EE159: =IF(VLOOKUP($CU159,_Afg07,$BX$285)=1,IF($DT159,$D68/IF(_Gly2<>"",_Gly2,Gly),0),0) -> 0 | EF159: =IF(VLOOKUP($CU159,_Afg07,$BX$285)=2,IF($DT159,$D68/IF(_Gly2<>"",_Gly2,Gly),0),0) -> 0 | EG159: =IF(VLOOKUP($CU159,_Afg07,$BX$285)=3,IF($DT159,$D68/IF(_Gly2<>"",_Gly2,Gly),0),0) -> 0 | EH159: =IF(VLOOKUP($CU159,_Afg07,$BY$285)=1,$D68/IF(Såm2<>"",Såm2,Såm),0) -> 0 | EI159: =IF(VLOOKUP($CU159,_Afg07,$BY$285)=2,$D68/IF(Såm2<>"",Såm2,Såm),0) -> 0 | EJ159: =IF(VLOOKUP($CU159,_Afg07,$BY$285)=3,$D68/IF(Såm2<>"",Såm2,Såm),0) -> 0 | EK159: =IF(VLOOKUP($CU159,_Afg07,$CA$285)=1,$D68/IF(_Mej2<>"",_Mej2,Mej)*VLOOKUP($CU159,_Afg07,$CC$285),0) -> 0 | EL159: =IF(VLOOKUP($CU159,_Afg07,$CA$285)=2,$D68/IF(_Mej2<>"",_Mej2,Mej)*VLOOKUP($CU159,_Afg07,$CC$285),0) -> 0 | EM159: =IF(VLOOKUP($CU159,_Afg07,$CA$285)=3,$D68/IF(_Mej2<>"",_Mej2,Mej)*VLOOKUP($CU159,_Afg07,$CC$285),0) -> 0 | EN159: =IF(HalmJa=1,IF(VLOOKUP($CU159,_Afg07,$CB$285)=1,$D68/IF(_Hal3<>"",_Hal3,Hal)+$D68/_Hal2,0),0) -> 0 | EO159: =IF(HalmJa=1,IF(VLOOKUP($CU159,_Afg07,$CB$285)=2,$D68/IF(_Hal3<>"",_Hal3,Hal)+$D68/_Hal2,0),0) -> 0 | EP159: =IF(VLOOKUP($CU159,_Afg07,$CD$285)=1,$D68/IF(_Enk2<>"",_Enk2,Enk),0) -> 0 | EQ159: =IF(VLOOKUP($CU159,_Afg07,$CE$285)=1,$D68/IF(_Kar2<>"",_Kar2,Kar),0) -> 0 | ER159: =IF(VLOOKUP($CU159,_Afg07,$CF$285)=1,$D68/IF(Kopt2<>"",Kopt2,Kopt),0) -> 0 | ES159: =IF(VLOOKUP($CU159,_Afg07,$CG$285)=1,$D68/IF(Ropt2<>"",Ropt2,Ropt),0) -> 0 | ET159: =VLOOKUP($CU159,_Afg07,$CH$285)*$D68/IF(_Gly2<>"",_Gly2,Gly) -> 0 | EU159: =VLOOKUP($CU159,_Afg07,$CI$285)*$D68/IF(Gød2<>"",Gød2,Gød) -> 0
CM160: =IF(CN160="Egen afgrøde",$C$43,CN160) -> 0 | CN160: 0 | CO160: 0 | CR160: =VLOOKUP(CU163,$R$288:$S$342,2) -> 0 | CS160: =D72 -> 0 | CU160: 1 | CW160: =IF(CU160>1,IF(VLOOKUP(CU160,_Afg07,$BU$285)=2,IF($CU$9=2,-VLOOKUP($R$324,_Afg07,$CV$9)*Erstatpris*D89,0),0),0) -> 0 | CX160: =IF(AND(CU160>1,VLOOKUP(CU160,_Afg07,$BU$285)=1),IF(F89<>"",F89,G89)*D89,0) -> 0 | CY160: =IF(AND(CU160>1,VLOOKUP(CU160,_Afg07,$BU$285)=1),D89,0) -> 0 | DB160: =IF(AND(CU160>1,VLOOKUP(CU160,_Afg07,$BU$285)=1),VLOOKUP(CU160,_Afg07,Halmnr)*D89,0) -> 0 | DN160: TRUE | DP160: FALSE | DR160: TRUE | DT160: FALSE | DV160: =IF(VLOOKUP($CU160,_Afg07,$BV$285)=1,IF($DN160,$D89/IF(_Plo2<>"",_Plo2,Plo),0),0) -> 0 | DW160: =IF(VLOOKUP($CU160,_Afg07,$BV$285)=2,IF($DN160,$D89/IF(_Plo2<>"",_Plo2,Plo),0),0) -> 0 | DX160: =IF(VLOOKUP($CU160,_Afg07,$BV$285)=3,IF($DN160,$D89/IF(_Plo2<>"",_Plo2,Plo),0),0) -> 0 | DY160: =IF(VLOOKUP($CU160,_Afg07,$BZ$285)=1,IF($DP160,$D89/IF(_Stu2<>"",_Stu2,Stu),0),0) -> 0 | DZ160: =IF(VLOOKUP($CU160,_Afg07,$BZ$285)=2,IF($DP160,$D89/IF(_Stu2<>"",_Stu2,Stu),0),0) -> 0 | EA160: =IF(VLOOKUP($CU160,_Afg07,$BZ$285)=3,IF($DP160,$D89/IF(_Stu2<>"",_Stu2,Stu),0),0) -> 0 | EB160: =IF(VLOOKUP($CU160,_Afg07,$BW$285)=1,IF($DR160,$D89/IF(Såb2<>"",Såb2,Såb),0),0) -> 0 | EC160: =IF(VLOOKUP($CU160,_Afg07,$BW$285)=2,IF($DR160,$D89/IF(Såb2<>"",Såb2,Såb),0),0) -> 0 | ED160: =IF(VLOOKUP($CU160,_Afg07,$BW$285)=3,IF($DR160,$D89/IF(Såb2<>"",Såb2,Såb),0),0) -> 0 | EE160: =IF(VLOOKUP($CU160,_Afg07,$BX$285)=1,IF($DT160,$D89/IF(_Gly2<>"",_Gly2,Gly),0),0) -> 0 | EF160: =IF(VLOOKUP($CU160,_Afg07,$BX$285)=2,IF($DT160,$D89/IF(_Gly2<>"",_Gly2,Gly),0),0) -> 0 | EG160: =IF(VLOOKUP($CU160,_Afg07,$BX$285)=3,IF($DT160,$D89/IF(_Gly2<>"",_Gly2,Gly),0),0) -> 0 | EH160: =IF(VLOOKUP($CU160,_Afg07,$BY$285)=1,$D89/IF(Såm2<>"",Såm2,Såm),0) -> 0 | EI160: =IF(VLOOKUP($CU160,_Afg07,$BY$285)=2,$D89/IF(Såm2<>"",Såm2,Såm),0) -> 0 | EJ160: =IF(VLOOKUP($CU160,_Afg07,$BY$285)=3,$D89/IF(Såm2<>"",Såm2,Såm),0) -> 0 | EK160: =IF(VLOOKUP($CU160,_Afg07,$CA$285)=1,$D89/IF(_Mej2<>"",_Mej2,Mej)*VLOOKUP($CU160,_Afg07,$CC$285),0) -> 0 | EL160: =IF(VLOOKUP($CU160,_Afg07,$CA$285)=2,$D89/IF(_Mej2<>"",_Mej2,Mej)*VLOOKUP($CU160,_Afg07,$CC$285),0) -> 0 | EM160: =IF(VLOOKUP($CU160,_Afg07,$CA$285)=3,$D89/IF(_Mej2<>"",_Mej2,Mej)*VLOOKUP($CU160,_Afg07,$CC$285),0) -> 0 | EN160: =IF(HalmJa=1,IF(VLOOKUP($CU160,_Afg07,$CB$285)=1,$D89/IF(_Hal3<>"",_Hal3,Hal)+$D89/_Hal2,0),0) -> 0 | EO160: =IF(HalmJa=1,IF(VLOOKUP($CU160,_Afg07,$CB$285)=2,$D89/IF(_Hal3<>"",_Hal3,Hal)+$D89/_Hal2,0),0) -> 0 | EP160: =IF(VLOOKUP($CU160,_Afg07,$CD$285)=1,$D89/IF(_Enk2<>"",_Enk2,Enk),0) -> 0 | EQ160: =IF(VLOOKUP($CU160,_Afg07,$CE$285)=1,$D89/IF(_Kar2<>"",_Kar2,Kar),0) -> 0 | ER160: =IF(VLOOKUP($CU160,_Afg07,$CF$285)=1,$D89/IF(Kopt2<>"",Kopt2,Kopt),0) -> 0 | ES160: =IF(VLOOKUP($CU160,_Afg07,$CG$285)=1,$D89/IF(Ropt2<>"",Ropt2,Ropt),0) -> 0 | ET160: =VLOOKUP($CU160,_Afg07,$CH$285)*$D89/IF(_Gly2<>"",_Gly2,Gly) -> 0 | EU160: =VLOOKUP($CU160,_Afg07,$CI$285)*$D89/IF(Gød2<>"",Gød2,Gød) -> 0
B161: Udsæd | D161: =IF(CU139>1,IF(T161<>"",T161,-VLOOKUP(CU139,_Afg07,AL285)),"") ->  | E161: =IF(D161<>"","kr.","") ->  | H161: =IF(CV139>1,IF(V161<>"",V161,-VLOOKUP(CV139,_Afg07,AL285)),"") ->  | I161: =IF(H161<>"","kr.","") ->  | L161: =IF(CW139>1,IF(X161<>"",X161,-VLOOKUP(CW139,_Afg07,AL285)),"") ->  | M161: =IF(L161<>"","kr.","") ->  | S161: Udsæd | CM161: =IF(CN161="Egen afgrøde",$C$43,CN161) -> 0 | CN161: 0 | CO161: 0 | CR161: =VLOOKUP(CU165,$R$288:$S$342,2) -> 0 | CS161: =D74 -> 0 | CU161: 1 | CW161: =IF(CU161>1,IF(VLOOKUP(CU161,_Afg07,$BU$285)=2,IF($CU$9=2,-VLOOKUP($R$324,_Afg07,$CV$9)*Erstatpris*D70,0),0),0) -> 0 | CX161: =IF(AND(CU161>1,VLOOKUP(CU161,_Afg07,$BU$285)=1),IF(F70<>"",F70,G70)*D70,0) -> 0 | CY161: =IF(AND(CU161>1,VLOOKUP(CU161,_Afg07,$BU$285)=1),D70,0) -> 0 | DB161: =IF(AND(CU161>1,VLOOKUP(CU161,_Afg07,$BU$285)=1),VLOOKUP(CU161,_Afg07,Halmnr)*D70,0) -> 0 | DN161: TRUE | DP161: FALSE | DR161: TRUE | DT161: FALSE | DV161: =IF(VLOOKUP($CU161,_Afg07,$BV$285)=1,IF($DN161,$D70/IF(_Plo2<>"",_Plo2,Plo),0),0) -> 0 | DW161: =IF(VLOOKUP($CU161,_Afg07,$BV$285)=2,IF($DN161,$D70/IF(_Plo2<>"",_Plo2,Plo),0),0) -> 0 | DX161: =IF(VLOOKUP($CU161,_Afg07,$BV$285)=3,IF($DN161,$D70/IF(_Plo2<>"",_Plo2,Plo),0),0) -> 0 | DY161: =IF(VLOOKUP($CU161,_Afg07,$BZ$285)=1,IF($DP161,$D70/IF(_Stu2<>"",_Stu2,Stu),0),0) -> 0 | DZ161: =IF(VLOOKUP($CU161,_Afg07,$BZ$285)=2,IF($DP161,$D70/IF(_Stu2<>"",_Stu2,Stu),0),0) -> 0 | EA161: =IF(VLOOKUP($CU161,_Afg07,$BZ$285)=3,IF($DP161,$D70/IF(_Stu2<>"",_Stu2,Stu),0),0) -> 0 | EB161: =IF(VLOOKUP($CU161,_Afg07,$BW$285)=1,IF($DR161,$D70/IF(Såb2<>"",Såb2,Såb),0),0) -> 0 | EC161: =IF(VLOOKUP($CU161,_Afg07,$BW$285)=2,IF($DR161,$D70/IF(Såb2<>"",Såb2,Såb),0),0) -> 0 | ED161: =IF(VLOOKUP($CU161,_Afg07,$BW$285)=3,IF($DR161,$D70/IF(Såb2<>"",Såb2,Såb),0),0) -> 0 | EE161: =IF(VLOOKUP($CU161,_Afg07,$BX$285)=1,IF($DT161,$D70/IF(_Gly2<>"",_Gly2,Gly),0),0) -> 0 | EF161: =IF(VLOOKUP($CU161,_Afg07,$BX$285)=2,IF($DT161,$D70/IF(_Gly2<>"",_Gly2,Gly),0),0) -> 0 | EG161: =IF(VLOOKUP($CU161,_Afg07,$BX$285)=3,IF($DT161,$D70/IF(_Gly2<>"",_Gly2,Gly),0),0) -> 0 | EH161: =IF(VLOOKUP($CU161,_Afg07,$BY$285)=1,$D70/IF(Såm2<>"",Såm2,Såm),0) -> 0 | EI161: =IF(VLOOKUP($CU161,_Afg07,$BY$285)=2,$D70/IF(Såm2<>"",Såm2,Såm),0) -> 0 | EJ161: =IF(VLOOKUP($CU161,_Afg07,$BY$285)=3,$D70/IF(Såm2<>"",Såm2,Såm),0) -> 0 | EK161: =IF(VLOOKUP($CU161,_Afg07,$CA$285)=1,$D70/IF(_Mej2<>"",_Mej2,Mej)*VLOOKUP($CU161,_Afg07,$CC$285),0) -> 0 | EL161: =IF(VLOOKUP($CU161,_Afg07,$CA$285)=2,$D70/IF(_Mej2<>"",_Mej2,Mej)*VLOOKUP($CU161,_Afg07,$CC$285),0) -> 0 | EM161: =IF(VLOOKUP($CU161,_Afg07,$CA$285)=3,$D70/IF(_Mej2<>"",_Mej2,Mej)*VLOOKUP($CU161,_Afg07,$CC$285),0) -> 0 | EN161: =IF(HalmJa=1,IF(VLOOKUP($CU161,_Afg07,$CB$285)=1,$D70/IF(_Hal3<>"",_Hal3,Hal)+$D70/_Hal2,0),0) -> 0 | EO161: =IF(HalmJa=1,IF(VLOOKUP($CU161,_Afg07,$CB$285)=2,$D70/IF(_Hal3<>"",_Hal3,Hal)+$D70/_Hal2,0),0) -> 0 | EP161: =IF(VLOOKUP($CU161,_Afg07,$CD$285)=1,$D70/IF(_Enk2<>"",_Enk2,Enk),0) -> 0 | EQ161: =IF(VLOOKUP($CU161,_Afg07,$CE$285)=1,$D70/IF(_Kar2<>"",_Kar2,Kar),0) -> 0 | ER161: =IF(VLOOKUP($CU161,_Afg07,$CF$285)=1,$D70/IF(Kopt2<>"",Kopt2,Kopt),0) -> 0 | ES161: =IF(VLOOKUP($CU161,_Afg07,$CG$285)=1,$D70/IF(Ropt2<>"",Ropt2,Ropt),0) -> 0 | ET161: =VLOOKUP($CU161,_Afg07,$CH$285)*$D70/IF(_Gly2<>"",_Gly2,Gly) -> 0 | EU161: =VLOOKUP($CU161,_Afg07,$CI$285)*$D70/IF(Gød2<>"",Gød2,Gød) -> 0
B162: Gødning | D162: =IF(Afgnr>1,IF(T162<>"",T162,-D576),"") ->  | E162: =IF(D162<>"","kr.","") ->  | H162: =IF(Alt1nr>1,IF(V162<>"",V162,-H576),"") ->  | I162: =IF(H162<>"","kr.","") ->  | L162: =IF(Alt2nr>1,IF(X162<>"",X162,-L576),"") ->  | M162: =IF(L162<>"","kr.","") ->  | S162: Gødning | CM162: 0 | CN162: 0 | CO162: 0 | CR162: =VLOOKUP(CU167,$R$288:$S$342,2) -> 0 | CS162: =D76 -> 0 | CU162: 1 | CW162: =IF(CU162>1,IF(VLOOKUP(CU162,_Afg07,$BU$285)=2,IF($CU$9=2,-VLOOKUP($R$324,_Afg07,$CV$9)*Erstatpris*D91,0),0),0) -> 0 | CX162: =IF(AND(CU162>1,VLOOKUP(CU162,_Afg07,$BU$285)=1),IF(F91<>"",F91,G91)*D91,0) -> 0 | CY162: =IF(AND(CU162>1,VLOOKUP(CU162,_Afg07,$BU$285)=1),D91,0) -> 0 | DB162: =IF(AND(CU162>1,VLOOKUP(CU162,_Afg07,$BU$285)=1),VLOOKUP(CU162,_Afg07,Halmnr)*D91,0) -> 0 | DN162: TRUE | DP162: FALSE | DR162: TRUE | DT162: FALSE | DV162: =IF(VLOOKUP($CU162,_Afg07,$BV$285)=1,IF($DN162,$D91/IF(_Plo2<>"",_Plo2,Plo),0),0) -> 0 | DW162: =IF(VLOOKUP($CU162,_Afg07,$BV$285)=2,IF($DN162,$D91/IF(_Plo2<>"",_Plo2,Plo),0),0) -> 0 | DX162: =IF(VLOOKUP($CU162,_Afg07,$BV$285)=3,IF($DN162,$D91/IF(_Plo2<>"",_Plo2,Plo),0),0) -> 0 | DY162: =IF(VLOOKUP($CU162,_Afg07,$BZ$285)=1,IF($DP162,$D91/IF(_Stu2<>"",_Stu2,Stu),0),0) -> 0 | DZ162: =IF(VLOOKUP($CU162,_Afg07,$BZ$285)=2,IF($DP162,$D91/IF(_Stu2<>"",_Stu2,Stu),0),0) -> 0 | EA162: =IF(VLOOKUP($CU162,_Afg07,$BZ$285)=3,IF($DP162,$D91/IF(_Stu2<>"",_Stu2,Stu),0),0) -> 0 | EB162: =IF(VLOOKUP($CU162,_Afg07,$BW$285)=1,IF($DR162,$D91/IF(Såb2<>"",Såb2,Såb),0),0) -> 0 | EC162: =IF(VLOOKUP($CU162,_Afg07,$BW$285)=2,IF($DR162,$D91/IF(Såb2<>"",Såb2,Såb),0),0) -> 0 | ED162: =IF(VLOOKUP($CU162,_Afg07,$BW$285)=3,IF($DR162,$D91/IF(Såb2<>"",Såb2,Såb),0),0) -> 0 | EE162: =IF(VLOOKUP($CU162,_Afg07,$BX$285)=1,IF($DT162,$D91/IF(_Gly2<>"",_Gly2,Gly),0),0) -> 0 | EF162: =IF(VLOOKUP($CU162,_Afg07,$BX$285)=2,IF($DT162,$D91/IF(_Gly2<>"",_Gly2,Gly),0),0) -> 0 | EG162: =IF(VLOOKUP($CU162,_Afg07,$BX$285)=3,IF($DT162,$D91/IF(_Gly2<>"",_Gly2,Gly),0),0) -> 0 | EH162: =IF(VLOOKUP($CU162,_Afg07,$BY$285)=1,$D91/IF(Såm2<>"",Såm2,Såm),0) -> 0 | EI162: =IF(VLOOKUP($CU162,_Afg07,$BY$285)=2,$D91/IF(Såm2<>"",Såm2,Såm),0) -> 0 | EJ162: =IF(VLOOKUP($CU162,_Afg07,$BY$285)=3,$D91/IF(Såm2<>"",Såm2,Såm),0) -> 0 | EK162: =IF(VLOOKUP($CU162,_Afg07,$CA$285)=1,$D91/IF(_Mej2<>"",_Mej2,Mej)*VLOOKUP($CU162,_Afg07,$CC$285),0) -> 0 | EL162: =IF(VLOOKUP($CU162,_Afg07,$CA$285)=2,$D91/IF(_Mej2<>"",_Mej2,Mej)*VLOOKUP($CU162,_Afg07,$CC$285),0) -> 0 | EM162: =IF(VLOOKUP($CU162,_Afg07,$CA$285)=3,$D91/IF(_Mej2<>"",_Mej2,Mej)*VLOOKUP($CU162,_Afg07,$CC$285),0) -> 0 | EN162: =IF(HalmJa=1,IF(VLOOKUP($CU162,_Afg07,$CB$285)=1,$D91/IF(_Hal3<>"",_Hal3,Hal)+$D91/_Hal2,0),0) -> 0 | EO162: =IF(HalmJa=1,IF(VLOOKUP($CU162,_Afg07,$CB$285)=2,$D91/IF(_Hal3<>"",_Hal3,Hal)+$D91/_Hal2,0),0) -> 0 | EP162: =IF(VLOOKUP($CU162,_Afg07,$CD$285)=1,$D91/IF(_Enk2<>"",_Enk2,Enk),0) -> 0 | EQ162: =IF(VLOOKUP($CU162,_Afg07,$CE$285)=1,$D91/IF(_Kar2<>"",_Kar2,Kar),0) -> 0 | ER162: =IF(VLOOKUP($CU162,_Afg07,$CF$285)=1,$D91/IF(Kopt2<>"",Kopt2,Kopt),0) -> 0 | ES162: =IF(VLOOKUP($CU162,_Afg07,$CG$285)=1,$D91/IF(Ropt2<>"",Ropt2,Ropt),0) -> 0 | ET162: =VLOOKUP($CU162,_Afg07,$CH$285)*$D91/IF(_Gly2<>"",_Gly2,Gly) -> 0 | EU162: =VLOOKUP($CU162,_Afg07,$CI$285)*$D91/IF(Gød2<>"",Gød2,Gød) -> 0
B163: Planteværn | D163: =IF(CU139>1,IF(T163<>"",T163,-VLOOKUP(CU139,_Afg07,AM285)),"") ->  | E163: =IF(D163<>"","kr.","") ->  | H163: =IF(CV139>1,IF(V163<>"",V163,-VLOOKUP(CV139,_Afg07,AM285)),"") ->  | I163: =IF(H163<>"","kr.","") ->  | L163: =IF(CW139>1,IF(X163<>"",X163,-VLOOKUP(CW139,_Afg07,AM285)),"") ->  | M163: =IF(L163<>"","kr.","") ->  | S163: Planteværn | CM163: 0 | CN163: 0 | CO163: 0 | CR163: =VLOOKUP(CU169,$R$288:$S$342,2) -> 0 | CS163: =D78 -> 0 | CU163: 1 | CW163: =IF(CU163>1,IF(VLOOKUP(CU163,_Afg07,$BU$285)=2,IF($CU$9=2,-VLOOKUP($R$324,_Afg07,$CV$9)*Erstatpris*D72,0),0),0) -> 0 | CX163: =IF(AND(CU163>1,VLOOKUP(CU163,_Afg07,$BU$285)=1),IF(F72<>"",F72,G72)*D72,0) -> 0 | CY163: =IF(AND(CU163>1,VLOOKUP(CU163,_Afg07,$BU$285)=1),D72,0) -> 0 | DB163: =IF(AND(CU163>1,VLOOKUP(CU163,_Afg07,$BU$285)=1),VLOOKUP(CU163,_Afg07,Halmnr)*D72,0) -> 0 | DN163: TRUE | DP163: FALSE | DR163: TRUE | DT163: FALSE | DV163: =IF(VLOOKUP($CU163,_Afg07,$BV$285)=1,IF($DN163,$D72/IF(_Plo2<>"",_Plo2,Plo),0),0) -> 0 | DW163: =IF(VLOOKUP($CU163,_Afg07,$BV$285)=2,IF($DN163,$D72/IF(_Plo2<>"",_Plo2,Plo),0),0) -> 0 | DX163: =IF(VLOOKUP($CU163,_Afg07,$BV$285)=3,IF($DN163,$D72/IF(_Plo2<>"",_Plo2,Plo),0),0) -> 0 | DY163: =IF(VLOOKUP($CU163,_Afg07,$BZ$285)=1,IF($DP163,$D72/IF(_Stu2<>"",_Stu2,Stu),0),0) -> 0 | DZ163: =IF(VLOOKUP($CU163,_Afg07,$BZ$285)=2,IF($DP163,$D72/IF(_Stu2<>"",_Stu2,Stu),0),0) -> 0 | EA163: =IF(VLOOKUP($CU163,_Afg07,$BZ$285)=3,IF($DP163,$D72/IF(_Stu2<>"",_Stu2,Stu),0),0) -> 0 | EB163: =IF(VLOOKUP($CU163,_Afg07,$BW$285)=1,IF($DR163,$D72/IF(Såb2<>"",Såb2,Såb),0),0) -> 0 | EC163: =IF(VLOOKUP($CU163,_Afg07,$BW$285)=2,IF($DR163,$D72/IF(Såb2<>"",Såb2,Såb),0),0) -> 0 | ED163: =IF(VLOOKUP($CU163,_Afg07,$BW$285)=3,IF($DR163,$D72/IF(Såb2<>"",Såb2,Såb),0),0) -> 0 | EE163: =IF(VLOOKUP($CU163,_Afg07,$BX$285)=1,IF($DT163,$D72/IF(_Gly2<>"",_Gly2,Gly),0),0) -> 0 | EF163: =IF(VLOOKUP($CU163,_Afg07,$BX$285)=2,IF($DT163,$D72/IF(_Gly2<>"",_Gly2,Gly),0),0) -> 0 | EG163: =IF(VLOOKUP($CU163,_Afg07,$BX$285)=3,IF($DT163,$D72/IF(_Gly2<>"",_Gly2,Gly),0),0) -> 0 | EH163: =IF(VLOOKUP($CU163,_Afg07,$BY$285)=1,$D72/IF(Såm2<>"",Såm2,Såm),0) -> 0 | EI163: =IF(VLOOKUP($CU163,_Afg07,$BY$285)=2,$D72/IF(Såm2<>"",Såm2,Såm),0) -> 0 | EJ163: =IF(VLOOKUP($CU163,_Afg07,$BY$285)=3,$D72/IF(Såm2<>"",Såm2,Såm),0) -> 0 | EK163: =IF(VLOOKUP($CU163,_Afg07,$CA$285)=1,$D72/IF(_Mej2<>"",_Mej2,Mej)*VLOOKUP($CU163,_Afg07,$CC$285),0) -> 0 | EL163: =IF(VLOOKUP($CU163,_Afg07,$CA$285)=2,$D72/IF(_Mej2<>"",_Mej2,Mej)*VLOOKUP($CU163,_Afg07,$CC$285),0) -> 0 | EM163: =IF(VLOOKUP($CU163,_Afg07,$CA$285)=3,$D72/IF(_Mej2<>"",_Mej2,Mej)*VLOOKUP($CU163,_Afg07,$CC$285),0) -> 0 | EN163: =IF(HalmJa=1,IF(VLOOKUP($CU163,_Afg07,$CB$285)=1,$D72/IF(_Hal3<>"",_Hal3,Hal)+$D72/_Hal2,0),0) -> 0 | EO163: =IF(HalmJa=1,IF(VLOOKUP($CU163,_Afg07,$CB$285)=2,$D72/IF(_Hal3<>"",_Hal3,Hal)+$D72/_Hal2,0),0) -> 0 | EP163: =IF(VLOOKUP($CU163,_Afg07,$CD$285)=1,$D72/IF(_Enk2<>"",_Enk2,Enk),0) -> 0 | EQ163: =IF(VLOOKUP($CU163,_Afg07,$CE$285)=1,$D72/IF(_Kar2<>"",_Kar2,Kar),0) -> 0 | ER163: =IF(VLOOKUP($CU163,_Afg07,$CF$285)=1,$D72/IF(Kopt2<>"",Kopt2,Kopt),0) -> 0 | ES163: =IF(VLOOKUP($CU163,_Afg07,$CG$285)=1,$D72/IF(Ropt2<>"",Ropt2,Ropt),0) -> 0 | ET163: =VLOOKUP($CU163,_Afg07,$CH$285)*$D72/IF(_Gly2<>"",_Gly2,Gly) -> 0 | EU163: =VLOOKUP($CU163,_Afg07,$CI$285)*$D72/IF(Gød2<>"",Gød2,Gød) -> 0
B164: Diverse | D164: =IF(Afgnr>1,IF(T164<>"",T164,-VLOOKUP(Afgnr,_Afg07,$AN$285)-D$152*VLOOKUP(Afgnr,_Afg07,$BB$285)),"") ->  | E164: =IF(D164<>"","kr.","") ->  | H164: =IF(CV139>1,IF(V164<>"",V164,-VLOOKUP(CV139,_Afg07,AN285)-H152*VLOOKUP(CV139,_Afg07,BB285)),"") ->  | I164: =IF(H164<>"","kr.","") ->  | L164: =IF(CW139>1,IF(X164<>"",X164,-VLOOKUP(CW139,_Afg07,AN285)-L152*VLOOKUP(CW139,_Afg07,BB285)),"") ->  | M164: =IF(L164<>"","kr.","") ->  | S164: Diverse | CM164: 0 | CN164: 0 | CO164: 0 | CR164: =VLOOKUP(CU171,$R$288:$S$342,2) -> 0 | CS164: =D80 -> 0 | CU164: 1 | CW164: =IF(CU164>1,IF(VLOOKUP(CU164,_Afg07,$BU$285)=2,IF($CU$9=2,-VLOOKUP($R$324,_Afg07,$CV$9)*Erstatpris*D93,0),0),0) -> 0 | CX164: =IF(AND(CU164>1,VLOOKUP(CU164,_Afg07,$BU$285)=1),IF(F93<>"",F93,G93)*D93,0) -> 0 | CY164: =IF(AND(CU164>1,VLOOKUP(CU164,_Afg07,$BU$285)=1),D93,0) -> 0 | DB164: =IF(AND(CU164>1,VLOOKUP(CU164,_Afg07,$BU$285)=1),VLOOKUP(CU164,_Afg07,Halmnr)*D93,0) -> 0 | DN164: TRUE | DP164: FALSE | DR164: TRUE | DT164: FALSE | DV164: =IF(VLOOKUP($CU164,_Afg07,$BV$285)=1,IF($DN164,$D93/IF(_Plo2<>"",_Plo2,Plo),0),0) -> 0 | DW164: =IF(VLOOKUP($CU164,_Afg07,$BV$285)=2,IF($DN164,$D93/IF(_Plo2<>"",_Plo2,Plo),0),0) -> 0 | DX164: =IF(VLOOKUP($CU164,_Afg07,$BV$285)=3,IF($DN164,$D93/IF(_Plo2<>"",_Plo2,Plo),0),0) -> 0 | DY164: =IF(VLOOKUP($CU164,_Afg07,$BZ$285)=1,IF($DP164,$D93/IF(_Stu2<>"",_Stu2,Stu),0),0) -> 0 | DZ164: =IF(VLOOKUP($CU164,_Afg07,$BZ$285)=2,IF($DP164,$D93/IF(_Stu2<>"",_Stu2,Stu),0),0) -> 0 | EA164: =IF(VLOOKUP($CU164,_Afg07,$BZ$285)=3,IF($DP164,$D93/IF(_Stu2<>"",_Stu2,Stu),0),0) -> 0 | EB164: =IF(VLOOKUP($CU164,_Afg07,$BW$285)=1,IF($DR164,$D93/IF(Såb2<>"",Såb2,Såb),0),0) -> 0 | EC164: =IF(VLOOKUP($CU164,_Afg07,$BW$285)=2,IF($DR164,$D93/IF(Såb2<>"",Såb2,Såb),0),0) -> 0 | ED164: =IF(VLOOKUP($CU164,_Afg07,$BW$285)=3,IF($DR164,$D93/IF(Såb2<>"",Såb2,Såb),0),0) -> 0 | EE164: =IF(VLOOKUP($CU164,_Afg07,$BX$285)=1,IF($DT164,$D93/IF(_Gly2<>"",_Gly2,Gly),0),0) -> 0 | EF164: =IF(VLOOKUP($CU164,_Afg07,$BX$285)=2,IF($DT164,$D93/IF(_Gly2<>"",_Gly2,Gly),0),0) -> 0 | EG164: =IF(VLOOKUP($CU164,_Afg07,$BX$285)=3,IF($DT164,$D93/IF(_Gly2<>"",_Gly2,Gly),0),0) -> 0 | EH164: =IF(VLOOKUP($CU164,_Afg07,$BY$285)=1,$D93/IF(Såm2<>"",Såm2,Såm),0) -> 0 | EI164: =IF(VLOOKUP($CU164,_Afg07,$BY$285)=2,$D93/IF(Såm2<>"",Såm2,Såm),0) -> 0 | EJ164: =IF(VLOOKUP($CU164,_Afg07,$BY$285)=3,$D93/IF(Såm2<>"",Såm2,Såm),0) -> 0 | EK164: =IF(VLOOKUP($CU164,_Afg07,$CA$285)=1,$D93/IF(_Mej2<>"",_Mej2,Mej)*VLOOKUP($CU164,_Afg07,$CC$285),0) -> 0 | EL164: =IF(VLOOKUP($CU164,_Afg07,$CA$285)=2,$D93/IF(_Mej2<>"",_Mej2,Mej)*VLOOKUP($CU164,_Afg07,$CC$285),0) -> 0 | EM164: =IF(VLOOKUP($CU164,_Afg07,$CA$285)=3,$D93/IF(_Mej2<>"",_Mej2,Mej)*VLOOKUP($CU164,_Afg07,$CC$285),0) -> 0 | EN164: =IF(HalmJa=1,IF(VLOOKUP($CU164,_Afg07,$CB$285)=1,$D93/IF(_Hal3<>"",_Hal3,Hal)+$D93/_Hal2,0),0) -> 0 | EO164: =IF(HalmJa=1,IF(VLOOKUP($CU164,_Afg07,$CB$285)=2,$D93/IF(_Hal3<>"",_Hal3,Hal)+$D93/_Hal2,0),0) -> 0 | EP164: =IF(VLOOKUP($CU164,_Afg07,$CD$285)=1,$D93/IF(_Enk2<>"",_Enk2,Enk),0) -> 0 | EQ164: =IF(VLOOKUP($CU164,_Afg07,$CE$285)=1,$D93/IF(_Kar2<>"",_Kar2,Kar),0) -> 0 | ER164: =IF(VLOOKUP($CU164,_Afg07,$CF$285)=1,$D93/IF(Kopt2<>"",Kopt2,Kopt),0) -> 0 | ES164: =IF(VLOOKUP($CU164,_Afg07,$CG$285)=1,$D93/IF(Ropt2<>"",Ropt2,Ropt),0) -> 0 | ET164: =VLOOKUP($CU164,_Afg07,$CH$285)*$D93/IF(_Gly2<>"",_Gly2,Gly) -> 0 | EU164: =VLOOKUP($CU164,_Afg07,$CI$285)*$D93/IF(Gød2<>"",Gød2,Gød) -> 0
B165: Stykomkostninger i alt | D165: =IF(Afgnr>1,D161+D162+D163+D164,"") ->  | E165: =IF(D165<>"","kr.","") ->  | H165: =IF(Alt1nr>1,H161+H162+H163+H164,"") ->  | I165: =IF(H165<>"","kr.","") ->  | L165: =IF(Alt2nr>1,L161+L162+L163+L164,"") ->  | M165: =IF(L165<>"","kr.","") ->  | T165: =IF(OR(T161>0,T162>0,T163>0,T164>0),"Husk minus foran","") ->  | V165: =IF(OR(V161>0,V162>0,V163>0,V164>0),"Husk minus foran","") ->  | X165: =IF(OR(X161>0,X162>0,X163>0,X164>0),"Husk minus foran","") ->  | CU165: 1 | CW165: =IF(CU165>1,IF(VLOOKUP(CU165,_Afg07,$BU$285)=2,IF($CU$9=2,-VLOOKUP($R$324,_Afg07,$CV$9)*Erstatpris*D74,0),0),0) -> 0 | CX165: =IF(AND(CU165>1,VLOOKUP(CU165,_Afg07,$BU$285)=1),IF(F74<>"",F74,G74)*D74,0) -> 0 | CY165: =IF(AND(CU165>1,VLOOKUP(CU165,_Afg07,$BU$285)=1),D74,0) -> 0 | DB165: =IF(AND(CU165>1,VLOOKUP(CU165,_Afg07,$BU$285)=1),VLOOKUP(CU165,_Afg07,Halmnr)*D74,0) -> 0 | DN165: TRUE | DP165: FALSE | DR165: TRUE | DT165: FALSE | DV165: =IF(VLOOKUP($CU165,_Afg07,$BV$285)=1,IF($DN165,$D74/IF(_Plo2<>"",_Plo2,Plo),0),0) -> 0 | DW165: =IF(VLOOKUP($CU165,_Afg07,$BV$285)=2,IF($DN165,$D74/IF(_Plo2<>"",_Plo2,Plo),0),0) -> 0 | DX165: =IF(VLOOKUP($CU165,_Afg07,$BV$285)=3,IF($DN165,$D74/IF(_Plo2<>"",_Plo2,Plo),0),0) -> 0 | DY165: =IF(VLOOKUP($CU165,_Afg07,$BZ$285)=1,IF($DP165,$D74/IF(_Stu2<>"",_Stu2,Stu),0),0) -> 0 | DZ165: =IF(VLOOKUP($CU165,_Afg07,$BZ$285)=2,IF($DP165,$D74/IF(_Stu2<>"",_Stu2,Stu),0),0) -> 0 | EA165: =IF(VLOOKUP($CU165,_Afg07,$BZ$285)=3,IF($DP165,$D74/IF(_Stu2<>"",_Stu2,Stu),0),0) -> 0 | EB165: =IF(VLOOKUP($CU165,_Afg07,$BW$285)=1,IF($DR165,$D74/IF(Såb2<>"",Såb2,Såb),0),0) -> 0 | EC165: =IF(VLOOKUP($CU165,_Afg07,$BW$285)=2,IF($DR165,$D74/IF(Såb2<>"",Såb2,Såb),0),0) -> 0 | ED165: =IF(VLOOKUP($CU165,_Afg07,$BW$285)=3,IF($DR165,$D74/IF(Såb2<>"",Såb2,Såb),0),0) -> 0 | EE165: =IF(VLOOKUP($CU165,_Afg07,$BX$285)=1,IF($DT165,$D74/IF(_Gly2<>"",_Gly2,Gly),0),0) -> 0 | EF165: =IF(VLOOKUP($CU165,_Afg07,$BX$285)=2,IF($DT165,$D74/IF(_Gly2<>"",_Gly2,Gly),0),0) -> 0 | EG165: =IF(VLOOKUP($CU165,_Afg07,$BX$285)=3,IF($DT165,$D74/IF(_Gly2<>"",_Gly2,Gly),0),0) -> 0 | EH165: =IF(VLOOKUP($CU165,_Afg07,$BY$285)=1,$D74/IF(Såm2<>"",Såm2,Såm),0) -> 0 | EI165: =IF(VLOOKUP($CU165,_Afg07,$BY$285)=2,$D74/IF(Såm2<>"",Såm2,Såm),0) -> 0 | EJ165: =IF(VLOOKUP($CU165,_Afg07,$BY$285)=3,$D74/IF(Såm2<>"",Såm2,Såm),0) -> 0 | EK165: =IF(VLOOKUP($CU165,_Afg07,$CA$285)=1,$D74/IF(_Mej2<>"",_Mej2,Mej)*VLOOKUP($CU165,_Afg07,$CC$285),0) -> 0 | EL165: =IF(VLOOKUP($CU165,_Afg07,$CA$285)=2,$D74/IF(_Mej2<>"",_Mej2,Mej)*VLOOKUP($CU165,_Afg07,$CC$285),0) -> 0 | EM165: =IF(VLOOKUP($CU165,_Afg07,$CA$285)=3,$D74/IF(_Mej2<>"",_Mej2,Mej)*VLOOKUP($CU165,_Afg07,$CC$285),0) -> 0 | EN165: =IF(HalmJa=1,IF(VLOOKUP($CU165,_Afg07,$CB$285)=1,$D74/IF(_Hal3<>"",_Hal3,Hal)+$D74/_Hal2,0),0) -> 0 | EO165: =IF(HalmJa=1,IF(VLOOKUP($CU165,_Afg07,$CB$285)=2,$D74/IF(_Hal3<>"",_Hal3,Hal)+$D74/_Hal2,0),0) -> 0 | EP165: =IF(VLOOKUP($CU165,_Afg07,$CD$285)=1,$D74/IF(_Enk2<>"",_Enk2,Enk),0) -> 0 | EQ165: =IF(VLOOKUP($CU165,_Afg07,$CE$285)=1,$D74/IF(_Kar2<>"",_Kar2,Kar),0) -> 0 | ER165: =IF(VLOOKUP($CU165,_Afg07,$CF$285)=1,$D74/IF(Kopt2<>"",Kopt2,Kopt),0) -> 0 | ES165: =IF(VLOOKUP($CU165,_Afg07,$CG$285)=1,$D74/IF(Ropt2<>"",Ropt2,Ropt),0) -> 0 | ET165: =VLOOKUP($CU165,_Afg07,$CH$285)*$D74/IF(_Gly2<>"",_Gly2,Gly) -> 0 | EU165: =VLOOKUP($CU165,_Afg07,$CI$285)*$D74/IF(Gød2<>"",Gød2,Gød) -> 0
CU166: 1 | CW166: =IF(CU166>1,IF(VLOOKUP(CU166,_Afg07,$BU$285)=2,IF($CU$9=2,-VLOOKUP($R$324,_Afg07,$CV$9)*Erstatpris*D95,0),0),0) -> 0 | CX166: =IF(AND(CU166>1,VLOOKUP(CU166,_Afg07,$BU$285)=1),IF(F95<>"",F95,G95)*D95,0) -> 0 | CY166: =IF(AND(CU166>1,VLOOKUP(CU166,_Afg07,$BU$285)=1),D95,0) -> 0 | DB166: =IF(AND(CU166>1,VLOOKUP(CU166,_Afg07,$BU$285)=1),VLOOKUP(CU166,_Afg07,Halmnr)*D95,0) -> 0 | DN166: TRUE | DP166: FALSE | DR166: TRUE | DT166: FALSE | DV166: =IF(VLOOKUP($CU166,_Afg07,$BV$285)=1,IF($DN166,$D95/IF(_Plo2<>"",_Plo2,Plo),0),0) -> 0 | DW166: =IF(VLOOKUP($CU166,_Afg07,$BV$285)=2,IF($DN166,$D95/IF(_Plo2<>"",_Plo2,Plo),0),0) -> 0 | DX166: =IF(VLOOKUP($CU166,_Afg07,$BV$285)=3,IF($DN166,$D95/IF(_Plo2<>"",_Plo2,Plo),0),0) -> 0 | DY166: =IF(VLOOKUP($CU166,_Afg07,$BZ$285)=1,IF($DP166,$D95/IF(_Stu2<>"",_Stu2,Stu),0),0) -> 0 | DZ166: =IF(VLOOKUP($CU166,_Afg07,$BZ$285)=2,IF($DP166,$D95/IF(_Stu2<>"",_Stu2,Stu),0),0) -> 0 | EA166: =IF(VLOOKUP($CU166,_Afg07,$BZ$285)=3,IF($DP166,$D95/IF(_Stu2<>"",_Stu2,Stu),0),0) -> 0 | EB166: =IF(VLOOKUP($CU166,_Afg07,$BW$285)=1,IF($DR166,$D95/IF(Såb2<>"",Såb2,Såb),0),0) -> 0 | EC166: =IF(VLOOKUP($CU166,_Afg07,$BW$285)=2,IF($DR166,$D95/IF(Såb2<>"",Såb2,Såb),0),0) -> 0 | ED166: =IF(VLOOKUP($CU166,_Afg07,$BW$285)=3,IF($DR166,$D95/IF(Såb2<>"",Såb2,Såb),0),0) -> 0 | EE166: =IF(VLOOKUP($CU166,_Afg07,$BX$285)=1,IF($DT166,$D95/IF(_Gly2<>"",_Gly2,Gly),0),0) -> 0 | EF166: =IF(VLOOKUP($CU166,_Afg07,$BX$285)=2,IF($DT166,$D95/IF(_Gly2<>"",_Gly2,Gly),0),0) -> 0 | EG166: =IF(VLOOKUP($CU166,_Afg07,$BX$285)=3,IF($DT166,$D95/IF(_Gly2<>"",_Gly2,Gly),0),0) -> 0 | EH166: =IF(VLOOKUP($CU166,_Afg07,$BY$285)=1,$D95/IF(Såm2<>"",Såm2,Såm),0) -> 0 | EI166: =IF(VLOOKUP($CU166,_Afg07,$BY$285)=2,$D95/IF(Såm2<>"",Såm2,Såm),0) -> 0 | EJ166: =IF(VLOOKUP($CU166,_Afg07,$BY$285)=3,$D95/IF(Såm2<>"",Såm2,Såm),0) -> 0 | EK166: =IF(VLOOKUP($CU166,_Afg07,$CA$285)=1,$D95/IF(_Mej2<>"",_Mej2,Mej)*VLOOKUP($CU166,_Afg07,$CC$285),0) -> 0 | EL166: =IF(VLOOKUP($CU166,_Afg07,$CA$285)=2,$D95/IF(_Mej2<>"",_Mej2,Mej)*VLOOKUP($CU166,_Afg07,$CC$285),0) -> 0 | EM166: =IF(VLOOKUP($CU166,_Afg07,$CA$285)=3,$D95/IF(_Mej2<>"",_Mej2,Mej)*VLOOKUP($CU166,_Afg07,$CC$285),0) -> 0 | EN166: =IF(HalmJa=1,IF(VLOOKUP($CU166,_Afg07,$CB$285)=1,$D95/IF(_Hal3<>"",_Hal3,Hal)+$D95/_Hal2,0),0) -> 0 | EO166: =IF(HalmJa=1,IF(VLOOKUP($CU166,_Afg07,$CB$285)=2,$D95/IF(_Hal3<>"",_Hal3,Hal)+$D95/_Hal2,0),0) -> 0 | EP166: =IF(VLOOKUP($CU166,_Afg07,$CD$285)=1,$D95/IF(_Enk2<>"",_Enk2,Enk),0) -> 0 | EQ166: =IF(VLOOKUP($CU166,_Afg07,$CE$285)=1,$D95/IF(_Kar2<>"",_Kar2,Kar),0) -> 0 | ER166: =IF(VLOOKUP($CU166,_Afg07,$CF$285)=1,$D95/IF(Kopt2<>"",Kopt2,Kopt),0) -> 0 | ES166: =IF(VLOOKUP($CU166,_Afg07,$CG$285)=1,$D95/IF(Ropt2<>"",Ropt2,Ropt),0) -> 0 | ET166: =VLOOKUP($CU166,_Afg07,$CH$285)*$D95/IF(_Gly2<>"",_Gly2,Gly) -> 0 | EU166: =VLOOKUP($CU166,_Afg07,$CI$285)*$D95/IF(Gød2<>"",Gød2,Gød) -> 0
B167: Dækningsbidrag | D167: =IF(Afgnr>1,(D159+D165),"") ->  | E167: =IF(D167<>"","kr.","") ->  | H167: =IF(Alt1nr>1,(H159+H165),"") ->  | I167: =IF(H167<>"","kr.","") ->  | L167: =IF(Alt2nr>1,(L159+L165),"") ->  | M167: =IF(L167<>"","kr.","") ->  | CU167: 1 | CW167: =IF(CU167>1,IF(VLOOKUP(CU167,_Afg07,$BU$285)=2,IF($CU$9=2,-VLOOKUP($R$324,_Afg07,$CV$9)*Erstatpris*D76,0),0),0) -> 0 | CX167: =IF(AND(CU167>1,VLOOKUP(CU167,_Afg07,$BU$285)=1),IF(F76<>"",F76,G76)*D76,0) -> 0 | CY167: =IF(AND(CU167>1,VLOOKUP(CU167,_Afg07,$BU$285)=1),D76,0) -> 0 | DB167: =IF(AND(CU167>1,VLOOKUP(CU167,_Afg07,$BU$285)=1),VLOOKUP(CU167,_Afg07,Halmnr)*D76,0) -> 0 | DN167: TRUE | DP167: FALSE | DR167: TRUE | DT167: FALSE | DV167: =IF(VLOOKUP($CU167,_Afg07,$BV$285)=1,IF($DN167,$D76/IF(_Plo2<>"",_Plo2,Plo),0),0) -> 0 | DW167: =IF(VLOOKUP($CU167,_Afg07,$BV$285)=2,IF($DN167,$D76/IF(_Plo2<>"",_Plo2,Plo),0),0) -> 0 | DX167: =IF(VLOOKUP($CU167,_Afg07,$BV$285)=3,IF($DN167,$D76/IF(_Plo2<>"",_Plo2,Plo),0),0) -> 0 | DY167: =IF(VLOOKUP($CU167,_Afg07,$BZ$285)=1,IF($DP167,$D76/IF(_Stu2<>"",_Stu2,Stu),0),0) -> 0 | DZ167: =IF(VLOOKUP($CU167,_Afg07,$BZ$285)=2,IF($DP167,$D76/IF(_Stu2<>"",_Stu2,Stu),0),0) -> 0 | EA167: =IF(VLOOKUP($CU167,_Afg07,$BZ$285)=3,IF($DP167,$D76/IF(_Stu2<>"",_Stu2,Stu),0),0) -> 0 | EB167: =IF(VLOOKUP($CU167,_Afg07,$BW$285)=1,IF($DR167,$D76/IF(Såb2<>"",Såb2,Såb),0),0) -> 0 | EC167: =IF(VLOOKUP($CU167,_Afg07,$BW$285)=2,IF($DR167,$D76/IF(Såb2<>"",Såb2,Såb),0),0) -> 0 | ED167: =IF(VLOOKUP($CU167,_Afg07,$BW$285)=3,IF($DR167,$D76/IF(Såb2<>"",Såb2,Såb),0),0) -> 0 | EE167: =IF(VLOOKUP($CU167,_Afg07,$BX$285)=1,IF($DT167,$D76/IF(_Gly2<>"",_Gly2,Gly),0),0) -> 0 | EF167: =IF(VLOOKUP($CU167,_Afg07,$BX$285)=2,IF($DT167,$D76/IF(_Gly2<>"",_Gly2,Gly),0),0) -> 0 | EG167: =IF(VLOOKUP($CU167,_Afg07,$BX$285)=3,IF($DT167,$D76/IF(_Gly2<>"",_Gly2,Gly),0),0) -> 0 | EH167: =IF(VLOOKUP($CU167,_Afg07,$BY$285)=1,$D76/IF(Såm2<>"",Såm2,Såm),0) -> 0 | EI167: =IF(VLOOKUP($CU167,_Afg07,$BY$285)=2,$D76/IF(Såm2<>"",Såm2,Såm),0) -> 0 | EJ167: =IF(VLOOKUP($CU167,_Afg07,$BY$285)=3,$D76/IF(Såm2<>"",Såm2,Såm),0) -> 0 | EK167: =IF(VLOOKUP($CU167,_Afg07,$CA$285)=1,$D76/IF(_Mej2<>"",_Mej2,Mej)*VLOOKUP($CU167,_Afg07,$CC$285),0) -> 0 | EL167: =IF(VLOOKUP($CU167,_Afg07,$CA$285)=2,$D76/IF(_Mej2<>"",_Mej2,Mej)*VLOOKUP($CU167,_Afg07,$CC$285),0) -> 0 | EM167: =IF(VLOOKUP($CU167,_Afg07,$CA$285)=3,$D76/IF(_Mej2<>"",_Mej2,Mej)*VLOOKUP($CU167,_Afg07,$CC$285),0) -> 0 | EN167: =IF(HalmJa=1,IF(VLOOKUP($CU167,_Afg07,$CB$285)=1,$D76/IF(_Hal3<>"",_Hal3,Hal)+$D76/_Hal2,0),0) -> 0 | EO167: =IF(HalmJa=1,IF(VLOOKUP($CU167,_Afg07,$CB$285)=2,$D76/IF(_Hal3<>"",_Hal3,Hal)+$D76/_Hal2,0),0) -> 0 | EP167: =IF(VLOOKUP($CU167,_Afg07,$CD$285)=1,$D76/IF(_Enk2<>"",_Enk2,Enk),0) -> 0 | EQ167: =IF(VLOOKUP($CU167,_Afg07,$CE$285)=1,$D76/IF(_Kar2<>"",_Kar2,Kar),0) -> 0 | ER167: =IF(VLOOKUP($CU167,_Afg07,$CF$285)=1,$D76/IF(Kopt2<>"",Kopt2,Kopt),0) -> 0 | ES167: =IF(VLOOKUP($CU167,_Afg07,$CG$285)=1,$D76/IF(Ropt2<>"",Ropt2,Ropt),0) -> 0 | ET167: =VLOOKUP($CU167,_Afg07,$CH$285)*$D76/IF(_Gly2<>"",_Gly2,Gly) -> 0 | EU167: =VLOOKUP($CU167,_Afg07,$CI$285)*$D76/IF(Gød2<>"",Gød2,Gød) -> 0
CL168: Kagediagram 2 | CR168: Kagediagram Lopslag | CU168: 1 | CW168: =IF(CU168>1,IF(VLOOKUP(CU168,_Afg07,$BU$285)=2,IF($CU$9=2,-VLOOKUP($R$324,_Afg07,$CV$9)*Erstatpris*D97,0),0),0) -> 0 | CX168: =IF(AND(CU168>1,VLOOKUP(CU168,_Afg07,$BU$285)=1),IF(F97<>"",F97,G97)*D97,0) -> 0 | CY168: =IF(AND(CU168>1,VLOOKUP(CU168,_Afg07,$BU$285)=1),D97,0) -> 0 | DB168: =IF(AND(CU168>1,VLOOKUP(CU168,_Afg07,$BU$285)=1),VLOOKUP(CU168,_Afg07,Halmnr)*D97,0) -> 0 | DN168: TRUE | DP168: FALSE | DR168: TRUE | DT168: FALSE | DV168: =IF(VLOOKUP($CU168,_Afg07,$BV$285)=1,IF($DN168,$D97/IF(_Plo2<>"",_Plo2,Plo),0),0) -> 0 | DW168: =IF(VLOOKUP($CU168,_Afg07,$BV$285)=2,IF($DN168,$D97/IF(_Plo2<>"",_Plo2,Plo),0),0) -> 0 | DX168: =IF(VLOOKUP($CU168,_Afg07,$BV$285)=3,IF($DN168,$D97/IF(_Plo2<>"",_Plo2,Plo),0),0) -> 0 | DY168: =IF(VLOOKUP($CU168,_Afg07,$BZ$285)=1,IF($DP168,$D97/IF(_Stu2<>"",_Stu2,Stu),0),0) -> 0 | DZ168: =IF(VLOOKUP($CU168,_Afg07,$BZ$285)=2,IF($DP168,$D97/IF(_Stu2<>"",_Stu2,Stu),0),0) -> 0 | EA168: =IF(VLOOKUP($CU168,_Afg07,$BZ$285)=3,IF($DP168,$D97/IF(_Stu2<>"",_Stu2,Stu),0),0) -> 0 | EB168: =IF(VLOOKUP($CU168,_Afg07,$BW$285)=1,IF($DR168,$D97/IF(Såb2<>"",Såb2,Såb),0),0) -> 0 | EC168: =IF(VLOOKUP($CU168,_Afg07,$BW$285)=2,IF($DR168,$D97/IF(Såb2<>"",Såb2,Såb),0),0) -> 0 | ED168: =IF(VLOOKUP($CU168,_Afg07,$BW$285)=3,IF($DR168,$D97/IF(Såb2<>"",Såb2,Såb),0),0) -> 0 | EE168: =IF(VLOOKUP($CU168,_Afg07,$BX$285)=1,IF($DT168,$D97/IF(_Gly2<>"",_Gly2,Gly),0),0) -> 0 | EF168: =IF(VLOOKUP($CU168,_Afg07,$BX$285)=2,IF($DT168,$D97/IF(_Gly2<>"",_Gly2,Gly),0),0) -> 0 | EG168: =IF(VLOOKUP($CU168,_Afg07,$BX$285)=3,IF($DT168,$D97/IF(_Gly2<>"",_Gly2,Gly),0),0) -> 0 | EH168: =IF(VLOOKUP($CU168,_Afg07,$BY$285)=1,$D97/IF(Såm2<>"",Såm2,Såm),0) -> 0 | EI168: =IF(VLOOKUP($CU168,_Afg07,$BY$285)=2,$D97/IF(Såm2<>"",Såm2,Såm),0) -> 0 | EJ168: =IF(VLOOKUP($CU168,_Afg07,$BY$285)=3,$D97/IF(Såm2<>"",Såm2,Såm),0) -> 0 | EK168: =IF(VLOOKUP($CU168,_Afg07,$CA$285)=1,$D97/IF(_Mej2<>"",_Mej2,Mej)*VLOOKUP($CU168,_Afg07,$CC$285),0) -> 0 | EL168: =IF(VLOOKUP($CU168,_Afg07,$CA$285)=2,$D97/IF(_Mej2<>"",_Mej2,Mej)*VLOOKUP($CU168,_Afg07,$CC$285),0) -> 0 | EM168: =IF(VLOOKUP($CU168,_Afg07,$CA$285)=3,$D97/IF(_Mej2<>"",_Mej2,Mej)*VLOOKUP($CU168,_Afg07,$CC$285),0) -> 0 | EN168: =IF(HalmJa=1,IF(VLOOKUP($CU168,_Afg07,$CB$285)=1,$D97/IF(_Hal3<>"",_Hal3,Hal)+$D97/_Hal2,0),0) -> 0 | EO168: =IF(HalmJa=1,IF(VLOOKUP($CU168,_Afg07,$CB$285)=2,$D97/IF(_Hal3<>"",_Hal3,Hal)+$D97/_Hal2,0),0) -> 0 | EP168: =IF(VLOOKUP($CU168,_Afg07,$CD$285)=1,$D97/IF(_Enk2<>"",_Enk2,Enk),0) -> 0 | EQ168: =IF(VLOOKUP($CU168,_Afg07,$CE$285)=1,$D97/IF(_Kar2<>"",_Kar2,Kar),0) -> 0 | ER168: =IF(VLOOKUP($CU168,_Afg07,$CF$285)=1,$D97/IF(Kopt2<>"",Kopt2,Kopt),0) -> 0 | ES168: =IF(VLOOKUP($CU168,_Afg07,$CG$285)=1,$D97/IF(Ropt2<>"",Ropt2,Ropt),0) -> 0 | ET168: =VLOOKUP($CU168,_Afg07,$CH$285)*$D97/IF(_Gly2<>"",_Gly2,Gly) -> 0 | EU168: =VLOOKUP($CU168,_Afg07,$CI$285)*$D97/IF(Gød2<>"",Gød2,Gød) -> 0
B169: Maskiner og arbejde | D169: =IF(Afgnr=1,"",IF(Afgnr>1,IF(T169<>"",T169,-VLOOKUP(Afgnr,_Afg07,$CW$7)),"")-IF(Hdgnr>1,VLOOKUP(Afgnr,_Afg07,51,FALSE)*VLOOKUP(Afgnr,_Afg07,71,FALSE),0)) ->  | E169: =IF(D169<>"","kr.","") ->  | H169: =IF(CV139=1,"",IF(CV139>1,IF(V169<>"",V169,-VLOOKUP(CV139,_Afg07,$CW$7)),"")-IF(Hdgnr>1,VLOOKUP(Afgnr,_Afg07,51,FALSE)*VLOOKUP(Afgnr,_Afg07,71,FALSE),0)) ->  | I169: =IF(H169<>"","kr.","") ->  | L169: =IF(CW139=1,"",IF(CW139>1,IF(X169<>"",X169,-VLOOKUP(CW139,_Afg07,$CW$7)),"")-IF(Hdgnr>1,VLOOKUP(Afgnr,_Afg07,51,FALSE)*VLOOKUP(Afgnr,_Afg07,71,FALSE),0)) ->  | M169: =IF(L169<>"","kr.","") ->  | S169: Maskiner og arbejde | CL169: =IF(CM169=0,"",_xlfn.CONCAT(CM169," ","(",CO169,"ha",")")) ->  | CM169: =IF(CN169="Egen afgrøde",$C$43,CN169) -> 0 | CN169: =IF(CR169=$CM$151,0,IF(CR169=$CM$152,0,IF(CR169=$CM$153,0,CR169))) -> 0 | CO169: =IF(CR169=$CM$151,0,IF(CR169=$CM$152,0,IF(CR169=$CM$153,0,CS169))) -> 0 | CR169: =VLOOKUP(CU160,$R$288:$S$342,2) -> 0 | CS169: =D89 -> 0 | CU169: 1 | CW169: =IF(CU169>1,IF(VLOOKUP(CU169,_Afg07,$BU$285)=2,IF($CU$9=2,-VLOOKUP($R$324,_Afg07,$CV$9)*Erstatpris*D78,0),0),0) -> 0 | CX169: =IF(AND(CU169>1,VLOOKUP(CU169,_Afg07,$BU$285)=1),IF(F78<>"",F78,G78)*D78,0) -> 0 | CY169: =IF(AND(CU169>1,VLOOKUP(CU169,_Afg07,$BU$285)=1),D78,0) -> 0 | DB169: =IF(AND(CU169>1,VLOOKUP(CU169,_Afg07,$BU$285)=1),VLOOKUP(CU169,_Afg07,Halmnr)*D78,0) -> 0 | DG169: Lager til korn | DN169: TRUE | DP169: FALSE | DR169: TRUE | DT169: FALSE | DV169: =IF(VLOOKUP($CU169,_Afg07,$BV$285)=1,IF($DN169,$D78/IF(_Plo2<>"",_Plo2,Plo),0),0) -> 0 | DW169: =IF(VLOOKUP($CU169,_Afg07,$BV$285)=2,IF($DN169,$D78/IF(_Plo2<>"",_Plo2,Plo),0),0) -> 0 | DX169: =IF(VLOOKUP($CU169,_Afg07,$BV$285)=3,IF($DN169,$D78/IF(_Plo2<>"",_Plo2,Plo),0),0) -> 0 | DY169: =IF(VLOOKUP($CU169,_Afg07,$BZ$285)=1,IF($DP169,$D78/IF(_Stu2<>"",_Stu2,Stu),0),0) -> 0 | DZ169: =IF(VLOOKUP($CU169,_Afg07,$BZ$285)=2,IF($DP169,$D78/IF(_Stu2<>"",_Stu2,Stu),0),0) -> 0 | EA169: =IF(VLOOKUP($CU169,_Afg07,$BZ$285)=3,IF($DP169,$D78/IF(_Stu2<>"",_Stu2,Stu),0),0) -> 0 | EB169: =IF(VLOOKUP($CU169,_Afg07,$BW$285)=1,IF($DR169,$D78/IF(Såb2<>"",Såb2,Såb),0),0) -> 0 | EC169: =IF(VLOOKUP($CU169,_Afg07,$BW$285)=2,IF($DR169,$D78/IF(Såb2<>"",Såb2,Såb),0),0) -> 0 | ED169: =IF(VLOOKUP($CU169,_Afg07,$BW$285)=3,IF($DR169,$D78/IF(Såb2<>"",Såb2,Såb),0),0) -> 0 | EE169: =IF(VLOOKUP($CU169,_Afg07,$BX$285)=1,IF($DT169,$D78/IF(_Gly2<>"",_Gly2,Gly),0),0) -> 0 | EF169: =IF(VLOOKUP($CU169,_Afg07,$BX$285)=2,IF($DT169,$D78/IF(_Gly2<>"",_Gly2,Gly),0),0) -> 0 | EG169: =IF(VLOOKUP($CU169,_Afg07,$BX$285)=3,IF($DT169,$D78/IF(_Gly2<>"",_Gly2,Gly),0),0) -> 0 | EH169: =IF(VLOOKUP($CU169,_Afg07,$BY$285)=1,$D78/IF(Såm2<>"",Såm2,Såm),0) -> 0 | EI169: =IF(VLOOKUP($CU169,_Afg07,$BY$285)=2,$D78/IF(Såm2<>"",Såm2,Såm),0) -> 0 | EJ169: =IF(VLOOKUP($CU169,_Afg07,$BY$285)=3,$D78/IF(Såm2<>"",Såm2,Såm),0) -> 0 | EK169: =IF(VLOOKUP($CU169,_Afg07,$CA$285)=1,$D78/IF(_Mej2<>"",_Mej2,Mej)*VLOOKUP($CU169,_Afg07,$CC$285),0) -> 0 | EL169: =IF(VLOOKUP($CU169,_Afg07,$CA$285)=2,$D78/IF(_Mej2<>"",_Mej2,Mej)*VLOOKUP($CU169,_Afg07,$CC$285),0) -> 0 | EM169: =IF(VLOOKUP($CU169,_Afg07,$CA$285)=3,$D78/IF(_Mej2<>"",_Mej2,Mej)*VLOOKUP($CU169,_Afg07,$CC$285),0) -> 0 | EN169: =IF(HalmJa=1,IF(VLOOKUP($CU169,_Afg07,$CB$285)=1,$D78/IF(_Hal3<>"",_Hal3,Hal)+$D78/_Hal2,0),0) -> 0 | EO169: =IF(HalmJa=1,IF(VLOOKUP($CU169,_Afg07,$CB$285)=2,$D78/IF(_Hal3<>"",_Hal3,Hal)+$D78/_Hal2,0),0) -> 0 | EP169: =IF(VLOOKUP($CU169,_Afg07,$CD$285)=1,$D78/IF(_Enk2<>"",_Enk2,Enk),0) -> 0 | EQ169: =IF(VLOOKUP($CU169,_Afg07,$CE$285)=1,$D78/IF(_Kar2<>"",_Kar2,Kar),0) -> 0 | ER169: =IF(VLOOKUP($CU169,_Afg07,$CF$285)=1,$D78/IF(Kopt2<>"",Kopt2,Kopt),0) -> 0 | ES169: =IF(VLOOKUP($CU169,_Afg07,$CG$285)=1,$D78/IF(Ropt2<>"",Ropt2,Ropt),0) -> 0 | ET169: =VLOOKUP($CU169,_Afg07,$CH$285)*$D78/IF(_Gly2<>"",_Gly2,Gly) -> 0 | EU169: =VLOOKUP($CU169,_Afg07,$CI$285)*$D78/IF(Gød2<>"",Gød2,Gød) -> 0
B170: =IF(Tørringnr=1,"Tørring (løntørring)","Tørring (korn i eget tørreri)") -> Tørring (korn i eget tørreri) | D170: =IF(Afgnr>1,IF(T170<>"",T170,IF(VLOOKUP(Afgnr,_Afg07,$BU$285)=2,-VLOOKUP(Afgnr,_Afg07,$BN$285)*D$152,IF(AND(VLOOKUP(Afgnr,_Afg07,$BU$285)=1,$CX$5=4),0,IF($CX$7=1,-VLOOKUP(Afgnr,_Afg07,$BN$285)*D$152,-VLOOKUP(Afgnr,_Afg07,$BO$285)*D$152)))),"") ->  | E170: =IF(D170<>"","kr.","") ->  | H170: =IF(Alt1nr>1,IF(V170<>"",V170,IF(VLOOKUP(Alt1nr,_Afg07,$BU$285)=2,-VLOOKUP(Alt1nr,_Afg07,$BN$285)*H152,IF(AND(VLOOKUP(Alt1nr,_Afg07,$BU$285)=1,$CX$5=4),0,IF($CX$7=1,-VLOOKUP(Alt1nr,_Afg07,$BN$285)*H152,-VLOOKUP(Alt1nr,_Afg07,$BO$285)*H152)))),"") ->  | I170: =IF(H170<>"","kr.","") ->  | L170: =IF(Alt2nr>1,IF(X170<>"",X170,IF(VLOOKUP(Alt2nr,_Afg07,$BU$285)=2,-VLOOKUP(Alt2nr,_Afg07,$BN$285)*L152,IF(AND(VLOOKUP(Alt2nr,_Afg07,$BU$285)=1,$CX$5=4),0,IF($CX$7=1,-VLOOKUP(Alt2nr,_Afg07,$BN$285)*L152,-VLOOKUP(Alt2nr,_Afg07,$BO$285)*L152)))),"") ->  | M170: =IF(L170<>"","kr.","") ->  | S170: =B170 -> Tørring (korn i eget tørreri) | CL170: =IF(CM170=0,"",_xlfn.CONCAT(CM170," ","(",CO170,"ha",")")) ->  | CM170: =IF(CN170="Egen afgrøde",$C$43,CN170) -> 0 | CN170: =IF(CR170=$CM$151,0,IF(CR170=$CM$152,0,IF(CR170=$CM$153,0,CR170))) -> 0 | CO170: =IF(CR170=$CM$151,0,IF(CR170=$CM$152,0,IF(CR170=$CM$153,0,CS170))) -> 0 | CR170: =VLOOKUP(CU162,$R$288:$S$342,2) -> 0 | CS170: =D91 -> 0 | CU170: 1 | CW170: =IF(CU170>1,IF(VLOOKUP(CU170,_Afg07,$BU$285)=2,IF($CU$9=2,-VLOOKUP($R$324,_Afg07,$CV$9)*Erstatpris*D99,0),0),0) -> 0 | CX170: =IF(AND(CU170>1,VLOOKUP(CU170,_Afg07,$BU$285)=1),IF(F99<>"",F99,G99)*D99,0) -> 0 | CY170: =IF(AND(CU170>1,VLOOKUP(CU170,_Afg07,$BU$285)=1),D99,0) -> 0 | DB170: =IF(AND(CU170>1,VLOOKUP(CU170,_Afg07,$BU$285)=1),VLOOKUP(CU170,_Afg07,Halmnr)*D99,0) -> 0 | DF170: 1 | DN170: TRUE | DP170: FALSE | DR170: TRUE | DT170: FALSE | DV170: =IF(VLOOKUP($CU170,_Afg07,$BV$285)=1,IF($DN170,$D99/IF(_Plo2<>"",_Plo2,Plo),0),0) -> 0 | DW170: =IF(VLOOKUP($CU170,_Afg07,$BV$285)=2,IF($DN170,$D99/IF(_Plo2<>"",_Plo2,Plo),0),0) -> 0 | DX170: =IF(VLOOKUP($CU170,_Afg07,$BV$285)=3,IF($DN170,$D99/IF(_Plo2<>"",_Plo2,Plo),0),0) -> 0 | DY170: =IF(VLOOKUP($CU170,_Afg07,$BZ$285)=1,IF($DP170,$D99/IF(_Stu2<>"",_Stu2,Stu),0),0) -> 0 | DZ170: =IF(VLOOKUP($CU170,_Afg07,$BZ$285)=2,IF($DP170,$D99/IF(_Stu2<>"",_Stu2,Stu),0),0) -> 0 | EA170: =IF(VLOOKUP($CU170,_Afg07,$BZ$285)=3,IF($DP170,$D99/IF(_Stu2<>"",_Stu2,Stu),0),0) -> 0 | EB170: =IF(VLOOKUP($CU170,_Afg07,$BW$285)=1,IF($DR170,$D99/IF(Såb2<>"",Såb2,Såb),0),0) -> 0 | EC170: =IF(VLOOKUP($CU170,_Afg07,$BW$285)=2,IF($DR170,$D99/IF(Såb2<>"",Såb2,Såb),0),0) -> 0 | ED170: =IF(VLOOKUP($CU170,_Afg07,$BW$285)=3,IF($DR170,$D99/IF(Såb2<>"",Såb2,Såb),0),0) -> 0 | EE170: =IF(VLOOKUP($CU170,_Afg07,$BX$285)=1,IF($DT170,$D99/IF(_Gly2<>"",_Gly2,Gly),0),0) -> 0 | EF170: =IF(VLOOKUP($CU170,_Afg07,$BX$285)=2,IF($DT170,$D99/IF(_Gly2<>"",_Gly2,Gly),0),0) -> 0 | EG170: =IF(VLOOKUP($CU170,_Afg07,$BX$285)=3,IF($DT170,$D99/IF(_Gly2<>"",_Gly2,Gly),0),0) -> 0 | EH170: =IF(VLOOKUP($CU170,_Afg07,$BY$285)=1,$D99/IF(Såm2<>"",Såm2,Såm),0) -> 0 | EI170: =IF(VLOOKUP($CU170,_Afg07,$BY$285)=2,$D99/IF(Såm2<>"",Såm2,Såm),0) -> 0 | EJ170: =IF(VLOOKUP($CU170,_Afg07,$BY$285)=3,$D99/IF(Såm2<>"",Såm2,Såm),0) -> 0 | EK170: =IF(VLOOKUP($CU170,_Afg07,$CA$285)=1,$D99/IF(_Mej2<>"",_Mej2,Mej)*VLOOKUP($CU170,_Afg07,$CC$285),0) -> 0 | EL170: =IF(VLOOKUP($CU170,_Afg07,$CA$285)=2,$D99/IF(_Mej2<>"",_Mej2,Mej)*VLOOKUP($CU170,_Afg07,$CC$285),0) -> 0 | EM170: =IF(VLOOKUP($CU170,_Afg07,$CA$285)=3,$D99/IF(_Mej2<>"",_Mej2,Mej)*VLOOKUP($CU170,_Afg07,$CC$285),0) -> 0 | EN170: =IF(HalmJa=1,IF(VLOOKUP($CU170,_Afg07,$CB$285)=1,$D99/IF(_Hal3<>"",_Hal3,Hal)+$D99/_Hal2,0),0) -> 0 | EO170: =IF(HalmJa=1,IF(VLOOKUP($CU170,_Afg07,$CB$285)=2,$D99/IF(_Hal3<>"",_Hal3,Hal)+$D99/_Hal2,0),0) -> 0 | EP170: =IF(VLOOKUP($CU170,_Afg07,$CD$285)=1,$D99/IF(_Enk2<>"",_Enk2,Enk),0) -> 0 | EQ170: =IF(VLOOKUP($CU170,_Afg07,$CE$285)=1,$D99/IF(_Kar2<>"",_Kar2,Kar),0) -> 0 | ER170: =IF(VLOOKUP($CU170,_Afg07,$CF$285)=1,$D99/IF(Kopt2<>"",Kopt2,Kopt),0) -> 0 | ES170: =IF(VLOOKUP($CU170,_Afg07,$CG$285)=1,$D99/IF(Ropt2<>"",Ropt2,Ropt),0) -> 0 | ET170: =VLOOKUP($CU170,_Afg07,$CH$285)*$D99/IF(_Gly2<>"",_Gly2,Gly) -> 0 | EU170: =VLOOKUP($CU170,_Afg07,$CI$285)*$D99/IF(Gød2<>"",Gød2,Gød) -> 0
B171: =IF(Købernr=2,"Erstatningskorn","") ->  | D171: =IF(CU139>1,IF($CU$9=2,IF(VLOOKUP(CU139,_Afg07,BU285)=2,(-VLOOKUP($R$324,_Afg07,$CV$9)*Erstatpris),IF(VLOOKUP(CU139,_Afg07,BU285)=3,$CW$173,IF(VLOOKUP(CU139,_Afg07,BU285)=4,$CW$174,""))),""),"") ->  | E171: =IF(D171<>"","kr.","") ->  | H171: =IF(CV139>1,IF($CU$9=2,IF(VLOOKUP(CV139,_Afg07,BU285)=2,(-VLOOKUP($R$324,_Afg07,$CV$9)*Erstatpris),IF(VLOOKUP(CV139,_Afg07,BU285)=3,$CW$173,IF(VLOOKUP(CV139,_Afg07,BU285)=4,$CW$174,""))),""),"") ->  | I171: =IF(H171<>"","kr.","") ->  | L171: =IF(CW139>1,IF($CU$9=2,IF(VLOOKUP(CW139,_Afg07,BU285)=2,(-VLOOKUP($R$324,_Afg07,$CV$9)*Erstatpris),IF(VLOOKUP(CW139,_Afg07,BU285)=3,$CW$173,IF(VLOOKUP(CW139,_Afg07,BU285)=4,$CW$174,""))),""),"") ->  | M171: =IF(L171<>"","kr.","") ->  | T171: =IF(OR(T169>0,T170>0),"Husk minus foran","") ->  | V171: =IF(OR(V169>0,V170>0),"Husk minus foran","") ->  | X171: =IF(OR(X169>0,X170>0),"Husk minus foran","") ->  | CM171: 0 | CN171: 0 | CO171: 0 | CR171: =VLOOKUP(CU164,$R$288:$S$342,2) -> 0 | CS171: =D93 -> 0 | CU171: 1 | CW171: =IF(CU171>1,IF(VLOOKUP(CU171,_Afg07,$BU$285)=2,IF($CU$9=2,-VLOOKUP($R$324,_Afg07,$CV$9)*Erstatpris*D80,0),0),0) -> 0 | CX171: =IF(AND(CU171>1,VLOOKUP(CU171,_Afg07,$BU$285)=1),IF(F80<>"",F80,G80)*D80,0) -> 0 | CY171: =IF(AND(CU171>1,VLOOKUP(CU171,_Afg07,$BU$285)=1),D80,0) -> 0 | DB171: =IF(AND(CU171>1,VLOOKUP(CU171,_Afg07,$BU$285)=1),VLOOKUP(CU171,_Afg07,Halmnr)*D80,0) -> 0 | DF171: 2 | DG171: Planlager | DN171: TRUE | DP171: FALSE | DR171: TRUE | DT171: FALSE | DV171: =IF(VLOOKUP($CU171,_Afg07,$BV$285)=1,IF($DN171,$D80/IF(_Plo2<>"",_Plo2,Plo),0),0) -> 0 | DW171: =IF(VLOOKUP($CU171,_Afg07,$BV$285)=2,IF($DN171,$D80/IF(_Plo2<>"",_Plo2,Plo),0),0) -> 0 | DX171: =IF(VLOOKUP($CU171,_Afg07,$BV$285)=3,IF($DN171,$D80/IF(_Plo2<>"",_Plo2,Plo),0),0) -> 0 | DY171: =IF(VLOOKUP($CU171,_Afg07,$BZ$285)=1,IF($DP171,$D80/IF(_Stu2<>"",_Stu2,Stu),0),0) -> 0 | DZ171: =IF(VLOOKUP($CU171,_Afg07,$BZ$285)=2,IF($DP171,$D80/IF(_Stu2<>"",_Stu2,Stu),0),0) -> 0 | EA171: =IF(VLOOKUP($CU171,_Afg07,$BZ$285)=3,IF($DP171,$D80/IF(_Stu2<>"",_Stu2,Stu),0),0) -> 0 | EB171: =IF(VLOOKUP($CU171,_Afg07,$BW$285)=1,IF($DR171,$D80/IF(Såb2<>"",Såb2,Såb),0),0) -> 0 | EC171: =IF(VLOOKUP($CU171,_Afg07,$BW$285)=2,IF($DR171,$D80/IF(Såb2<>"",Såb2,Såb),0),0) -> 0 | ED171: =IF(VLOOKUP($CU171,_Afg07,$BW$285)=3,IF($DR171,$D80/IF(Såb2<>"",Såb2,Såb),0),0) -> 0 | EE171: =IF(VLOOKUP($CU171,_Afg07,$BX$285)=1,IF($DT171,$D80/IF(_Gly2<>"",_Gly2,Gly),0),0) -> 0 | EF171: =IF(VLOOKUP($CU171,_Afg07,$BX$285)=2,IF($DT171,$D80/IF(_Gly2<>"",_Gly2,Gly),0),0) -> 0 | EG171: =IF(VLOOKUP($CU171,_Afg07,$BX$285)=3,IF($DT171,$D80/IF(_Gly2<>"",_Gly2,Gly),0),0) -> 0 | EH171: =IF(VLOOKUP($CU171,_Afg07,$BY$285)=1,$D80/IF(Såm2<>"",Såm2,Såm),0) -> 0 | EI171: =IF(VLOOKUP($CU171,_Afg07,$BY$285)=2,$D80/IF(Såm2<>"",Såm2,Såm),0) -> 0 | EJ171: =IF(VLOOKUP($CU171,_Afg07,$BY$285)=3,$D80/IF(Såm2<>"",Såm2,Såm),0) -> 0 | EK171: =IF(VLOOKUP($CU171,_Afg07,$CA$285)=1,$D80/IF(_Mej2<>"",_Mej2,Mej)*VLOOKUP($CU171,_Afg07,$CC$285),0) -> 0 | EL171: =IF(VLOOKUP($CU171,_Afg07,$CA$285)=2,$D80/IF(_Mej2<>"",_Mej2,Mej)*VLOOKUP($CU171,_Afg07,$CC$285),0) -> 0 | EM171: =IF(VLOOKUP($CU171,_Afg07,$CA$285)=3,$D80/IF(_Mej2<>"",_Mej2,Mej)*VLOOKUP($CU171,_Afg07,$CC$285),0) -> 0 | EN171: =IF(HalmJa=1,IF(VLOOKUP($CU171,_Afg07,$CB$285)=1,$D80/IF(_Hal3<>"",_Hal3,Hal)+$D80/_Hal2,0),0) -> 0 | EO171: =IF(HalmJa=1,IF(VLOOKUP($CU171,_Afg07,$CB$285)=2,$D80/IF(_Hal3<>"",_Hal3,Hal)+$D80/_Hal2,0),0) -> 0 | EP171: =IF(VLOOKUP($CU171,_Afg07,$CD$285)=1,$D80/IF(_Enk2<>"",_Enk2,Enk),0) -> 0 | EQ171: =IF(VLOOKUP($CU171,_Afg07,$CE$285)=1,$D80/IF(_Kar2<>"",_Kar2,Kar),0) -> 0 | ER171: =IF(VLOOKUP($CU171,_Afg07,$CF$285)=1,$D80/IF(Kopt2<>"",Kopt2,Kopt),0) -> 0 | ES171: =IF(VLOOKUP($CU171,_Afg07,$CG$285)=1,$D80/IF(Ropt2<>"",Ropt2,Ropt),0) -> 0 | ET171: =VLOOKUP($CU171,_Afg07,$CH$285)*$D80/IF(_Gly2<>"",_Gly2,Gly) -> 0 | EU171: =VLOOKUP($CU171,_Afg07,$CI$285)*$D80/IF(Gød2<>"",Gød2,Gød) -> 0
CM172: 0 | CN172: 0 | CO172: 0 | CR172: =VLOOKUP(CU166,$R$288:$S$342,2) -> 0 | CS172: =D95 -> 0 | CU172: 1 | CW172: =IF(CU172>1,IF(VLOOKUP(CU172,_Afg07,$BU$285)=2,IF($CU$9=2,-VLOOKUP($R$324,_Afg07,$CV$9)*Erstatpris*D101,0),0),0) -> 0 | CX172: =IF(AND(CU172>1,VLOOKUP(CU172,_Afg07,$BU$285)=1),IF(F101<>"",F101,G101)*D101,0) -> 0 | CY172: =IF(AND(CU172>1,VLOOKUP(CU172,_Afg07,$BU$285)=1),D101,0) -> 0 | CZ172: Kornudbytte i gns pr. ha af alle ha i sædskiftet | DA172: Udbytte foderkorn i gns pr. ha med foderkorn | DB172: =IF(AND(CU172>1,VLOOKUP(CU172,_Afg07,$BU$285)=1),VLOOKUP(CU172,_Afg07,Halmnr)*D101,0) -> 0 | DF172: 3 | DG172: Stålsilo | DN172: TRUE | DP172: FALSE | DR172: TRUE | DT172: FALSE | DV172: =IF(VLOOKUP($CU172,_Afg07,$BV$285)=1,IF($DN172,$D101/IF(_Plo2<>"",_Plo2,Plo),0),0) -> 0 | DW172: =IF(VLOOKUP($CU172,_Afg07,$BV$285)=2,IF($DN172,$D101/IF(_Plo2<>"",_Plo2,Plo),0),0) -> 0 | DX172: =IF(VLOOKUP($CU172,_Afg07,$BV$285)=3,IF($DN172,$D101/IF(_Plo2<>"",_Plo2,Plo),0),0) -> 0 | DY172: =IF(VLOOKUP($CU172,_Afg07,$BZ$285)=1,IF($DP172,$D101/IF(_Stu2<>"",_Stu2,Stu),0),0) -> 0 | DZ172: =IF(VLOOKUP($CU172,_Afg07,$BZ$285)=2,IF($DP172,$D101/IF(_Stu2<>"",_Stu2,Stu),0),0) -> 0 | EA172: =IF(VLOOKUP($CU172,_Afg07,$BZ$285)=3,IF($DP172,$D101/IF(_Stu2<>"",_Stu2,Stu),0),0) -> 0 | EB172: =IF(VLOOKUP($CU172,_Afg07,$BW$285)=1,IF($DR172,$D101/IF(Såb2<>"",Såb2,Såb),0),0) -> 0 | EC172: =IF(VLOOKUP($CU172,_Afg07,$BW$285)=2,IF($DR172,$D101/IF(Såb2<>"",Såb2,Såb),0),0) -> 0 | ED172: =IF(VLOOKUP($CU172,_Afg07,$BW$285)=3,IF($DR172,$D101/IF(Såb2<>"",Såb2,Såb),0),0) -> 0 | EE172: =IF(VLOOKUP($CU172,_Afg07,$BX$285)=1,IF($DT172,$D101/IF(_Gly2<>"",_Gly2,Gly),0),0) -> 0 | EF172: =IF(VLOOKUP($CU172,_Afg07,$BX$285)=2,IF($DT172,$D101/IF(_Gly2<>"",_Gly2,Gly),0),0) -> 0 | EG172: =IF(VLOOKUP($CU172,_Afg07,$BX$285)=3,IF($DT172,$D101/IF(_Gly2<>"",_Gly2,Gly),0),0) -> 0 | EH172: =IF(VLOOKUP($CU172,_Afg07,$BY$285)=1,$D101/IF(Såm2<>"",Såm2,Såm),0) -> 0 | EI172: =IF(VLOOKUP($CU172,_Afg07,$BY$285)=2,$D101/IF(Såm2<>"",Såm2,Såm),0) -> 0 | EJ172: =IF(VLOOKUP($CU172,_Afg07,$BY$285)=3,$D101/IF(Såm2<>"",Såm2,Såm),0) -> 0 | EK172: =IF(VLOOKUP($CU172,_Afg07,$CA$285)=1,$D101/IF(_Mej2<>"",_Mej2,Mej)*VLOOKUP($CU172,_Afg07,$CC$285),0) -> 0 | EL172: =IF(VLOOKUP($CU172,_Afg07,$CA$285)=2,$D101/IF(_Mej2<>"",_Mej2,Mej)*VLOOKUP($CU172,_Afg07,$CC$285),0) -> 0 | EM172: =IF(VLOOKUP($CU172,_Afg07,$CA$285)=3,$D101/IF(_Mej2<>"",_Mej2,Mej)*VLOOKUP($CU172,_Afg07,$CC$285),0) -> 0 | EN172: =IF(HalmJa=1,IF(VLOOKUP($CU172,_Afg07,$CB$285)=1,$D101/IF(_Hal3<>"",_Hal3,Hal)+$D101/_Hal2,0),0) -> 0 | EO172: =IF(HalmJa=1,IF(VLOOKUP($CU172,_Afg07,$CB$285)=2,$D101/IF(_Hal3<>"",_Hal3,Hal)+$D101/_Hal2,0),0) -> 0 | EP172: =IF(VLOOKUP($CU172,_Afg07,$CD$285)=1,$D101/IF(_Enk2<>"",_Enk2,Enk),0) -> 0 | EQ172: =IF(VLOOKUP($CU172,_Afg07,$CE$285)=1,$D101/IF(_Kar2<>"",_Kar2,Kar),0) -> 0 | ER172: =IF(VLOOKUP($CU172,_Afg07,$CF$285)=1,$D101/IF(Kopt2<>"",Kopt2,Kopt),0) -> 0 | ES172: =IF(VLOOKUP($CU172,_Afg07,$CG$285)=1,$D101/IF(Ropt2<>"",Ropt2,Ropt),0) -> 0 | ET172: =VLOOKUP($CU172,_Afg07,$CH$285)*$D101/IF(_Gly2<>"",_Gly2,Gly) -> 0 | EU172: =VLOOKUP($CU172,_Afg07,$CI$285)*$D101/IF(Gød2<>"",Gød2,Gød) -> 0
B173: Resultat | D173: =IF(Afgnr>1,IF(D171="",D167+D169+D170,D167+D169+D170+D171),"") ->  | E173: =IF(D173<>"","kr.","") ->  | H173: =IF(Alt1nr>1,IF(H171="",H167+H169+H170,H167+H169+H170+H171),"") ->  | I173: =IF(H173<>"","kr.","") ->  | L173: =IF(Alt2nr>1,IF(L171="",L167+L169+L170,L167+L169+L170+L171),"") ->  | M173: =IF(L173<>"","kr.","") ->  | CM173: 0 | CN173: 0 | CO173: 0 | CR173: =VLOOKUP(CU168,$R$288:$S$342,2) -> 0 | CS173: =D97 -> 0 | CV173: Erstatkorn 1, gns. | CW173: =(CW159+CW161+CW163+CW165+CW167+CW169+CW171)/D82 ->  | CX173: =CX159+CX161+CX163+CX165+CX167+CX169+CX171 -> 0 | CY173: =CY159+CY161+CY163+CY165+CY167+CY169+CY171 -> 0 | CZ173: =CX173/D82 ->  | DA173: =CX173/CY173 ->  | DB173: =DB159+DB161+DB163+DB165+DB167+DB169+DB171 -> 0 | DF173: 4 | DG173: Gastæt silo | DU173: Sædskifte 1 | DV173: =DV159+DV161+DV163+DV165+DV167+DV169+DV171 -> 0 | DW173: =DW159+DW161+DW163+DW165+DW167+DW169+DW171 -> 0 | DX173: 0 | DY173: 0 | DZ173: 0 | EA173: 0 | EB173: 0 | EC173: 0 | ED173: 0 | EE173: 0 | EF173: 0 | EG173: 0 | EH173: 0 | EI173: 0 | EJ173: 0 | EK173: 0 | EL173: 0 | EM173: 0 | EN173: 0 | EO173: 0 | EP173: =EP159+EP161+EP163+EP165+EP167+EP169+EP171 -> 0 | EQ173: 0 | ER173: 0 | ES173: 0 | ET173: 0 | EU173: 0 | EV173: =D82*DE_ha*ton_DE/IF(_Gyl2<>"",_Gyl2,Gyl) -> 0
CM174: 0 | CN174: 0 | CO174: 0 | CR174: =VLOOKUP(CU170,$R$288:$S$342,2) -> 0 | CS174: =D99 -> 0 | CV174: Erstatkorn 2, gns. | CW174: =(CW160+CW162+CW164+CW166+CW168+CW170+CW172)/D103 ->  | CX174: =CX160+CX162+CX164+CX166+CX168+CX170+CX172 -> 0 | CY174: =CY160+CY162+CY164+CY166+CY168+CY170+CY172 -> 0 | CZ174: =CX174/D103 ->  | DA174: =CX174/CY174 ->  | DB174: =DB160+DB162+DB164+DB166+DB168+DB170+DB172 -> 0 | DU174: Sædskifte 2 | DV174: =DV160+DV162+DV164+DV166+DV168+DV170+DV172 -> 0 | DW174: =DW160+DW162+DW164+DW166+DW168+DW170+DW172 -> 0 | DX174: 0 | DY174: 0 | DZ174: 0 | EA174: 0 | EB174: 0 | EC174: 0 | ED174: 0 | EE174: 0 | EF174: 0 | EG174: 0 | EH174: 0 | EI174: 0 | EJ174: 0 | EK174: 0 | EL174: 0 | EM174: 0 | EN174: 0 | EO174: 0 | EP174: 0 | EQ174: 0 | ER174: 0 | ES174: 0 | ET174: 0 | EU174: 0 | EV174: =D103*DE_ha*ton_DE/IF(_Gyl2<>"",_Gyl2,Gyl) -> 0
CM175: 0 | CN175: 0 | CO175: 0 | CR175: =VLOOKUP(CU172,$R$288:$S$342,2) -> 0 | CS175: =D101 -> 0 | DG175: Tørring korn
B176: Ligevægtspris | H176: =IF(ISERROR(IF(AND(CV139>1,CV139<R340,CU139>1),(($D$173-H173)/H152)+H153,"")),"",IF(AND(CV139>1,CV139<R340,CU139>1),(($D$173-H173)/H152)+H153,"")) ->  | I176: =IF(H176<>"","kr.","") ->  | L176: =IF(ISERROR(IF(AND(CW139>1,CW139<R340,CU139>1),(($D$173-L173)/L152)+L153,"")),"",IF(AND(CW139>1,CW139<R340,CU139>1),(($D$173-L173)/L152)+L153,"")) ->  | M176: =IF(L176<>"","kr.","") ->  | DF176: 1 | DG176: Løntørring | DV176: Forår | DW176: August | DX176: Sept | DY176: Juli | DZ176: August | EA176: Oktober | EB176: Forår | EC176: August | ED176: Sept | EE176: Forår | EF176: August | EG176: Sept | EH176: Forår | EI176: August | EJ176: Sept | EK176: Juli | EL176: August | EM176: Oktober | EN176: Juli | EO176: August | EP176: Forår | EQ176: Forår | ER176: Sept. | ES176: Oktober | ET176: Hele året | EU176: Hele året | EV176: Hele året
B177: Ligevægtsudbytte | H177: =IF(ISERROR(IF(AND(CV139>1,CV139<R340,CU139>1),(($D$173-H173)/H153)+H152,"")),"",IF(AND(CV139>1,CV139<R340,CU139>1),(($D$173-H173)/H153)+H152,"")) ->  | I177: =IF(H177<>"",VLOOKUP(CV139,_Afg07,3),"") ->  | L177: =IF(ISERROR(IF(AND(CW139>1,CW139<R340,CU139>1),(($D$173-L173)/L153)+L152,"")),"",IF(AND(CW139>1,CW139<R340,CU139>1),(($D$173-L173)/L153)+L152,"")) ->  | M177: =IF(L177<>"",VLOOKUP(CW139,_Afg07,3),"") ->  | DF177: 2 | DG177: Eget tørreri
CV178: Jordtyper
CV179: 1 | CW179: JB 1+3 | DG179: Foderenheder
B180: =IF(FEnr=1,"Foderenheder pr. ha","") ->  | D180: =IF(AND(Afgnr>1,FEnr=1),IF(VLOOKUP(Afgnr,_Afg07,$BU$285)=1,D152*VLOOKUP(Afgnr,_Afg07,$BT$285),IF(VLOOKUP(Afgnr,_Afg07,$BU$285)=3,$CZ$173*VLOOKUP(1,Foderkorn,$BT$285),IF(VLOOKUP(Afgnr,_Afg07,$BU$285)=4,$CZ$174*VLOOKUP(2,Foderkorn,$BT$285),""))),"") ->  | E180: =IF(D180<>"","FEsv","") ->  | H180: =IF(AND(Alt1nr>1,FEnr=1),IF(VLOOKUP(Alt1nr,_Afg07,$BU$285)=1,H152*VLOOKUP(Alt1nr,_Afg07,$BT$285),IF(VLOOKUP(Alt1nr,_Afg07,$BU$285)=3,$CZ$173*VLOOKUP(1,Foderkorn,$BT$285),IF(VLOOKUP(Alt1nr,_Afg07,$BU$285)=4,$CZ$174*VLOOKUP(2,Foderkorn,$BT$285),""))),"") ->  | I180: =IF(H180<>"","FEsv","") ->  | L180: =IF(AND(Alt2nr>1,FEnr=1),IF(VLOOKUP(Alt2nr,_Afg07,$BU$285)=1,L152*VLOOKUP(Alt2nr,_Afg07,$BT$285),IF(VLOOKUP(Alt2nr,_Afg07,$BU$285)=3,$CZ$173*VLOOKUP(1,Foderkorn,$BT$285),IF(VLOOKUP(Alt2nr,_Afg07,$BU$285)=4,$CZ$174*VLOOKUP(2,Foderkorn,$BT$285),""))),"") ->  | M180: =IF(L180<>"","FEsv","") ->  | CV180: 2 | CW180: JB 2+4 | DF180: 1 | DG180: Vis
B181: =IF(OR(Lagernr=1,FEnr=2),"",IF(Lagernr=BQ285,"Lager (planlager)",IF(Lagernr=BR285,"Lager (stålsilo)","Lager (gastæt silo)"))) ->  | D181: =IF(AND(Afgnr>1,FEnr=1,Lagernr<>1),IF(VLOOKUP(Afgnr,_Afg07,$BU$285)=1,-D152*VLOOKUP(Afgnr,_Afg07,Lagernr)/D180,IF(VLOOKUP(Afgnr,_Afg07,$BU$285)=3,-$CZ$173*VLOOKUP(1,Foderkorn,Lagernr)/D180,IF(VLOOKUP(Afgnr,_Afg07,$BU$285)=4,-$CZ$174*VLOOKUP(2,Foderkorn,Lagernr)/D180,""))),"") ->  | E181: =IF(D181<>"","kr./FEsv","") ->  | H181: =IF(AND(Alt1nr>1,FEnr=1,Lagernr<>1),IF(VLOOKUP(Alt1nr,_Afg07,$BU$285)=1,-H152*VLOOKUP(Alt1nr,_Afg07,Lagernr)/H180,IF(VLOOKUP(Alt1nr,_Afg07,$BU$285)=3,-$CZ$173*VLOOKUP(1,Foderkorn,Lagernr)/H180,IF(VLOOKUP(Alt1nr,_Afg07,$BU$285)=4,-$CZ$174*VLOOKUP(2,Foderkorn,Lagernr)/H180,""))),"") ->  | I181: =IF(H181<>"","kr./FEsv","") ->  | L181: =IF(AND(Alt2nr>1,FEnr=1,Lagernr<>1),IF(VLOOKUP(Alt2nr,_Afg07,$BU$285)=1,-L152*VLOOKUP(Alt2nr,_Afg07,Lagernr)/L180,IF(VLOOKUP(Alt2nr,_Afg07,$BU$285)=3,-$CZ$173*VLOOKUP(1,Foderkorn,Lagernr)/L180,IF(VLOOKUP(Alt2nr,_Afg07,$BU$285)=4,-$CZ$174*VLOOKUP(2,Foderkorn,Lagernr)/L180,""))),"") ->  | M181: =IF(L181<>"","kr./FEsv","") ->  | CV181: 3 | CW181: JB 1-4 vandet | DF181: 2 | DG181: Vis ikke
B182: =IF(AND(FEnr=1,Lagernr<>1),"Omkostninger ab lager","") ->  | D182: =IF(AND(Afgnr>1,FEnr=1,Lagernr<>1,VLOOKUP(Afgnr,_Afg07,$BU$285,)=1),(D165+D169+D170)/D180+D181,IF(AND(Afgnr>1,FEnr=1,Lagernr<>1,VLOOKUP(Afgnr,_Afg07,$BU$285,)=3),-D$607*$CY$173/$D$82/D$180+D181,IF(AND(Afgnr>1,FEnr=1,Lagernr<>1,VLOOKUP(Afgnr,_Afg07,$BU$285,)=4),-D$607*$CY$174/$D$103/D$180+D181,""))) ->  | E182: =IF(D182<>"","kr./FEsv","") ->  | H182: =IF(AND(Alt1nr>1,FEnr=1,Lagernr<>1,VLOOKUP(Alt1nr,_Afg07,$BU$285,)=1),(H165+H169+H170)/H180+H181,IF(AND(Alt1nr>1,FEnr=1,Lagernr<>1,VLOOKUP(Alt1nr,_Afg07,$BU$285,)=3),-H$607*$CY$173/$D$82/H$180+H181,IF(AND(Alt1nr>1,FEnr=1,Lagernr<>1,VLOOKUP(Alt1nr,_Afg07,$BU$285,)=4),-H$607*$CY$174/$D$103/H$180+H181,""))) ->  | I182: =IF(H182<>"","kr./FEsv","") ->  | L182: =IF(AND(Alt2nr>1,FEnr=1,Lagernr<>1,VLOOKUP(Alt2nr,_Afg07,$BU$285,)=1),(L165+L169+L170)/L180+L181,IF(AND(Alt2nr>1,FEnr=1,Lagernr<>1,VLOOKUP(Alt2nr,_Afg07,$BU$285,)=3),-L$607*$CY$173/$D$82/L$180+L181,IF(AND(Alt2nr>1,FEnr=1,Lagernr<>1,VLOOKUP(Alt2nr,_Afg07,$BU$285,)=4),-L$607*$CY$174/$D$103/L$180+L181,""))) ->  | M182: =IF(L182<>"","kr./FEsv","") ->  | CV182: 4 | CW182: JB 5-6
CV183: 5 | CW183: JB 7-9
B185: Kvælstof (normtilførsel) | D185: =IF(Afgnr>1,VLOOKUP(Afgnr,_Afg07,Nnr),"") ->  | E185: =IF(D185<>"","kg N","") ->  | H185: =IF(Alt1nr>1,VLOOKUP(Alt1nr,_Afg07,Nnr),"") ->  | I185: =IF(H185<>"","kg N","") ->  | L185: =IF(Alt2nr>1,VLOOKUP(Alt2nr,_Afg07,Nnr),"") ->  | M185: =IF(L185<>"","kg N","") ->  | S185: =IF($C$43="","","Når man opretter 'egen afgrøde' angives niveauer for N,P,K ikke alene på baggrund af beregnede bortførte mængde, der indgår også indtastede tilførte mængder for 'egen afgrøde'.") ->  | CV185: Halm anvendelse
B186: Fosfor (bortførsel + startgødn.) | D186: =IF(Afgnr>1,(D563+D564+D565+D566)/Ppris,"") ->  | E186: =IF(D186<>"","kg P","") ->  | H186: =IF(Alt1nr>1,(H563+H564+H565+H566)/Ppris,"") ->  | I186: =IF(H186<>"","kg P","") ->  | L186: =IF(Alt2nr>1,(L563+L564+L565+L566)/Ppris,"") ->  | M186: =IF(L186<>"","kg P","") ->  | CW186: Bjærges
B187: Kalium (bortførsel) | D187: =IF(Afgnr>1,(D570+D571+D572)/Kpris,"") ->  | E187: =IF(D187<>"","kg K","") ->  | H187: =IF(Alt1nr>1,(H570+H571+H572)/Kpris,"") ->  | I187: =IF(H187<>"","kg K","") ->  | L187: =IF(Alt2nr>1,(L570+L571+L572)/Kpris,"") ->  | M187: =IF(L187<>"","kg K","") ->  | CW187: Nedmuldes
CV189: Kornsælger eller -køber
G190: =IF(OR($CU$139=$R$340,$CV$139=$R$340,$CW$139=$R$340,$CX$139=$R$340),$S$340,"") ->  | CW190: Sælger | DF190: Plove | DL190: Stubharver | DQ190: Mejetærsker | DT190: Såmaskiner | DX190: Halmpresser | EC190: Kartoffellægger | EF190: ha/time
G191: =IF($G$190="Sædskifte 1",IF($CU$159>1,VLOOKUP($CU$159,_Afg07,2),""),"") ->  | I191: =IF($G$190="Sædskifte 1",IF($CU$159>1,$D$68,""),"") ->  | J191: =IF(I191<>"","ha","") ->  | K191: =IF($G$190="Sædskifte 1",IF($CU$159>1,IF($F$68<>"",$F$68,$G$68),""),"") ->  | L191: =IF(K191<>"",H68,"") ->  | M191: =IF($G$190="Sædskifte 1",IF($CU$159>1,IF($I$68<>"",$I$68,$K$68),""),"") ->  | N191: =IF(M191<>"","kr.","") ->  | CW191: Køber | DG191: Type | DH191: Kapacitet, ha/time | DI191: Lav-høj anvendelse, antal ha | DM191: Type | DN191: Kapacitet, ha/time | DO191: Lav-høj anvendelse, antal ha | DR191: Type | DU191: Type | DV191: Kapacitet, ha/time | DY191: Type | DZ191: Kapacitet, ha/time | EA191: Transport, ha/time | EC191: 1 | ED191: 4 rækker u/ gødningsudstyr | EF191: 0.7
G192: =IF($G$190="Sædskifte 1",IF($CU$161>1,VLOOKUP($CU$161,_Afg07,2),""),"") ->  | I192: =IF($G$190="Sædskifte 1",IF($CU$161>1,$D$70,""),"") ->  | K192: =IF($G$190="Sædskifte 1",IF($CU$161>1,IF($F$70<>"",$F$70,$G$70),""),"") ->  | L192: =IF(K192<>"",H70,"") ->  | M192: =IF($G$190="Sædskifte 1",IF($CU$161>1,IF($I$70<>"",$I$70,$K$70),""),"") ->  | DF192: 1 | DG192: Vendeplov 4 fure | DH192: 0.9 | DI192: 70-140 ha | DL192: 1 | DM192: Stubharve 4 m (let) | DN192: 2.9 | DO192: 200-400 ha | DQ192: 1 | DR192: Mejetærsker 5,4 m | DS192: 1.7 | DT192: 1 | DU192: Kombiharve/såmaskine 3,0 m | DV192: 2.4 | DX192: 1 | DY192: Minibigballer 1,5 kbm | DZ192: 4.9 | EA192: 2 | EC192: 2 | ED192: 4 rækker m/ gødningsudstyr | EF192: 0.7
G193: =IF($G$190="Sædskifte 1",IF($CU$163>1,VLOOKUP($CU$163,_Afg07,2),""),"") ->  | I193: =IF($G$190="Sædskifte 1",IF($CU$163>1,$D$72,""),"") ->  | K193: =IF($G$190="Sædskifte 1",IF($CU$163>1,IF($F$72<>"",$F$72,$G$72),""),"") ->  | L193: =IF(K193<>"",H72,"") ->  | M193: =IF($G$190="Sædskifte 1",IF($CU$163>1,IF($I$72<>"",$I$72,$K$72),""),"") ->  | CV193: Husdyrgødning | DF193: 2 | DG193: Vendeplov 5 fure | DH193: 1.1 | DI193: 85-170 ha | DL193: 2 | DM193: Stubharve 4 m (tung) | DN193: 2.7 | DO193: 200-400 ha | DQ193: 2 | DR193: Mejetærsker 6,0 m | DS193: 1.9 | DT193: 2 | DU193: Kombiharve/såmaskine 4,0 m | DV193: 2.9 | DX193: 2 | DY193: Bigballer 3,5 kbm | DZ193: 5.3 | EA193: 3.2
G194: =IF($G$190="Sædskifte 1",IF($CU$165>1,VLOOKUP($CU$165,_Afg07,2),""),"") ->  | I194: =IF($G$190="Sædskifte 1",IF($CU$165>1,$D$74,""),"") ->  | K194: =IF($G$190="Sædskifte 1",IF($CU$165>1,IF($F$74<>"",$F$74,$G$74),""),"") ->  | L194: =IF(K194<>"",H74,"") ->  | M194: =IF($G$190="Sædskifte 1",IF($CU$165>1,IF($I$74<>"",$I$74,$K$74),""),"") ->  | CW194: Uden | DF194: 3 | DG194: Vendeplov 8 fure | DH194: 1.6 | DI194: 120-240 ha | DL194: 3 | DM194: Stubharve 6 m (tung) | DN194: 4 | DO194: 400-800 ha | DQ194: 3 | DR194: Mejetærsker 7,5 m | DS194: 2.7 | DT194: 3 | DU194: Radsåmaskine 3,0 m | DV194: 1.7 | EC194: Kartoffeloptager | EF194: ha/time
G195: =IF($G$190="Sædskifte 1",IF($CU$167>1,VLOOKUP($CU$167,_Afg07,2),""),"") ->  | I195: =IF($G$190="Sædskifte 1",IF($CU$167>1,$D$76,""),"") ->  | K195: =IF($G$190="Sædskifte 1",IF($CU$167>1,IF($F$76<>"",$F$76,$G$76),""),"") ->  | L195: =IF(K195<>"",H76,"") ->  | M195: =IF($G$190="Sædskifte 1",IF($CU$167>1,IF($I$76<>"",$I$76,$K$76),""),"") ->  | CW195: Med | DF195: 4 | DG195: Vendeplov 12 fure | DH195: 2.3 | DI195: 175-350 ha | DL195: 4 | DM195: Tallerken / disc 4 m | DN195: 2.8 | DO195: 280-560 ha | DQ195: 4 | DR195: Mejetærsker 9,0 m | DS195: 3.3 | DT195: 4 | DU195: Radsåmaskine 4,0 m | DV195: 2.1 | DX195: Gyllevogn | EA195: ton/time | EC195: 1 | ED195: 2 rk frilægger | EF195: 0.8
G196: =IF($G$190="Sædskifte 1",IF($CU$169>1,VLOOKUP($CU$169,_Afg07,2),""),"") ->  | I196: =IF($G$190="Sædskifte 1",IF($CU$169>1,$D$78,""),"") ->  | K196: =IF($G$190="Sædskifte 1",IF($CU$169>1,IF($F$78<>"",$F$78,$G$78),""),"") ->  | L196: =IF(K196<>"",H78,"") ->  | M196: =IF($G$190="Sædskifte 1",IF($CU$169>1,IF($I$78<>"",$I$78,$K$78),""),"") ->  | DL196: 5 | DM196: Tallerken / disc 6 m | DN196: 4.1 | DO196: 410-820 ha | DQ196: 5 | DR196: Mejetærsker 10,5 m | DS196: 4 | DT196: 5 | DU196: Rotorharve/såmaskine 4,0 m | DV196: 1.5 | DX196: 1 | DY196: Slæbeslanger 16 m / 15 ton | EA196: 51 | EC196: 2 | ED196: 1 rk m/ tank/stensep. | EF196: 0.3
G197: =IF($G$190="Sædskifte 1",IF($CU$171>1,VLOOKUP($CU$171,_Afg07,2),""),"") ->  | I197: =IF($G$190="Sædskifte 1",IF($CU$171>1,$D$80,""),"") ->  | K197: =IF($G$190="Sædskifte 1",IF($CU$171>1,IF($F$80<>"",$F$80,$G$80),""),"") ->  | L197: =IF(K197<>"",H80,"") ->  | M197: =IF($G$190="Sædskifte 1",IF($CU$171>1,IF($I$80<>"",$I$80,$K$80),""),"") ->  | CV197: Forfrugtsværdi | DF197: Såbedsharver | DL197: Marksprøjte | DT197: 6 | DU197: Rotorharve/såmaskine 6,0 m | DV197: 2.6 | DX197: 2 | DY197: Slæbeslanger 24 m / 20 ton | EA197: 60 | EC197: 3 | ED197: Selvkørende 2 rk m/ tank | EF197: 0.9
CW198: Ja | DG198: Type | DH198: Kapacitet, ha/time | DM198: Type | DN198: Kapacitet, ha/time | DT198: 7 | DU198: Skiveskærmaskine 4 m | DV198: 2.8 | DX198: 3 | DY198: Slæbeslanger 24 m / 25 ton | EA198: 66
G199: =IF(OR(CU139=R341,CV139=R341,CW139=R341,CX139=R341),S341,"") ->  | CW199: Nej | DF199: 1 | DG199: Såbedsharve 4,5 m | DH199: 3.3 | DL199: 1 | DM199: Sprøjte 24 m, 2800 liter | DN199: 5.3 | DT199: 8 | DU199: Skiveskærmaskine 6 m | DV199: 3.8 | DX199: 4 | DY199: Nedfælder 6,0 m / 25 ton | EA199: 54
G200: =IF($G$199="Sædskifte 2",IF(CU160>1,VLOOKUP(CU160,_Afg07,2),""),"") ->  | I200: =IF($G$199="Sædskifte 2",IF(CU160>1,D89,""),"") ->  | J200: =IF(I200<>"","ha","") ->  | K200: =IF($G$199="Sædskifte 2",IF($CU160>1,IF(F89<>"",F89,G89),""),"") ->  | L200: =IF(K200<>"",H89,"") ->  | M200: =IF($G$199="Sædskifte 2",IF($CU160>1,IF(I89<>"",I89,K89),""),"") ->  | N200: =IF(M200<>"","kr.","") ->  | DF200: 2 | DG200: Såbedsharve 6,4 m | DH200: 4.7 | DL200: 2 | DM200: Sprøjte 24 m, 4000 liter | DN200: 7 | DT200: 9 | DU200: Tandskærsmaskine 4 m | DV200: 2.1 | DX200: 5 | DY200: Nedfælder 7,5 m / 25 ton | EA200: 60
G201: =IF($G$199="Sædskifte 2",IF(CU162>1,VLOOKUP(CU162,_Afg07,2),""),"") ->  | I201: =IF($G$199="Sædskifte 2",IF(CU162>1,D91,""),"") ->  | K201: =IF($G$199="Sædskifte 2",IF($CU162>1,IF(F91<>"",F91,G91),""),"") ->  | L201: =IF(K201<>"",H91,"") ->  | M201: =IF($G$199="Sædskifte 2",IF($CU162>1,IF(I91<>"",I91,K91),""),"") ->  | N201: =IF(M201<>"","kr.","") ->  | DF201: 3 | DG201: Såbedsharve 9,1 m | DH201: 6.6 | DL201: 3 | DM201: Sprøjte 36 m, 4000 liter | DN201: 9 | DT201: 10 | DU201: Tandskærsmaskine 6 m | DV201: 2.8 | DX201: 6 | DY201: Selvkør. nedfælder 9 m/16 ton | EA201: 51 | EC201: Roeoptager | EF201: ha/time
G202: =IF($G$199="Sædskifte 2",IF(CU164>1,VLOOKUP(CU164,_Afg07,2),""),"") ->  | I202: =IF($G$199="Sædskifte 2",IF(CU164>1,D93,""),"") ->  | K202: =IF($G$199="Sædskifte 2",IF($CU164>1,IF(F93<>"",F93,G93),""),"") ->  | L202: =IF(K202<>"",H93,"") ->  | M202: =IF($G$199="Sædskifte 2",IF($CU164>1,IF(I93<>"",I93,K93),""),"") ->  | DF202: 4 | DG202: Tallerken / disc 4 m | DH202: 2.8 | DL202: 4 | DM202: Sprøjte m/luft 24 m, 4400 liter | DN202: 8 | EC202: 1 | ED202: Selvkørende 6 rk > 40 kbm tank | EF202: 1.3
G203: =IF($G$199="Sædskifte 2",IF(CU166>1,VLOOKUP(CU166,_Afg07,2),""),"") ->  | I203: =IF($G$199="Sædskifte 2",IF(CU166>1,D95,""),"") ->  | K203: =IF($G$199="Sædskifte 2",IF($CU166>1,IF(F95<>"",F95,G95),""),"") ->  | L203: =IF(K203<>"",H95,"") ->  | M203: =IF($G$199="Sædskifte 2",IF($CU166>1,IF(I95<>"",I95,K95),""),"") ->  | DF203: 5 | DG203: Tallerken / disc 6 m | DH203: 4.1 | DT203: Enkorn | DV203: ha/time | DX203: Gødningsspreder | EA203: ha/time | EC203: 2 | ED203: 3 rk 12 kbm tank | EF203: 0.7
G204: =IF($G$199="Sædskifte 2",IF(CU168>1,VLOOKUP(CU168,_Afg07,2),""),"") ->  | I204: =IF($G$199="Sædskifte 2",IF(CU168>1,D97,""),"") ->  | K204: =IF($G$199="Sædskifte 2",IF($CU168>1,IF(F97<>"",F97,G97),""),"") ->  | L204: =IF(K204<>"",H97,"") ->  | M204: =IF($G$199="Sædskifte 2",IF($CU168>1,IF(I97<>"",I97,K97),""),"") ->  | DT204: 1 | DU204: 12 rækker | DV204: 2.6 | DX204: 1 | DY204: Liftophængt 24 m / 3 ton | EA204: 6
G205: =IF($G$199="Sædskifte 2",IF(CU170>1,VLOOKUP(CU170,_Afg07,2),""),"") ->  | I205: =IF($G$199="Sædskifte 2",IF(CU170>1,D99,""),"") ->  | K205: =IF($G$199="Sædskifte 2",IF($CU170>1,IF(F99<>"",F99,G99),""),"") ->  | L205: =IF(K205<>"",H99,"") ->  | M205: =IF($G$199="Sædskifte 2",IF($CU170>1,IF(I99<>"",I99,K99),""),"") ->  | DX205: 2 | DY205: Bugseret 20 m / 10 ton | EA205: 9
G206: =IF($G$199="Sædskifte 2",IF(CU172>1,VLOOKUP(CU172,_Afg07,2),""),"") ->  | I206: =IF($G$199="Sædskifte 2",IF(CU172>1,D101,""),"") ->  | K206: =IF($G$199="Sædskifte 2",IF($CU172>1,IF(F101<>"",F101,G101),""),"") ->  | L206: =IF(K206<>"",H101,"") ->  | M206: =IF($G$199="Sædskifte 2",IF($CU172>1,IF(I101<>"",I101,K101),""),"") ->  | DX206: 3 | DY206: Bugseret 16 m / 5 ton | EA206: 7.8
G207: Egen afgrøde: | I207: =C43 -> 0
B209: ="Jordtypen er "&IF(JBnr=1,"JB 1+3",IF(JBnr=2,"JB 2+4",IF(JBnr=3,"JB 1-4, vandet",IF(JBnr=4,"JB 5-6","JB 7-9")))) -> Jordtypen er JB 5-6 | D209: =IF(Hdgnr=1,"Ingen husdyrgødning","Husdyrgødning fra "&VLOOKUP(Hdgnr,_Hdg2,2)) -> Ingen husdyrgødning
B210: =IF(HalmJa=1,"Halmen bjærges","Halmen nedmuldes") -> Halmen bjærges | D210: =IF(Købernr=1,"Bedriften er netto kornsælger","Bedriften er netto kornkøber") -> Bedriften er netto kornsælger
B213: Udskrift (side 2):
B215: Samlet økonomisk resultat for markbruget 2021
F217: =IF(OR($CU$139=$R$340,$CV$139=$R$340,$CW$139=$R$340),$S$340,"") ->  | I217: =IF(OR(CU139=R341,CV139=R341,CW139=R341),S341,"") ->  | L217: =IF(AND($F$217<>"",$I$217<>"")," Forskel","") -> 
B218: Antal ha | D218: =IF(F217="","",D82) ->  | E218: =IF(D218="","","ha") ->  | H218: =IF(I217="","",D103) ->  | I218: =IF(H218="","","ha") ->  | L218: =IF(AND($F$217<>"",$I$217<>""),H218-D218,"") ->  | M218: =IF(L218="","","ha") -> 
B220: Udbytte, kerne/frø | C220: =IF($F$217="","",IF(CU$139=R$340,D155,IF(CV$139=R$340,H155,IF(CW$139=R$340,L155,"")))*D$82) ->  | E220: =IF(C220="","","kr.") ->  | G220: =IF($I$217="","",IF(CU$139=R$341,D155,IF(CV$139=R$341,H155,IF(CW$139=R$341,L155,"")))*D$103) ->  | I220: =IF(G220="","","kr.") ->  | K220: =IF(AND($F$217<>"",$I$217<>""),G220-C220,"") ->  | M220: =IF(K220="","","kr.") -> 
B221: Udbytte, halm | C221: =IF($F$217="","",IF(HalmJa=2,"",IF(CU$139=R$340,D156,IF(CV$139=R$340,H156,IF(CW$139=R$340,L156,"")))*D$82)) ->  | E221: =IF(C221="","","kr.") ->  | G221: =IF($I$217="","",IF(HalmJa=2,"",IF(CU$139=R$341,D156,IF(CV$139=R$341,H156,IF(CW$139=R$341,L156,"")))*D$103)) ->  | I221: =IF(G221="","","kr.") ->  | K221: =IF(AND($F$217<>"",$I$217<>"",HalmJa=1),G221-C221,"") ->  | M221: =IF(K221="","","kr.") -> 
B222: Udbytte i alt | C222: =IF($F$217="","",IF(CU$139=R$340,D159,IF(CV$139=R$340,H159,IF(CW$139=R$340,L159,"")))*D$82) ->  | E222: =IF(C222="","","kr.") ->  | G222: =IF($I$217="","",IF(CU$139=R$341,D159,IF(CV$139=R$341,H159,IF(CW$139=R$341,L159,"")))*D$103) ->  | I222: =IF(G222="","","kr.") ->  | K222: =IF(AND($F$217<>"",$I$217<>""),G222-C222,"") ->  | M222: =IF(K222="","","kr.") -> 
B224: Udsæd | C224: =IF($F$217="","",IF(CU$139=R$340,D161,IF(CV$139=R$340,H161,IF(CW$139=R$340,L161,"")))*D$82) ->  | E224: =IF(C224="","","kr.") ->  | G224: =IF($I$217="","",IF(CU$139=R$341,D161,IF(CV$139=R$341,H161,IF(CW$139=R$341,L161,"")))*D$103) ->  | I224: =IF(G224="","","kr.") ->  | K224: =IF(AND($F$217<>"",$I$217<>""),G224-C224,"") ->  | M224: =IF(K224="","","kr.") -> 
B225: Gødning | C225: =IF($F$217="","",IF(CU$139=R$340,D162,IF(CV$139=R$340,H162,IF(CW$139=R$340,L162,"")))*D$82) ->  | E225: =IF(C225="","","kr.") ->  | G225: =IF($I$217="","",IF(CU$139=R$341,D162,IF(CV$139=R$341,H162,IF(CW$139=R$341,L162,"")))*D$103) ->  | I225: =IF(G225="","","kr.") ->  | K225: =IF(AND($F$217<>"",$I$217<>""),G225-C225,"") ->  | M225: =IF(K225="","","kr.") -> 
B226: Planteværn | C226: =IF($F$217="","",IF(CU$139=R$340,D163,IF(CV$139=R$340,H163,IF(CW$139=R$340,L163,"")))*D$82) ->  | E226: =IF(C226="","","kr.") ->  | G226: =IF($I$217="","",IF(CU$139=R$341,D163,IF(CV$139=R$341,H163,IF(CW$139=R$341,L163,"")))*D$103) ->  | I226: =IF(G226="","","kr.") ->  | K226: =IF(AND($F$217<>"",$I$217<>""),G226-C226,"") ->  | M226: =IF(K226="","","kr.") -> 
B227: Diverse | C227: =IF($F$217="","",IF(CU$139=R$340,D164,IF(CV$139=R$340,H164,IF(CW$139=R$340,L164,"")))*D$82) ->  | E227: =IF(C227="","","kr.") ->  | G227: =IF($I$217="","",IF(CU$139=R$341,D164,IF(CV$139=R$341,H164,IF(CW$139=R$341,L164,"")))*D$103) ->  | I227: =IF(G227="","","kr.") ->  | K227: =IF(AND($F$217<>"",$I$217<>""),G227-C227,"") ->  | M227: =IF(K227="","","kr.") -> 
B228: Stykomkostninger i alt | C228: =IF($F$217="","",IF(CU$139=R$340,D165,IF(CV$139=R$340,H165,IF(CW$139=R$340,L165,"")))*D$82) ->  | E228: =IF(C228="","","kr.") ->  | G228: =IF($I$217="","",IF(CU$139=R$341,D165,IF(CV$139=R$341,H165,IF(CW$139=R$341,L165,"")))*D$103) ->  | I228: =IF(G228="","","kr.") ->  | K228: =IF(AND($F$217<>"",$I$217<>""),G228-C228,"") ->  | M228: =IF(K228="","","kr.") -> 
B230: Dækningsbidrag | C230: =IF($F$217="","",IF(CU$139=R$340,D167,IF(CV$139=R$340,H167,IF(CW$139=R$340,L167,"")))*D$82) ->  | E230: =IF(C230="","","kr.") ->  | G230: =IF($I$217="","",IF(CU$139=R$341,D167,IF(CV$139=R$341,H167,IF(CW$139=R$341,L167,"")))*D$103) ->  | I230: =IF(G230="","","kr.") ->  | K230: =IF(AND($F$217<>"",$I$217<>""),G230-C230,"") ->  | M230: =IF(K230="","","kr.") -> 
B232: Maskiner og arbejde | C232: =IF($F$217="","",IF(CU$139=R$340,D169,IF(CV$139=R$340,H169,IF(CW$139=R$340,L169,"")))*D$82) ->  | E232: =IF(C232="","","kr.") ->  | G232: =IF($I$217="","",IF(CU$139=R$341,D169,IF(CV$139=R$341,H169,IF(CW$139=R$341,L169,"")))*D$103) ->  | I232: =IF(G232="","","kr.") ->  | K232: =IF(AND($F$217<>"",$I$217<>""),G232-C232,"") ->  | M232: =IF(K232="","","kr.") -> 
B233: =IF(Tørringnr=1,"Tørring (løntørring)","Tørring (korn i eget tørreri)") -> Tørring (korn i eget tørreri) | C233: =IF($F$217="","",IF(CU$139=R$340,D170,IF(CV$139=R$340,H170,IF(CW$139=R$340,L170,"")))*D$82) ->  | E233: =IF(C233="","","kr.") ->  | G233: =IF($I$217="","",IF(CU$139=R$341,D170,IF(CV$139=R$341,H170,IF(CW$139=R$341,L170,"")))*D$103) ->  | I233: =IF(G233="","","kr.") ->  | K233: =IF(AND($F$217<>"",$I$217<>""),G233-C233,"") ->  | M233: =IF(K233="","","kr.") -> 
B234: =IF(Købernr=2,"Erstatningskorn","") ->  | C234: =IF(Købernr=1,"",IF($F$217="","",IF(CU$139=R$340,D171,IF(CV$139=R$340,H171,IF(CW$139=R$340,L171,"")))*D$82)) ->  | E234: =IF(C234="","","kr.") ->  | G234: =IF(Købernr=1,"",IF($I$217="","",IF(CU$139=R$341,D171,IF(CV$139=R$341,H171,IF(CW$139=R$341,L171,"")))*D$103)) ->  | I234: =IF(G234="","","kr.") ->  | K234: =IF(Købernr=1,"",IF(AND($F$217<>"",$I$217<>""),G234-C234,"")) ->  | M234: =IF(K234="","","kr.") -> 
B236: Resultat | C236: =IF($F$217="","",IF(CU$139=R$340,D173,IF(CV$139=R$340,H173,IF(CW$139=R$340,L173,"")))*D$82) ->  | E236: =IF(C236="","","kr.") ->  | G236: =IF($I$217="","",IF(CU$139=R$341,D173,IF(CV$139=R$341,H173,IF(CW$139=R$341,L173,"")))*D$103) ->  | I236: =IF(G236="","","kr.") ->  | K236: =IF(AND($F$217<>"",$I$217<>""),G236-C236,"") ->  | M236: =IF(K236="","","kr.") -> 
S238: =IF($C$43="","","Når man opretter `Egen afgrøde` beregnes mængderne af foderkorn ikke korrekt") -> 
B239: =IF(FEnr=1,"Foderbehov (korn)","") ->  | C239: =IF(OR($F$217="",FEnr=2),"",C391) ->  | E239: =IF(C239<>"","FEsv","") ->  | G239: =IF(OR($I$217="",FEnr=2),"",C391) ->  | I239: =IF(G239<>"","FEsv","") -> 
B240: =IF(FEnr=1,"Foder produceret","") ->  | C240: =IF(OR($F$217="",FEnr=2),"",IF(CU$139=R$340,D180,IF(CV$139=R$340,H180,IF(CW$139=R$340,L180,"")))*D$82) ->  | E240: =IF(C240<>"","FEsv","") ->  | G240: =IF(OR($I$217="",FEnr=2),"",IF(CU$139=R$341,D180,IF(CV$139=R$341,H180,IF(CW$139=R$341,L180,"")))*D$103) ->  | I240: =IF(G240<>"","FEsv","") ->  | K240: =IF(AND($F$217<>"",$I$217<>"",FEnr=1),G240-C240,"") ->  | M240: =IF(K240<>"","FEsv","") -> 
B243: =G190 ->  | D243: Areal | G243: Udbytte | I243: Pris
B244: I alt | C244: =D218 ->  | D244: =E218 -> 
B245: =G191 ->  | C245: =I191 ->  | F245: =K191 -> 
B253: =G199 ->  | D253: =IF(I218="","","Areal ") ->  | G253: =IF(I217="","","Udbytte ") ->  | I253: =IF(I217="","","Pris") -> 
B254: =IF(I217="","","I alt") ->  | C254: =H218 ->  | D254: =I218 -> 
B255: =G200 ->  | C255: =I200 ->  | F255: =K200 -> 
C260: =I205 ->  | F260: =K205 -> 
B264: ="Jordtypen er "&IF(JBnr=1,"JB 1+3",IF(JBnr=2,"JB 2+4",IF(JBnr=3,"JB 1-4, vandet",IF(JBnr=4,"JB 5-6","JB 7-9")))) -> Jordtypen er JB 5-6 | D264: =IF(Hdgnr=1,"Ingen husdyrgødning","Husdyrgødning fra "&VLOOKUP(Hdgnr,_Hdg2,2)) -> Ingen husdyrgødning
B265: =IF(HalmJa=1,"Halmen bjærges","Halmen nedmuldes") -> Halmen bjærges | D265: =IF(Købernr=1,"Bedriften er netto kornsælger","Bedriften er netto kornkøber") -> Bedriften er netto kornsælger
S284: Normtabel
B285: Normer | R285: 1 | S285: 2 | T285: 3 | U285: 4 | V285: 5 | W285: 6 | X285: 7 | Y285: 8 | Z285: 9 | AA285: 10 | AB285: 11 | AC285: 12 | AD285: 13 | AE285: 14 | AF285: 15 | AG285: 16 | AH285: 17 | AI285: 18 | AJ285: 19 | AK285: 20 | AL285: 21 | AM285: 22 | AN285: 23 | AO285: 24 | AP285: 25 | AQ285: 26 | AR285: 27 | AS285: 28 | AT285: 29 | AU285: 30 | AV285: 31 | AW285: 32 | AX285: 33 | AY285: 34 | AZ285: 35 | BA285: 36 | BB285: 37 | BC285: 38 | BD285: 39 | BE285: 40 | BF285: 41 | BG285: 42 | BH285: 43 | BI285: 44 | BJ285: 45 | BK285: 46 | BL285: 47 | BM285: 48 | BN285: 49 | BO285: 50 | BP285: 51 | BQ285: 52 | BR285: 53 | BS285: 54 | BT285: 55 | BU285: 56 | BV285: 57 | BW285: 58 | BX285: 59 | BY285: 60 | BZ285: 61 | CA285: 62 | CB285: 63 | CC285: 64 | CD285: 65 | CE285: 66 | CF285: 67 | CG285: 68 | CH285: 69 | CI285: 70 | CJ285: 71 | CK285: 72
V286: Normudbytter | AA286: Halmudbytte, kg pr. ha | AF286: Forfrugtsværdi, merudbytte hkg pr. ha | AK286: Sparet N | AL286: Udsæd | AM286: Planteværn | AN286: Analyser | AO286: Sum | AP286: N-gødning, kg N pr. ha | AU286: P-start 1 | AV286: P-start 2 | AW286: P-kerne | AX286: P-halm | AY286: K-start | AZ286: K-kerne | BA286: K-halm | BB286: Øvrig stykomk (udbytteafhængig) | BC286: Afgrøder | BD286: Maskin- og arbejdsomk. (med halmbj.), kr. pr. ha | BI286: Maskin- og arbejdsomk. (uden halmbj.), kr. pr. ha | BN286: Tørring | BO286: Eget tørreri | BP286: Gylle omk | BQ286: Plansilo | BR286: Stålsilo | BS286: Gastæt silo | BU286: Korn | BV286: Pløjning | BW286: Såbed | BX286: Glyphosat | BY286: Såning | BZ286: Harvning | CA286: Høst | CB286: Halm | CC286: Mejetærskertid | CD286: Enkorn- | CE286: Kartoffel- | CF286: Kartoffel- | CG286: Roe- | CH286: Planteværn | CI286: Gødskning | CJ286: Gylle | CK286: Korn-
B287: Kvælstofpris | D287: =D18 -> 5.5 | S287: Afgrøde | T287: Enhed | U287: Pris | V287: JB 1+3 | W287: JB 2+4 | X287: JB 1-4, vandet | Y287: JB 5-6 | Z287: JB 7-9 | AA287: JB 1+3 | AB287: JB 2+4 | AC287: JB 1-4, vandet | AD287: JB 5-6 | AE287: JB 7-9 | AF287: JB 1+3 | AG287: JB 2+4 | AH287: JB 1-4, vandet | AI287: JB 5-6 | AJ287: JB 7-9 | AK287: Alle JB | AL287: Alle JB | AM287: Alle JB | AN287: Alle JB | AO287: Alle JB | AP287: JB 1+3 | AQ287: JB 2+4 | AR287: JB 1-4, vandet | AS287: JB 5-6 | AT287: JB 7-9 | AU287: Alle JB | AV287: Alle JB | AW287: Alle JB | AX287: Alle JB | AY287: JB1+3 og vandet | AZ287: Alle JB | BA287: Alle JB | BB287: Alle JB | BD287: JB 1+3 | BE287: JB 2+4 | BF287: JB 1-4, vandet | BG287: JB 5-6 | BH287: JB 7-9 | BI287: JB 1+3 | BJ287: JB 2+4 | BK287: JB 1-4, vandet | BL287: JB 5-6 | BM287: JB 7-9 | BN287: Kr./hkg | BP287: kr. pr. ton | BQ287: kr./hkg | BR287: kr./hkg | BS287: kr./hkg | BT287: FE | BU287: 1 = ja | BW287: Harvning | BZ287: efter høst | CA287: (korn og frø) | CC287: faktor | CD287: såning | CE287: lægning | CF287: optagning | CG287: optagning | CH287: Antal beh. | CI287: Antal beh. | CJ287: Ton pr. ha | CK287: type | CL287: Afgrøde
R288: 1 | BU288: 1
R289: 2 | S289: Egen afgrøde | T289: hkg | U289: =C47 -> 0 | V289: =C46 -> 0 | W289: =C46 -> 0 | X289: =C46 -> 0 | Y289: =C46 -> 0 | Z289: =C46 -> 0 | AA289: =C49 -> 0 | AB289: =C49 -> 0 | AC289: =C49 -> 0 | AD289: =C49 -> 0 | AE289: =C49 -> 0 | AF289: =C55 -> 0 | AG289: =C55 -> 0 | AH289: =C55 -> 0 | AI289: =C55 -> 0 | AJ289: =C55 -> 0 | AK289: =C56 -> 0 | AL289: =-I46 -> 0 | AM289: =-I51 -> 0 | AN289: =-I52 -> 0 | AO289: =AL289+AM289+AN289 -> 0 | AP289: =$I$48 -> 0 | AQ289: =$I$48 -> 0 | AR289: =$I$48 -> 0 | AS289: =$I$48 -> 0 | AT289: =$I$48 -> 0 | AW289: =$I$49/D141 ->  | AZ289: =I50/D152 ->  | BB289: 0 | BD289: =-$I$55 -> 0 | BE289: =-$I$55 -> 0 | BF289: 0 | BG289: 0 | BH289: 0 | BI289: 0 | BJ289: 0 | BK289: 0 | BL289: 0 | BM289: 0 | BN289: =-$I$56 -> 0 | BO289: =-$I$56 -> 0 | BQ289: =-$I$56 -> 0 | BR289: =-$I$56 -> 0 | BS289: 0
B290: Fosforpris | D290: =D20 -> 9 | R290: 3 | S290: Alm. Rajgræs | T290: hkg | U290: 850 | V290: 11 | W290: 15 | X290: 15 | Y290: 16 | Z290: 16 | AA290: 3800 | AB290: 3800 | AC290: 5300 | AD290: 5300 | AE290: 5300 | AF290: 2 | AG290: 4 | AH290: 4 | AI290: 6 | AJ290: 6 | AK290: 9 | AL290: 420 | AM290: 850 | AN290: 175 | AO290: =AL290+AM290+AN290 -> 1445 | AP290: 158 | AQ290: 158 | AR290: 158 | AS290: 158 | AT290: 158 | AV290: 5 | AW290: 0.396 | AX290: 0.0975 | AY290: 20 | AZ290: 0.66 | BA290: 2.125 | BB290: 53.06666667 | BC290: Alm. Rajgræs | BD290: 3866 | BE290: 3866 | BF290: 6557 | BG290: 4717 | BH290: 4717 | BI290: 3965 | BJ290: 3965 | BK290: 5345 | BL290: 3505 | BM290: 3505 | BN290: 30 | BO290: 28 | BP290: 19 | BT290: 0 | BU290: 2 | BY290: 1 | BZ290: 2 | CA290: 2 | CB290: 2 | CC290: 2.5 | CH290: 3 | CI290: 1 | CJ290: 30 | CL290: Alm. Rajgræs
R291: 4 | S291: Alm. rajgræs, Øko | T291: hkg | U291: 1400 | V291: 7.5 | W291: 9.5 | X291: 9.5 | Y291: 11 | Z291: 11 | AA291: 2400 | AB291: 2400 | AC291: 4500 | AD291: 3000 | AE291: 3000 | AF291: 2 | AG291: 4 | AH291: 4 | AI291: 6 | AJ291: 6 | AK291: 9 | AL291: 350 | AM291: 0 | AN291: 0 | AO291: 350 | AP291: 105 | AQ291: 105 | AR291: 105 | AS291: 105 | AT291: 105 | AV291: 5 | AW291: 0.396 | AX291: 0.0975 | AY291: 20 | AZ291: 0.66 | BA291: 2.125 | BB291: 55.55555556 | BC291: Alm. rajgræs, Øko | BD291: 4300 | BE291: 4300 | BF291: 6850 | BG291: 4770 | BH291: 4770 | BI291: 3620 | BJ291: 3620 | BK291: 5774 | BL291: 3949 | BM291: 3949 | BN291: 30 | BO291: 28 | BP291: 19 | BT291: 0 | BU291: 2 | BY291: 1 | BZ291: 2 | CA291: 2 | CB291: 2 | CC291: 2.5 | CJ291: 45 | CL291: Alm. rajgræs, Øko
B292: Kaliumpris | D292: =D22 -> 6 | R292: 5 | S292: Efterafgr. Olieræddike | U292: 0 | V292: 0 | W292: 0 | X292: 0 | Y292: 0 | Z292: 0 | AK292: 25 | AL292: 260 | AM292: 0 | AN292: 0 | AO292: 260 | AP292: 0 | AQ292: 0 | AR292: 0 | AS292: 0 | AT292: 0 | BC292: Efterafgr. Olieræddike | BD292: 140 | BE292: 140 | BF292: 140 | BG292: 140 | BH292: 140 | BI292: 140 | BJ292: 140 | BK292: 140 | BL292: 140 | BM292: 140 | BN292: 0 | BO292: 0 | BP292: 0 | BT292: 0 | BW292: 2 | BY292: 2 | CL292: Efterafgr. Olieræddike
R293: 6 | S293: Efterafgr. Rajgræs | U293: 0 | V293: 0 | W293: 0 | X293: 0 | Y293: 0 | Z293: 0 | AK293: 25 | AL293: 280 | AM293: 0 | AN293: 0 | AO293: 280 | AP293: 0 | AQ293: 0 | AR293: 0 | AS293: 0 | AT293: 0 | BC293: Efterafgr. Rajgræs | BD293: 140 | BE293: 140 | BF293: 140 | BG293: 140 | BH293: 140 | BI293: 140 | BJ293: 140 | BK293: 140 | BL293: 140 | BM293: 140 | BN293: 0 | BO293: 0 | BP293: 0 | BT293: 0 | BW293: 2 | BY293: 2 | CL293: Efterafgr. Rajgræs
B294: Meromkostning til erstatningskorn | D294: =D24 -> 15 | R294: 7 | S294: Efterafgr. Gul sennep | U294: 0 | V294: 0 | W294: 0 | X294: 0 | Y294: 0 | Z294: 0 | AK294: 25 | AL294: 160 | AM294: 0 | AN294: 0 | AO294: 160 | AP294: 0 | AQ294: 0 | AR294: 0 | AS294: 0 | AT294: 0 | BC294: Efterafgr. Gul sennep | BD294: 140 | BE294: 140 | BF294: 140 | BG294: 140 | BH294: 140 | BI294: 140 | BJ294: 140 | BK294: 140 | BL294: 140 | BM294: 140 | BN294: 0 | BO294: 0 | BP294: 0 | BT294: 0 | BW294: 2 | BY294: 2 | CL294: Efterafgr. Gul sennep
R295: 8 | S295: Engrapgræs (mark) | T295: hkg | U295: 1800 | V295: 11 | W295: 11 | X295: 11 | Y295: 11 | Z295: 11 | AA295: 0 | AB295: 0 | AC295: 0 | AD295: 0 | AE295: 0 | AF295: 2 | AG295: 4 | AH295: 4 | AI295: 6 | AJ295: 6 | AK295: 9 | AL295: 800 | AM295: 570 | AN295: 175 | AO295: 1545 | AP295: 160 | AQ295: 160 | AR295: 160 | AS295: 160 | AT295: 160 | AV295: 5 | AW295: 0.396 | AX295: 0.0975 | AY295: 20 | AZ295: 0.66 | BA295: 2.125 | BB295: 73.90909091 | BC295: Engrapgræs (mark) | BD295: 4106 | BE295: 4106 | BF295: 5631 | BG295: 4106 | BH295: 4106 | BI295: 4106 | BJ295: 4106 | BK295: 5631 | BL295: 4106 | BM295: 4106 | BN295: 30 | BO295: 28 | BP295: 0 | BT295: 0 | BU295: 2 | BY295: 1 | BZ295: 2 | CA295: 1 | CB295: 1 | CC295: 3 | CH295: 1 | CI295: 2 | CL295: Engrapgræs (mark)
B296: Kornpris, forfrugtsværdi | D296: =D26 -> 115 | R296: 9 | S296: Engrapgræs (plæne) | T296: hkg | U296: 1500 | V296: 8 | W296: 8 | X296: 8 | Y296: 8 | Z296: 8 | AA296: 0 | AB296: 0 | AC296: 0 | AD296: 0 | AE296: 0 | AF296: 2 | AG296: 4 | AH296: 4 | AI296: 6 | AJ296: 6 | AK296: 9 | AL296: 800 | AM296: 570 | AN296: 175 | AO296: 1545 | AP296: 170 | AQ296: 170 | AR296: 170 | AS296: 170 | AT296: 170 | AV296: 5 | AW296: 0.396 | AX296: 0.0975 | AY296: 20 | AZ296: 0.66 | BA296: 2.125 | BB296: 101.625 | BC296: Engrapgræs (plæne) | BD296: 4106 | BE296: 4106 | BF296: 5631 | BG296: 4106 | BH296: 4106 | BI296: 4106 | BJ296: 4106 | BK296: 5631 | BL296: 4106 | BM296: 4106 | BN296: 30 | BO296: 28 | BP296: 0 | BT296: 0 | BU296: 2 | BY296: 1 | BZ296: 2 | CA296: 1 | CB296: 1 | CC296: 3 | CH296: 1 | CI296: 2 | CL296: Engrapgræs (plæne)
R297: 10 | S297: Fabrikskartofler | T297: hkg | U297: 63 | V297: 480 | W297: 530 | X297: 595 | Y297: 595 | Z297: 595 | AA297: 0 | AB297: 0 | AC297: 0 | AD297: 0 | AE297: 0 | AF297: 2 | AG297: 4 | AH297: 4 | AI297: 6 | AJ297: 6 | AK297: 0 | AL297: 3312 | AM297: 4686 | AN297: 0 | AO297: 7998 | AP297: 206 | AQ297: 202 | AR297: 227 | AS297: 202 | AT297: 202 | AU297: 7.5 | AW297: 0.046 | AX297: 0 | AY297: 20 | AZ297: 0.402 | BA297: 0 | BB297: 5.981096408 | BC297: Fabrikskartofler | BD297: 10050 | BE297: 11173 | BF297: 14276 | BG297: 12075 | BH297: 12075 | BI297: 10050 | BJ297: 11173 | BK297: 14276 | BL297: 12075 | BM297: 12075 | BN297: 0 | BO297: 0 | BP297: 0 | BT297: 0 | BU297: 2 | BV297: 1 | BW297: 1 | BX297: 1 | BZ297: 3 | CE297: 1 | CF297: 1 | CH297: 14 | CI297: 1 | CL297: Fabrikskartofler
B298: N i husdyrgødning fra 1 DE svin | D298: 100 | F298: kg N (total) | R298: 11 | S298: Grøngødning | U298: 0 | V298: 0 | W298: 0 | X298: 0 | Y298: 0 | Z298: 0 | AA298: 0 | AB298: 0 | AC298: 0 | AD298: 0 | AE298: 0 | AF298: 2 | AG298: 4 | AH298: 4 | AI298: 6 | AJ298: 6 | AK298: 58 | AL298: 486 | AM298: 0 | AN298: 0 | AO298: 486 | AP298: 0 | AQ298: 0 | AR298: 0 | AS298: 0 | AT298: 0 | AV298: 0 | AW298: 0 | AX298: 0 | AY298: 0 | AZ298: 0 | BA298: 0 | BB298: 53.06666667 | BC298: Grøngødning | BD298: 580 | BE298: 580 | BF298: 580 | BG298: 580 | BH298: 580 | BI298: 580 | BJ298: 580 | BK298: 580 | BL298: 580 | BM298: 580 | BN298: 0 | BO298: 0 | BP298: 0 | BT298: 0 | BU298: 2 | BV298: 1 | CL298: Grøngødning
R299: 12 | S299: Havre | T299: hkg | U299: 100 | V299: 46 | W299: 62 | X299: 59 | Y299: 60 | Z299: 65 | AA299: 2500 | AB299: 2500 | AC299: 3200 | AD299: 3300 | AE299: 3300 | AF299: 5 | AG299: 7 | AH299: 7 | AI299: 8 | AJ299: 9 | AK299: 0 | AL299: 488 | AM299: 265 | AN299: 0 | AO299: 753 | AP299: 115 | AQ299: 111 | AR299: 132 | AS299: 109 | AT299: 116 | AV299: 2.5 | AW299: 0.3485 | AX299: 0.119 | AY299: 20 | AZ299: 0.425 | BA299: 1.275 | BB299: 0 | BC299: Havre | BD299: 3781 | BE299: 3781 | BF299: 5912 | BG299: 4192 | BH299: 4192 | BI299: 3150 | BJ299: 3150 | BK299: 5135 | BL299: 3395 | BM299: 3395 | BN299: 9 | BO299: 5 | BP299: 20 | BQ299: 8 | BR299: 7 | BS299: 6.5 | BT299: 87 | BU299: 1 | BV299: 1 | BW299: 1 | BX299: 1 | BY299: 1 | BZ299: 2 | CA299: 2 | CB299: 2 | CC299: 1.2 | CH299: 2 | CI299: 1 | CJ299: 32 | CK299: Havre | CL299: Havre
B300: P i husdyrgødning fra 1 DE svin | D300: 25 | F300: kg P | R300: 13 | S300: Havre Øko | T300: hkg | U300: 150 | V300: 30 | W300: 30 | X300: 50 | Y300: 50 | Z300: 50 | AA300: 2000 | AB300: 2000 | AC300: 2400 | AD300: 2400 | AE300: 2400 | AF300: 5 | AG300: 7 | AH300: 7 | AI300: 8 | AJ300: 9 | AK300: 0 | AL300: 680 | AM300: 0 | AN300: 0 | AO300: =AL300+AM300+AN300 -> 680 | AP300: 100 | AQ300: 100 | AR300: 100 | AS300: 100 | AT300: 100 | AW300: 0.3485 | AX300: 0.119 | AY300: 20 | AZ300: 0.425 | BA300: 1.275 | BB300: 0 | BC300: Havre Øko | BD300: 4344 | BE300: 4344 | BF300: 6609 | BG300: 4966 | BH300: 4966 | BI300: 3798 | BJ300: 3798 | BK300: 5968 | BL300: 4322 | BM300: 4322 | BN300: 9.3 | BO300: 5 | BP300: 20 | BQ300: 8 | BR300: 7 | BS300: 6.5 | BT300: 87 | BU300: 1 | BV300: 1 | BW300: 1 | BY300: 1 | BZ300: 2 | CA300: 2 | CB300: 2 | CC300: 1.2 | CJ300: 20 | CK300: Havre | CL300: Havre Øko
R301: 14 | S301: Hestebønne | T301: hkg | U301: 140 | V301: 46 | W301: 46 | X301: 46 | Y301: 46 | Z301: 46 | AA301: 0 | AB301: 0 | AC301: 0 | AD301: 0 | AE301: 0 | AF301: 5 | AG301: 7 | AH301: 7 | AI301: 8 | AJ301: 9 | AK301: 9 | AL301: 1035 | AM301: 685 | AN301: 0 | AO301: =AL301+AM301+AN301 -> 1720 | AP301: 0 | AQ301: 0 | AR301: 0 | AS301: 0 | AT301: 0 | AV301: 2.5 | AW301: 0.4214 | AX301: 0.17 | AY301: 20 | AZ301: 0.9804 | BA301: 0.6375 | BB301: 0 | BC301: Hestebønne | BD301: 3739 | BE301: 3739 | BF301: 5567 | BG301: 3826 | BH301: 3826 | BI301: 3739 | BJ301: 3739 | BK301: 5567 | BL301: 3826 | BM301: 3826 | BN301: 16 | BO301: 14 | BP301: 0 | BT301: 101 | BU301: 2 | BV301: 1 | BW301: 1 | BX301: 1 | BY301: 1 | BZ301: 2 | CC301: 1 | CF301: 1 | CH301: 2 | CI301: 1 | CJ301: 0 | CL301: Hestebønne
B302: K i husdyrgødning fra 1 DE svin | D302: 50 | F302: kg K | R302: 15 | S302: Hestebønne Øko | T302: hkg | U302: 300 | V302: 20 | W302: 20 | X302: 37 | Y302: 37 | Z302: 37 | AA302: 0 | AB302: 0 | AC302: 0 | AD302: 0 | AE302: 0 | AF302: 2 | AG302: 4 | AH302: 4 | AI302: 6 | AJ302: 6 | AK302: 9 | AL302: 1265 | AM302: 0 | AO302: 1265 | AP302: 0 | AQ302: 0 | AR302: 0 | AS302: 0 | AT302: 0 | AW302: 0.53 | AX302: 0 | AY302: 20 | AZ302: 1.03 | BA302: 0 | BC302: Hestebønne Øko | BD302: 3750 | BE302: 3750 | BF302: 6022 | BG302: 4332 | BH302: 4332 | BI302: 3750 | BJ302: 3750 | BK302: 6022 | BL302: 4332 | BM302: 4332 | BN302: 16 | BO302: 20.6 | BP302: 0 | BQ302: 45 | BU302: 2 | BV302: 1 | BW302: 1 | BY302: 1 | BZ302: 3 | CC302: 1 | CF302: 1 | CJ302: 0 | CL302: Hestebønne Øko
R303: 16 | S303: Hvidkløver Øko | T303: hkg | U303: 4800 | V303: 2.5 | W303: 2.5 | X303: 2.5 | Y303: 2.5 | Z303: 2.5 | AA303: 0 | AB303: 0 | AC303: 0 | AD303: 0 | AE303: 0 | AF303: 10 | AG303: 10 | AH303: 10 | AI303: 10 | AJ303: 10 | AK303: 86 | AL303: 570 | AM303: 0 | AN303: 150 | AO303: 720 | AP303: 0 | AQ303: 0 | AR303: 0 | AS303: 0 | AT303: 0 | AW303: 0.38 | AX303: 0 | AY303: 20 | AZ303: 1.06 | BA303: 0 | BB303: 74.66666667 | BC303: Hvidkløver Øko | BD303: 2349 | BE303: 2349 | BF303: 3849 | BG303: 2349 | BH303: 2349 | BI303: 2349 | BJ303: 2349 | BK303: 3849 | BL303: 2349 | BM303: 2349 | BN303: 30 | BO303: 28 | BP303: 0 | BU303: 2 | BZ303: 1 | CA303: 1 | CC303: 3 | CJ303: 0 | CL303: Hvidkløver Øko
B304: N i husdyrgødning fra 1 DE kvæg | D304: 100 | F304: kg N (total) | R304: 17 | S304: Hybridrug | T304: hkg | U304: 100 | V304: 64 | W304: 79 | X304: 79 | Y304: 91 | Z304: 96 | AA304: 4200 | AB304: 4200 | AC304: 5400 | AD304: 6200 | AE304: 6200 | AL304: 638 | AM304: 710 | AN304: 0 | AO304: 1348 | AP304: 150 | AQ304: 153 | AR304: 168 | AS304: 166 | AT304: 177 | AW304: 0.289 | AX304: 0.0765 | AY304: 20 | AZ304: 0.4675 | BA304: 1.02 | BB304: 0 | BC304: Hybridrug | BD304: 4813 | BE304: 4813 | BF304: 7355 | BG304: 5628 | BH304: 5628 | BI304: 3829 | BJ304: 3829 | BK304: 6122 | BL304: 4229 | BM304: 4229 | BN304: 9 | BO304: 5 | BP304: 20 | BQ304: 8 | BR304: 7 | BS304: 6.5 | BT304: 110 | BU304: 1 | BV304: 3 | BW304: 3 | BX304: 3 | BY304: 3 | BZ304: 2 | CA304: 2 | CB304: 2 | CC304: 1.6 | CH304: 2 | CI304: 2 | CJ304: 30 | CK304: Rug | CL304: Hybridrug
R305: 18 | S305: Kløvergræs, slæt | T305: ae | U305: 132 | V305: 79 | W305: 83 | X305: 96 | Y305: 84 | Z305: 84 | AA305: 0 | AB305: 0 | AC305: 0 | AD305: 0 | AE305: 0 | AF305: 2 | AG305: 4 | AH305: 4 | AI305: 6 | AJ305: 6 | AK305: 86 | AL305: 324 | AM305: 0 | AN305: 0 | AO305: 324 | AP305: 284 | AQ305: 287 | AR305: 300 | AS305: 290 | AT305: 290 | AW305: 0.442 | AX305: 0 | AY305: 20 | AZ305: 3 | BA305: 0 | BC305: Kløvergræs, slæt | BD305: 4724 | BE305: 4724 | BF305: 7215 | BG305: 4846 | BH305: 4846 | BI305: 4724 | BJ305: 4724 | BK305: 7215 | BL305: 4846 | BM305: 4846 | BN305: 0 | BO305: 0 | BP305: 23 | BT305: 0 | BU305: 2 | BV305: 1 | CI305: 3 | CJ305: 60 | CL305: Kløvergræs, slæt
B306: P i husdyrgødning fra 1 DE kvæg | D306: 17 | F306: kg P | R306: 19 | S306: Lucerne (tørret) | T306: hkg | U306: 50 | V306: 110 | W306: 120 | X306: 140 | Y306: 130 | Z306: 130 | AA306: 0 | AB306: 0 | AC306: 0 | AD306: 0 | AE306: 0 | AF306: 2 | AG306: 4 | AH306: 4 | AI306: 6 | AJ306: 6 | AK306: 86 | AL306: 600 | AM306: 0 | AN306: 0 | AO306: 600 | AP306: 0 | AQ306: 0 | AR306: 0 | AS306: 0 | AT306: 0 | AW306: 0.26 | AX306: 0 | AY306: 20 | AZ306: 2.6 | BA306: 0 | BC306: Lucerne (tørret) | BD306: 372 | BE306: 372 | BF306: 372 | BG306: 372 | BH306: 372 | BI306: 372 | BJ306: 372 | BK306: 372 | BL306: 372 | BM306: 372 | BN306: 0 | BO306: 0 | BP306: 0 | BT306: 0 | BU306: 2 | CH306: 1 | CI306: 2 | CJ306: 0 | CL306: Lucerne (tørret)
R307: 20 | S307: Læggekartofler | T307: hkg | U307: 185 | V307: 270 | W307: 295 | X307: 325 | Y307: 325 | Z307: 325 | AA307: 0 | AB307: 0 | AC307: 0 | AD307: 0 | AE307: 0 | AF307: 2 | AG307: 4 | AH307: 4 | AI307: 6 | AJ307: 6 | AK307: 0 | AL307: 8400 | AM307: 4995 | AN307: 0 | AO307: 13395 | AP307: 136 | AQ307: 126 | AR307: 146 | AS307: 121 | AT307: 121 | AU307: 7.5 | AW307: 0.052 | AX307: 0 | AY307: 20 | AZ307: 0.506 | BA307: 0 | BB307: 29.63049853 | BC307: Læggekartofler | BD307: 0 | BE307: 0 | BF307: 18457 | BG307: 16256 | BH307: 16256 | BI307: 0 | BJ307: 0 | BK307: 18457 | BL307: 16256 | BM307: 16256 | BN307: 0 | BO307: 0 | BP307: 0 | BT307: 0 | BU307: 2 | BV307: 1 | BW307: 1 | BX307: 1 | BZ307: 3 | CE307: 1 | CF307: 1 | CH307: 12 | CI307: 1 | CJ307: 0 | CL307: Læggekartofler
B308: K i husdyrgødning fra 1 DE kvæg | D308: 67 | F308: kg K | R308: 21 | S308: Majs, biogas | T308: hkg ts | U308: 111 | V308: 76 | W308: 76 | X308: 94 | Y308: 94 | Z308: 94 | AA308: 0 | AB308: 0 | AC308: 0 | AD308: 0 | AE308: 0 | AK308: 0 | AL308: 1560 | AM308: 500 | AN308: 0 | AO308: 2060 | AP308: 168 | AQ308: 153 | AR308: 184 | AS308: 157 | AT308: 165 | AU308: 7.5 | AW308: 0.26 | AX308: 0 | AY308: 20 | AZ308: 1.2 | BA308: 0 | BC308: Majs, biogas | BD308: 4205 | BE308: 4205 | BF308: 6114 | BG308: 4396 | BH308: 4396 | BI308: 4205 | BJ308: 4205 | BK308: 6114 | BL308: 4396 | BM308: 4396 | BN308: 0 | BO308: 0 | BP308: 20 | BT308: 0 | BU308: 2 | BV308: 1 | BW308: 1 | BX308: 1 | BZ308: 3 | CA308: 3 | CC308: 2 | CD308: 1 | CH308: 2 | CI308: 1 | CJ308: 41 | CL308: Majs, biogas
R309: 22 | S309: Majs, helsæd | T309: ae | U309: 99 | V309: 102 | W309: 102 | X309: 112 | Y309: 111 | Z309: 117 | AA309: 0 | AB309: 0 | AC309: 0 | AD309: 0 | AE309: 0 | AK309: 0 | AL309: 1560 | AM309: 500 | AN309: 370 | AO309: 2430 | AP309: 168 | AQ309: 153 | AR309: 184 | AS309: 157 | AT309: 165 | AU309: 7.5 | AW309: 0.3042 | AX309: 0 | AY309: 20 | AZ309: 1.404 | BA309: 0 | BC309: Majs, helsæd | BD309: 4205 | BE309: 4205 | BF309: 6114 | BG309: 4396 | BH309: 4396 | BI309: 4205 | BJ309: 4205 | BK309: 6114 | BL309: 4396 | BM309: 4396 | BN309: 0 | BO309: 0 | BP309: 20 | BT309: 0 | BU309: 2 | BV309: 1 | BW309: 1 | BX309: 1 | BZ309: 3 | CA309: 3 | CC309: 2 | CD309: 1 | CH309: 2 | CI309: 1 | CJ309: 41 | CL309: Majs, helsæd
B310: Udnyttelse af N i svinegødning | D310: =D28 -> 80 | F310: % | R310: 23 | S310: Majs, kerne til svin | T310: hkg | U310: 132 | V310: 89.7 | W310: 89.7 | X310: 98.4 | Y310: 98 | Z310: 98 | AA310: 0 | AB310: 0 | AC310: 0 | AD310: 0 | AE310: 0 | AL310: 1560 | AM310: 500 | AN310: 97 | AO310: 2157 | AP310: 168 | AQ310: 153 | AR310: 184 | AS310: 157 | AT310: 165 | AU310: 7.5 | AW310: 0.272 | AX310: 0 | AY310: 20 | AZ310: 0.35 | BA310: 0 | BB310: 0 | BC310: Majs, kerne | BD310: 6068 | BE310: 6068 | BF310: 8807 | BG310: 6376 | BH310: 6376 | BI310: 6068 | BJ310: 6068 | BK310: 8807 | BL310: 6376 | BM310: 6376 | BN310: 0 | BO310: 0 | BP310: 20 | BQ310: 28 | BR310: 28 | BS310: 14 | BT310: 122 | BU310: 1 | BV310: 1 | BW310: 1 | BX310: 1 | BZ310: 3 | CA310: 3 | CC310: 1 | CD310: 1 | CH310: 2 | CI310: 1 | CJ310: 41 | CK310: Majs | CL310: Majs, kerne
... 153 more rows

Sheet Ark2
A1: Sædskifteplan m. foderproduktion. Foderbehov (korn).
A3: Bemærk at nedenstående beregninger tager ikke hensyn til "Egen afgrøde"
A5: Delsædskifte 1
S6: Dette regneark kan anvendes til at udarbejde en sædskifteplan med op til 3 delsædskifter. Foderproduktionen (korn til svin) bliver beregnet ud fra sædskifteplanen. I regnearket kan man endvidere beregne foderbehovet (korn til svin). Foderbehovet fordeles på kornarter. Du kan angive både afgrøder og efterafgrøde. Man kan også dele arealet melem 2 afgrøder.
B8: Marker/ejendomme: | AG8: Udbyttenr2
B10: Jordtype | AF10: 4 | AG10: =IF(AF10=1,5,IF(AF10=2,6,IF(AF10=3,7,IF(AF10=4,8,IF(AF10=5,9,""))))) -> 8 | AH10: Areal | AM10: Database
AH11: til fordeling | AI11: Fordelt_areal
B12: Samlet areal | D12: ha | AH12: =C12-AH50 -> 0 | AI12: =Areal_fordel/Antal_skifter -> 
A14: Afgrødefølge | C14: Areal | G14: Udbytte pr. ha | L14: Kommentarer | AG14: Antal | AH14: Areal | AI14: Efter- | AJ14: Areal | AM14: Afgnr | AN14: Areal | AO14: Udbyt_ha | AP14: Udbyt_alt | AQ14: Efterafgrøde
AE15: Afgrødefølge | AG15: skifter | AH15: indtastet | AI15: afgrøde | AJ15: indtastet efterafgrøde
A16: 1 | C16: =IF(E16>0,"",IF(AND(AF16>1,AF18>1,AI16+AI18=0),Fordelt_areal/2,IF(AF16>1,Fordelt_areal,""))) ->  | D16: =IF(C16<>"","ha","") ->  | F16: ha | G16: =IF(I16<>"","",IF(VLOOKUP(AF16,_Afg07,Udbyttenr2)=0,"",VLOOKUP(AF16,_Afg07,Udbyttenr2))) ->  | H16: =IF(G16="","",IF(AF16>1,IF(VLOOKUP(AF16,_Afg07,3)<>"",VLOOKUP(AF16,_Afg07,3),""),"")) ->  | J16: hkg | AE16: =A16 -> 1 | AF16: 1 | AG16: =IF(AND(AF16>1,AH16=0),1,0) -> 0 | AH16: =IF(AND(E16<>"",VLOOKUP(AF16,_Afg07,3)<>""),E16,0) -> 0 | AI16: =IF(AND(AF16>1,VLOOKUP(AF16,_Afg07,3)=""),1,0) -> 0 | AJ16: =IF(AND(E16<>"",AF16>1,VLOOKUP(AF16,_Afg07,3)=""),E16,0) -> 0 | AM16: =AF16 -> 1 | AN16: =IF(E16<>"",E16,C16) ->  | AO16: =IF(I16<>"",I16,G16) ->  | AP16: =IF(ISERROR(AN16*AO16),0,AN16*AO16) -> 0 | AQ16: =AI16 -> 0
AM17: =AF17 -> 0 | AN17: =IF(E17<>"",E17,C17) -> 0 | AO17: =IF(I17<>"",I17,G17) -> 0 | AP17: =IF(ISERROR(AN17*AO17),0,AN17*AO17) -> 0 | AQ17: =AI17 -> 0
C18: =IF(E18>0,"",IF(E16>0,"",IF(AND(AF18>1,AI16+AI18=0),Fordelt_areal/2,IF(AF18>1,Fordelt_areal,"")))) ->  | D18: =IF(C18<>"","ha","") ->  | F18: ha | G18: =IF(I18<>"","",IF(VLOOKUP(AF18,_Afg07,Udbyttenr2)=0,"",VLOOKUP(AF18,_Afg07,Udbyttenr2))) ->  | H18: =IF(G18="","",IF(AF18>1,IF(VLOOKUP(AF18,_Afg07,3)<>"",VLOOKUP(AF18,_Afg07,3),""),"")) ->  | J18: hkg | AF18: 1 | AH18: =IF(AND(E18<>"",VLOOKUP(AF18,_Afg07,3)<>""),E18,0) -> 0 | AI18: =IF(AND(AF18>1,VLOOKUP(AF18,_Afg07,3)=""),1,0) -> 0 | AJ18: =IF(AND(E18<>"",AF18>1,VLOOKUP(AF18,_Afg07,3)=""),E18,0) -> 0 | AM18: 1 | AP18: 0 | AQ18: 0
AM19: 0 | AN19: 0 | AO19: 0 | AP19: 0 | AQ19: 0
AM20: 0 | AN20: 0 | AO20: 0 | AP20: 0 | AQ20: 0
A21: 2 | C21: =IF(E21>0,"",IF(AND(AF21>1,AF23>1,AI21+AI23=0),Fordelt_areal/2,IF(AF21>1,Fordelt_areal,""))) ->  | D21: =IF(C21<>"","ha","") ->  | F21: ha | G21: =IF(I21<>"","",IF(VLOOKUP(AF21,_Afg07,Udbyttenr2)=0,"",VLOOKUP(AF21,_Afg07,Udbyttenr2))) ->  | H21: =IF(G21="","",IF(AF21>1,IF(VLOOKUP(AF21,_Afg07,3)<>"",VLOOKUP(AF21,_Afg07,3),""),"")) ->  | J21: hkg | AE21: =A21 -> 2 | AF21: 1 | AG21: =IF(AND(AF21>1,AH21=0),1,0) -> 0 | AH21: =IF(AND(E21<>"",VLOOKUP(AF21,_Afg07,3)<>""),E21,0) -> 0 | AI21: =IF(AND(AF21>1,VLOOKUP(AF21,_Afg07,3)=""),1,0) -> 0 | AJ21: =IF(AND(E21<>"",AF21>1,VLOOKUP(AF21,_Afg07,3)=""),E21,0) -> 0 | AM21: 1 | AP21: 0 | AQ21: 0
AM22: 0 | AN22: 0 | AO22: 0 | AP22: 0 | AQ22: 0
C23: =IF(E23>0,"",IF(E21>0,"",IF(AND(AF23>1,AI21+AI23=0),Fordelt_areal/2,IF(AF23>1,Fordelt_areal,"")))) ->  | D23: =IF(C23<>"","ha","") ->  | F23: ha | G23: =IF(I23<>"","",IF(VLOOKUP(AF23,_Afg07,Udbyttenr2)=0,"",VLOOKUP(AF23,_Afg07,Udbyttenr2))) ->  | H23: =IF(G23="","",IF(AF23>1,IF(VLOOKUP(AF23,_Afg07,3)<>"",VLOOKUP(AF23,_Afg07,3),""),"")) ->  | J23: hkg | AF23: 1 | AH23: =IF(AND(E23<>"",VLOOKUP(AF23,_Afg07,3)<>""),E23,0) -> 0 | AI23: =IF(AND(AF23>1,VLOOKUP(AF23,_Afg07,3)=""),1,0) -> 0 | AJ23: =IF(AND(E23<>"",AF23>1,VLOOKUP(AF23,_Afg07,3)=""),E23,0) -> 0 | AM23: 1 | AP23: 0 | AQ23: 0
AM24: 0 | AN24: 0 | AO24: 0 | AP24: 0 | AQ24: 0
AM25: 0 | AN25: 0 | AO25: 0 | AP25: 0 | AQ25: 0
A26: 3 | C26: =IF(E26>0,"",IF(AND(AF26>1,AF28>1,AI26+AI28=0),Fordelt_areal/2,IF(AF26>1,Fordelt_areal,""))) ->  | D26: =IF(C26<>"","ha","") ->  | F26: ha | G26: =IF(I26<>"","",IF(VLOOKUP(AF26,_Afg07,Udbyttenr2)=0,"",VLOOKUP(AF26,_Afg07,Udbyttenr2))) ->  | H26: =IF(G26="","",IF(AF26>1,IF(VLOOKUP(AF26,_Afg07,3)<>"",VLOOKUP(AF26,_Afg07,3),""),"")) ->  | J26: hkg | AE26: =A26 -> 3 | AF26: 1 | AG26: =IF(AND(AF26>1,AH26=0),1,0) -> 0 | AH26: =IF(AND(E26<>"",VLOOKUP(AF26,_Afg07,3)<>""),E26,0) -> 0 | AI26: =IF(AND(AF26>1,VLOOKUP(AF26,_Afg07,3)=""),1,0) -> 0 | AJ26: =IF(AND(E26<>"",AF26>1,VLOOKUP(AF26,_Afg07,3)=""),E26,0) -> 0 | AM26: 1 | AP26: 0 | AQ26: 0
AM27: 0 | AN27: 0 | AO27: 0 | AP27: 0 | AQ27: 0
C28: =IF(E28>0,"",IF(E26>0,"",IF(AND(AF28>1,AI26+AI28=0),Fordelt_areal/2,IF(AF28>1,Fordelt_areal,"")))) ->  | D28: =IF(C28<>"","ha","") ->  | F28: ha | G28: =IF(I28<>"","",IF(VLOOKUP(AF28,_Afg07,Udbyttenr2)=0,"",VLOOKUP(AF28,_Afg07,Udbyttenr2))) ->  | H28: =IF(G28="","",IF(AF28>1,IF(VLOOKUP(AF28,_Afg07,3)<>"",VLOOKUP(AF28,_Afg07,3),""),"")) ->  | J28: hkg | AF28: 1 | AH28: =IF(AND(E28<>"",VLOOKUP(AF28,_Afg07,3)<>""),E28,0) -> 0 | AI28: =IF(AND(AF28>1,VLOOKUP(AF28,_Afg07,3)=""),1,0) -> 0 | AJ28: =IF(AND(E28<>"",AF28>1,VLOOKUP(AF28,_Afg07,3)=""),E28,0) -> 0 | AM28: 1 | AP28: 0 | AQ28: 0
AM29: 0 | AN29: 0 | AO29: 0 | AP29: 0 | AQ29: 0
AM30: 0 | AN30: 0 | AO30: 0 | AP30: 0 | AQ30: 0
A31: 4 | C31: =IF(E31>0,"",IF(AND(AF31>1,AF33>1,AI31+AI33=0),Fordelt_areal/2,IF(AF31>1,Fordelt_areal,""))) ->  | D31: =IF(C31<>"","ha","") ->  | F31: ha | G31: =IF(I31<>"","",IF(VLOOKUP(AF31,_Afg07,Udbyttenr2)=0,"",VLOOKUP(AF31,_Afg07,Udbyttenr2))) ->  | H31: =IF(G31="","",IF(AF31>1,IF(VLOOKUP(AF31,_Afg07,3)<>"",VLOOKUP(AF31,_Afg07,3),""),"")) ->  | J31: hkg | AE31: =A31 -> 4 | AF31: 1 | AG31: =IF(AND(AF31>1,AH31=0),1,0) -> 0 | AH31: =IF(AND(E31<>"",VLOOKUP(AF31,_Afg07,3)<>""),E31,0) -> 0 | AI31: =IF(AND(AF31>1,VLOOKUP(AF31,_Afg07,3)=""),1,0) -> 0 | AJ31: =IF(AND(E31<>"",AF31>1,VLOOKUP(AF31,_Afg07,3)=""),E31,0) -> 0 | AM31: 1 | AP31: 0 | AQ31: 0
AM32: 0 | AN32: 0 | AO32: 0 | AP32: 0 | AQ32: 0
C33: =IF(E33>0,"",IF(E31>0,"",IF(AND(AF33>1,AI31+AI33=0),Fordelt_areal/2,IF(AF33>1,Fordelt_areal,"")))) ->  | D33: =IF(C33<>"","ha","") ->  | F33: ha | G33: =IF(I33<>"","",IF(VLOOKUP(AF33,_Afg07,Udbyttenr2)=0,"",VLOOKUP(AF33,_Afg07,Udbyttenr2))) ->  | H33: =IF(G33="","",IF(AF33>1,IF(VLOOKUP(AF33,_Afg07,3)<>"",VLOOKUP(AF33,_Afg07,3),""),"")) ->  | J33: hkg | AF33: 1 | AH33: =IF(AND(E33<>"",VLOOKUP(AF33,_Afg07,3)<>""),E33,0) -> 0 | AI33: =IF(AND(AF33>1,VLOOKUP(AF33,_Afg07,3)=""),1,0) -> 0 | AJ33: =IF(AND(E33<>"",AF33>1,VLOOKUP(AF33,_Afg07,3)=""),E33,0) -> 0 | AM33: 1 | AP33: 0 | AQ33: 0
AM34: 0 | AN34: 0 | AO34: 0 | AP34: 0 | AQ34: 0
AM35: 0 | AN35: 0 | AO35: 0 | AP35: 0 | AQ35: 0
A36: 5 | C36: =IF(E36>0,"",IF(AND(AF36>1,AF38>1,AI36+AI38=0),Fordelt_areal/2,IF(AF36>1,Fordelt_areal,""))) ->  | D36: =IF(C36<>"","ha","") ->  | F36: ha | G36: =IF(I36<>"","",IF(VLOOKUP(AF36,_Afg07,Udbyttenr2)=0,"",VLOOKUP(AF36,_Afg07,Udbyttenr2))) ->  | H36: =IF(G36="","",IF(AF36>1,IF(VLOOKUP(AF36,_Afg07,3)<>"",VLOOKUP(AF36,_Afg07,3),""),"")) ->  | J36: hkg | AE36: =A36 -> 5 | AF36: 1 | AG36: =IF(AND(AF36>1,AH36=0),1,0) -> 0 | AH36: =IF(AND(E36<>"",VLOOKUP(AF36,_Afg07,3)<>""),E36,0) -> 0 | AI36: =IF(AND(AF36>1,VLOOKUP(AF36,_Afg07,3)=""),1,0) -> 0 | AJ36: =IF(AND(E36<>"",AF36>1,VLOOKUP(AF36,_Afg07,3)=""),E36,0) -> 0 | AM36: 1 | AP36: 0 | AQ36: 0
AM37: 0 | AN37: 0 | AO37: 0 | AP37: 0 | AQ37: 0
C38: =IF(E38>0,"",IF(E36>0,"",IF(AND(AF38>1,AI36+AI38=0),Fordelt_areal/2,IF(AF38>1,Fordelt_areal,"")))) ->  | D38: =IF(C38<>"","ha","") ->  | F38: ha | G38: =IF(I38<>"","",IF(VLOOKUP(AF38,_Afg07,Udbyttenr2)=0,"",VLOOKUP(AF38,_Afg07,Udbyttenr2))) ->  | H38: =IF(G38="","",IF(AF38>1,IF(VLOOKUP(AF38,_Afg07,3)<>"",VLOOKUP(AF38,_Afg07,3),""),"")) ->  | J38: hkg | AF38: 1 | AH38: =IF(AND(E38<>"",VLOOKUP(AF38,_Afg07,3)<>""),E38,0) -> 0 | AI38: =IF(AND(AF38>1,VLOOKUP(AF38,_Afg07,3)=""),1,0) -> 0 | AJ38: =IF(AND(E38<>"",AF38>1,VLOOKUP(AF38,_Afg07,3)=""),E38,0) -> 0 | AM38: 1 | AP38: 0 | AQ38: 0
AM39: 0 | AN39: 0 | AO39: 0 | AP39: 0 | AQ39: 0
AM40: 0 | AN40: 0 | AO40: 0 | AP40: 0 | AQ40: 0
A41: 6 | C41: =IF(E41>0,"",IF(AND(AF41>1,AF43>1,AI41+AI43=0),Fordelt_areal/2,IF(AF41>1,Fordelt_areal,""))) ->  | D41: =IF(C41<>"","ha","") ->  | F41: ha | G41: =IF(I41<>"","",IF(VLOOKUP(AF41,_Afg07,Udbyttenr2)=0,"",VLOOKUP(AF41,_Afg07,Udbyttenr2))) ->  | H41: =IF(G41="","",IF(AF41>1,IF(VLOOKUP(AF41,_Afg07,3)<>"",VLOOKUP(AF41,_Afg07,3),""),"")) ->  | J41: hkg | AE41: =A41 -> 6 | AF41: 1 | AG41: =IF(AND(AF41>1,AH41=0),1,0) -> 0 | AH41: =IF(AND(E41<>"",VLOOKUP(AF41,_Afg07,3)<>""),E41,0) -> 0 | AI41: =IF(AND(AF41>1,VLOOKUP(AF41,_Afg07,3)=""),1,0) -> 0 | AJ41: =IF(AND(E41<>"",AF41>1,VLOOKUP(AF41,_Afg07,3)=""),E41,0) -> 0 | AM41: 1 | AP41: 0 | AQ41: 0
AM42: 0 | AN42: 0 | AO42: 0 | AP42: 0 | AQ42: 0
C43: =IF(E43>0,"",IF(E41>0,"",IF(AND(AF43>1,AI41+AI43=0),Fordelt_areal/2,IF(AF43>1,Fordelt_areal,"")))) ->  | D43: =IF(C43<>"","ha","") ->  | F43: ha | G43: =IF(I43<>"","",IF(VLOOKUP(AF43,_Afg07,Udbyttenr2)=0,"",VLOOKUP(AF43,_Afg07,Udbyttenr2))) ->  | H43: =IF(G43="","",IF(AF43>1,IF(VLOOKUP(AF43,_Afg07,3)<>"",VLOOKUP(AF43,_Afg07,3),""),"")) ->  | J43: hkg | AF43: 1 | AH43: =IF(AND(E43<>"",VLOOKUP(AF43,_Afg07,3)<>""),E43,0) -> 0 | AI43: =IF(AND(AF43>1,VLOOKUP(AF43,_Afg07,3)=""),1,0) -> 0 | AJ43: =IF(AND(E43<>"",AF43>1,VLOOKUP(AF43,_Afg07,3)=""),E43,0) -> 0 | AM43: 1 | AP43: 0 | AQ43: 0
AM44: 0 | AN44: 0 | AO44: 0 | AP44: 0 | AQ44: 0
AM45: 0 | AN45: 0 | AO45: 0 | AP45: 0 | AQ45: 0
A46: 7 | C46: =IF(E46>0,"",IF(AND(AF46>1,AF48>1,AI46+AI48=0),Fordelt_areal/2,IF(AF46>1,Fordelt_areal,""))) ->  | D46: =IF(C46<>"","ha","") ->  | F46: ha | G46: =IF(I46<>"","",IF(VLOOKUP(AF46,_Afg07,Udbyttenr2)=0,"",VLOOKUP(AF46,_Afg07,Udbyttenr2))) ->  | H46: =IF(G46="","",IF(AF46>1,IF(VLOOKUP(AF46,_Afg07,3)<>"",VLOOKUP(AF46,_Afg07,3),""),"")) ->  | J46: hkg | AE46: =A46 -> 7 | AF46: 1 | AG46: =IF(AND(AF46>1,AH46=0),1,0) -> 0 | AH46: =IF(AND(E46<>"",VLOOKUP(AF46,_Afg07,3)<>""),E46,0) -> 0 | AI46: =IF(AND(AF46>1,VLOOKUP(AF46,_Afg07,3)=""),1,0) -> 0 | AJ46: =IF(AND(E46<>"",AF46>1,VLOOKUP(AF46,_Afg07,3)=""),E46,0) -> 0 | AM46: 1 | AP46: 0 | AQ46: 0
AM47: 0 | AN47: 0 | AO47: 0 | AP47: 0 | AQ47: 0
C48: =IF(E48>0,"",IF(E46>0,"",IF(AND(AF48>1,AI46+AI48=0),Fordelt_areal/2,IF(AF48>1,Fordelt_areal,"")))) ->  | D48: =IF(C48<>"","ha","") ->  | F48: ha | G48: =IF(I48<>"","",IF(VLOOKUP(AF48,_Afg07,Udbyttenr2)=0,"",VLOOKUP(AF48,_Afg07,Udbyttenr2))) ->  | H48: =IF(G48="","",IF(AF48>1,IF(VLOOKUP(AF48,_Afg07,3)<>"",VLOOKUP(AF48,_Afg07,3),""),"")) ->  | J48: hkg | AF48: 1 | AH48: =IF(AND(E48<>"",VLOOKUP(AF48,_Afg07,3)<>""),E48,0) -> 0 | AI48: =IF(AND(AF48>1,VLOOKUP(AF48,_Afg07,3)=""),1,0) -> 0 | AJ48: =IF(AND(E48<>"",AF48>1,VLOOKUP(AF48,_Afg07,3)=""),E48,0) -> 0 | AM48: 1 | AP48: 0 | AQ48: 0
AE50: Sum | AG50: =AG16+AG18+AG21+AG23+AG26+AG28+AG31+AG33+AG36+AG38+AG41+AG43+AG46+AG48 -> 0 | AH50: =AH16+AH18+AH21+AH23+AH26+AH28+AH31+AH33+AH36+AH38+AH41+AH43+AH46+AH48 -> 0 | AJ50: =AJ16+AJ18+AJ21+AJ23+AJ26+AJ28+AJ31+AJ33+AJ36+AJ38+AJ41+AJ43+AJ46+AJ48 -> 0
A51: Delsædskifte 2
B54: Marker/ejendomme: | AG54: Udbyttenr3
B56: Jordtype | AF56: 4 | AG56: =IF(AF56=1,5,IF(AF56=2,6,IF(AF56=3,7,IF(AF56=4,8,IF(AF56=5,9,""))))) -> 8 | AH56: Areal
AH57: til fordeling | AI57: Fordelt_areal
B58: Samlet areal | D58: ha | AH58: =C58-AH96 -> 0 | AI58: =Areal_fordel2/Antal_skifter2 -> 
A60: Afgrødefølge | C60: Areal | G60: Udbytte pr. ha | L60: Kommentarer | AG60: Antal | AH60: Areal | AI60: Efter- | AJ60: Areal
AE61: Afgrødefølge | AG61: skifter | AH61: indtastet | AI61: afgrøde | AJ61: indtastet efterafgrøde
A62: 1 | C62: =IF(E62>0,"",IF(AND(AF62>1,AF64>1,AI62+AI64=0),Fordelt_areal2/2,IF(AF62>1,Fordelt_areal2,""))) ->  | D62: =IF(C62<>"","ha","") ->  | F62: ha | G62: =IF(I62<>"","",IF(VLOOKUP(AF62,_Afg07,Udbyttenr3)=0,"",VLOOKUP(AF62,_Afg07,Udbyttenr3))) ->  | H62: =IF(G62="","",IF(AF62>1,IF(VLOOKUP(AF62,_Afg07,3)<>"",VLOOKUP(AF62,_Afg07,3),""),"")) ->  | J62: hkg | S62: Du kan angive både afgrøde og efterafgrøde. Man kan også dele arealet mellem 2 afgrøder. | AE62: =A62 -> 1 | AF62: 1 | AG62: =IF(AND(AF62>1,AH62=0),1,0) -> 0 | AH62: =IF(AND(E62<>"",VLOOKUP(AF62,_Afg07,3)<>""),E62,0) -> 0 | AI62: =IF(AND(AF62>1,VLOOKUP(AF62,_Afg07,3)=""),1,0) -> 0 | AJ62: =IF(AND(E62<>"",AF62>1,VLOOKUP(AF62,_Afg07,3)=""),E62,0) -> 0 | AM62: 1 | AP62: 0 | AQ62: =AI62 -> 0
AM63: 0 | AN63: 0 | AO63: 0 | AP63: 0 | AQ63: 0
C64: =IF(E64>0,"",IF(E62>0,"",IF(AND(AF64>1,AI62+AI64=0),Fordelt_areal2/2,IF(AF64>1,Fordelt_areal2,"")))) ->  | D64: =IF(C64<>"","ha","") ->  | F64: ha | G64: =IF(I64<>"","",IF(VLOOKUP(AF64,_Afg07,Udbyttenr3)=0,"",VLOOKUP(AF64,_Afg07,Udbyttenr3))) ->  | H64: =IF(G64="","",IF(AF64>1,IF(VLOOKUP(AF64,_Afg07,3)<>"",VLOOKUP(AF64,_Afg07,3),""),"")) ->  | J64: hkg | AF64: 1 | AH64: =IF(AND(E64<>"",VLOOKUP(AF64,_Afg07,3)<>""),E64,0) -> 0 | AI64: =IF(AND(AF64>1,VLOOKUP(AF64,_Afg07,3)=""),1,0) -> 0 | AJ64: =IF(AND(E64<>"",AF64>1,VLOOKUP(AF64,_Afg07,3)=""),E64,0) -> 0 | AM64: 1 | AP64: 0 | AQ64: 0
AM65: 0 | AN65: 0 | AO65: 0 | AP65: 0 | AQ65: 0
AM66: 0 | AN66: 0 | AO66: 0 | AP66: 0 | AQ66: 0
A67: 2 | C67: =IF(E67>0,"",IF(AND(AF67>1,AF69>1,AI67+AI69=0),Fordelt_areal2/2,IF(AF67>1,Fordelt_areal2,""))) ->  | D67: =IF(C67<>"","ha","") ->  | F67: ha | G67: =IF(I67<>"","",IF(VLOOKUP(AF67,_Afg07,Udbyttenr3)=0,"",VLOOKUP(AF67,_Afg07,Udbyttenr3))) ->  | H67: =IF(G67="","",IF(AF67>1,IF(VLOOKUP(AF67,_Afg07,3)<>"",VLOOKUP(AF67,_Afg07,3),""),"")) ->  | J67: hkg | AE67: =A67 -> 2 | AF67: 1 | AG67: =IF(AND(AF67>1,AH67=0),1,0) -> 0 | AH67: =IF(AND(E67<>"",VLOOKUP(AF67,_Afg07,3)<>""),E67,0) -> 0 | AI67: =IF(AND(AF67>1,VLOOKUP(AF67,_Afg07,3)=""),1,0) -> 0 | AJ67: =IF(AND(E67<>"",AF67>1,VLOOKUP(AF67,_Afg07,3)=""),E67,0) -> 0 | AM67: 1 | AP67: 0 | AQ67: 0
AM68: 0 | AN68: 0 | AO68: 0 | AP68: 0 | AQ68: 0
C69: =IF(E69>0,"",IF(E67>0,"",IF(AND(AF69>1,AI67+AI69=0),Fordelt_areal2/2,IF(AF69>1,Fordelt_areal2,"")))) ->  | D69: =IF(C69<>"","ha","") ->  | F69: ha | G69: =IF(I69<>"","",IF(VLOOKUP(AF69,_Afg07,Udbyttenr3)=0,"",VLOOKUP(AF69,_Afg07,Udbyttenr3))) ->  | H69: =IF(G69="","",IF(AF69>1,IF(VLOOKUP(AF69,_Afg07,3)<>"",VLOOKUP(AF69,_Afg07,3),""),"")) ->  | J69: hkg | AF69: 1 | AH69: =IF(AND(E69<>"",VLOOKUP(AF69,_Afg07,3)<>""),E69,0) -> 0 | AI69: =IF(AND(AF69>1,VLOOKUP(AF69,_Afg07,3)=""),1,0) -> 0 | AJ69: =IF(AND(E69<>"",AF69>1,VLOOKUP(AF69,_Afg07,3)=""),E69,0) -> 0 | AM69: 1 | AP69: 0 | AQ69: 0
AM70: 0 | AN70: 0 | AO70: 0 | AP70: 0 | AQ70: 0
AF71: 2 | AM71: 2 | AN71: 0 | AO71: 0 | AP71: 0 | AQ71: 0
A72: 3 | C72: =IF(E72>0,"",IF(AND(AF72>1,AF74>1,AI72+AI74=0),Fordelt_areal2/2,IF(AF72>1,Fordelt_areal2,""))) ->  | D72: =IF(C72<>"","ha","") ->  | F72: ha | G72: =IF(I72<>"","",IF(VLOOKUP(AF72,_Afg07,Udbyttenr3)=0,"",VLOOKUP(AF72,_Afg07,Udbyttenr3))) ->  | H72: =IF(G72="","",IF(AF72>1,IF(VLOOKUP(AF72,_Afg07,3)<>"",VLOOKUP(AF72,_Afg07,3),""),"")) ->  | J72: hkg | AE72: =A72 -> 3 | AF72: 1 | AG72: =IF(AND(AF72>1,AH72=0),1,0) -> 0 | AH72: =IF(AND(E72<>"",VLOOKUP(AF72,_Afg07,3)<>""),E72,0) -> 0 | AI72: =IF(AND(AF72>1,VLOOKUP(AF72,_Afg07,3)=""),1,0) -> 0 | AJ72: =IF(AND(E72<>"",AF72>1,VLOOKUP(AF72,_Afg07,3)=""),E72,0) -> 0 | AM72: 1 | AP72: 0 | AQ72: 0
AM73: 0 | AN73: 0 | AO73: 0 | AP73: 0 | AQ73: 0
C74: =IF(E74>0,"",IF(E72>0,"",IF(AND(AF74>1,AI72+AI74=0),Fordelt_areal2/2,IF(AF74>1,Fordelt_areal2,"")))) ->  | D74: =IF(C74<>"","ha","") ->  | F74: ha | G74: =IF(I74<>"","",IF(VLOOKUP(AF74,_Afg07,Udbyttenr3)=0,"",VLOOKUP(AF74,_Afg07,Udbyttenr3))) ->  | H74: =IF(G74="","",IF(AF74>1,IF(VLOOKUP(AF74,_Afg07,3)<>"",VLOOKUP(AF74,_Afg07,3),""),"")) ->  | J74: hkg | AF74: 1 | AH74: =IF(AND(E74<>"",VLOOKUP(AF74,_Afg07,3)<>""),E74,0) -> 0 | AI74: =IF(AND(AF74>1,VLOOKUP(AF74,_Afg07,3)=""),1,0) -> 0 | AJ74: =IF(AND(E74<>"",AF74>1,VLOOKUP(AF74,_Afg07,3)=""),E74,0) -> 0 | AM74: 1 | AP74: 0 | AQ74: 0
AM75: 0 | AN75: 0 | AO75: 0 | AP75: 0 | AQ75: 0
AM76: 0 | AN76: 0 | AO76: 0 | AP76: 0 | AQ76: 0
A77: 4 | C77: =IF(E77>0,"",IF(AND(AF77>1,AF79>1,AI77+AI79=0),Fordelt_areal2/2,IF(AF77>1,Fordelt_areal2,""))) ->  | D77: =IF(C77<>"","ha","") ->  | F77: ha | G77: =IF(I77<>"","",IF(VLOOKUP(AF77,_Afg07,Udbyttenr3)=0,"",VLOOKUP(AF77,_Afg07,Udbyttenr3))) ->  | H77: =IF(G77="","",IF(AF77>1,IF(VLOOKUP(AF77,_Afg07,3)<>"",VLOOKUP(AF77,_Afg07,3),""),"")) ->  | J77: hkg | AE77: =A77 -> 4 | AF77: 1 | AG77: =IF(AND(AF77>1,AH77=0),1,0) -> 0 | AH77: =IF(AND(E77<>"",VLOOKUP(AF77,_Afg07,3)<>""),E77,0) -> 0 | AI77: =IF(AND(AF77>1,VLOOKUP(AF77,_Afg07,3)=""),1,0) -> 0 | AJ77: =IF(AND(E77<>"",AF77>1,VLOOKUP(AF77,_Afg07,3)=""),E77,0) -> 0 | AM77: 1 | AP77: 0 | AQ77: 0
AM78: 0 | AN78: 0 | AO78: 0 | AP78: 0 | AQ78: 0
C79: =IF(E79>0,"",IF(E77>0,"",IF(AND(AF79>1,AI77+AI79=0),Fordelt_areal2/2,IF(AF79>1,Fordelt_areal2,"")))) ->  | D79: =IF(C79<>"","ha","") ->  | F79: ha | G79: =IF(I79<>"","",IF(VLOOKUP(AF79,_Afg07,Udbyttenr3)=0,"",VLOOKUP(AF79,_Afg07,Udbyttenr3))) ->  | H79: =IF(G79="","",IF(AF79>1,IF(VLOOKUP(AF79,_Afg07,3)<>"",VLOOKUP(AF79,_Afg07,3),""),"")) ->  | J79: hkg | AF79: 1 | AH79: =IF(AND(E79<>"",VLOOKUP(AF79,_Afg07,3)<>""),E79,0) -> 0 | AI79: =IF(AND(AF79>1,VLOOKUP(AF79,_Afg07,3)=""),1,0) -> 0 | AJ79: =IF(AND(E79<>"",AF79>1,VLOOKUP(AF79,_Afg07,3)=""),E79,0) -> 0 | AM79: 1 | AP79: 0 | AQ79: 0
AM80: 0 | AN80: 0 | AO80: 0 | AP80: 0 | AQ80: 0
AM81: =AF81 -> 0 | AN81: =IF(E81<>"",E81,C81) -> 0 | AO81: =IF(I81<>"",I81,G81) -> 0 | AP81: =IF(ISERROR(AN81*AO81),0,AN81*AO81) -> 0 | AQ81: 0
A82: 5 | C82: =IF(E82>0,"",IF(AND(AF82>1,AF84>1,AI82+AI84=0),Fordelt_areal2/2,IF(AF82>1,Fordelt_areal2,""))) ->  | D82: =IF(C82<>"","ha","") ->  | F82: ha | G82: =IF(I82<>"","",IF(VLOOKUP(AF82,_Afg07,Udbyttenr3)=0,"",VLOOKUP(AF82,_Afg07,Udbyttenr3))) ->  | H82: =IF(G82="","",IF(AF82>1,IF(VLOOKUP(AF82,_Afg07,3)<>"",VLOOKUP(AF82,_Afg07,3),""),"")) ->  | J82: hkg | AE82: =A82 -> 5 | AF82: 1 | AG82: =IF(AND(AF82>1,AH82=0),1,0) -> 0 | AH82: =IF(AND(E82<>"",VLOOKUP(AF82,_Afg07,3)<>""),E82,0) -> 0 | AI82: =IF(AND(AF82>1,VLOOKUP(AF82,_Afg07,3)=""),1,0) -> 0 | AJ82: =IF(AND(E82<>"",AF82>1,VLOOKUP(AF82,_Afg07,3)=""),E82,0) -> 0 | AM82: 1 | AP82: 0 | AQ82: 0
AM83: 0 | AN83: 0 | AO83: 0 | AP83: 0 | AQ83: 0
C84: =IF(E84>0,"",IF(E82>0,"",IF(AND(AF84>1,AI82+AI84=0),Fordelt_areal2/2,IF(AF84>1,Fordelt_areal2,"")))) ->  | D84: =IF(C84<>"","ha","") ->  | F84: ha | G84: =IF(I84<>"","",IF(VLOOKUP(AF84,_Afg07,Udbyttenr3)=0,"",VLOOKUP(AF84,_Afg07,Udbyttenr3))) ->  | H84: =IF(G84="","",IF(AF84>1,IF(VLOOKUP(AF84,_Afg07,3)<>"",VLOOKUP(AF84,_Afg07,3),""),"")) ->  | J84: hkg | AF84: 1 | AH84: =IF(AND(E84<>"",VLOOKUP(AF84,_Afg07,3)<>""),E84,0) -> 0 | AI84: =IF(AND(AF84>1,VLOOKUP(AF84,_Afg07,3)=""),1,0) -> 0 | AJ84: =IF(AND(E84<>"",AF84>1,VLOOKUP(AF84,_Afg07,3)=""),E84,0) -> 0 | AM84: 1 | AP84: 0 | AQ84: 0
AM85: 0 | AN85: 0 | AO85: 0 | AP85: 0 | AQ85: 0
AM86: 0 | AN86: 0 | AO86: 0 | AP86: 0 | AQ86: 0
A87: 6 | C87: =IF(E87>0,"",IF(AND(AF87>1,AF89>1,AI87+AI89=0),Fordelt_areal2/2,IF(AF87>1,Fordelt_areal2,""))) ->  | D87: =IF(C87<>"","ha","") ->  | F87: ha | G87: =IF(I87<>"","",IF(VLOOKUP(AF87,_Afg07,Udbyttenr3)=0,"",VLOOKUP(AF87,_Afg07,Udbyttenr3))) ->  | H87: =IF(G87="","",IF(AF87>1,IF(VLOOKUP(AF87,_Afg07,3)<>"",VLOOKUP(AF87,_Afg07,3),""),"")) ->  | J87: hkg | AE87: =A87 -> 6 | AF87: 1 | AG87: =IF(AND(AF87>1,AH87=0),1,0) -> 0 | AH87: =IF(AND(E87<>"",VLOOKUP(AF87,_Afg07,3)<>""),E87,0) -> 0 | AI87: =IF(AND(AF87>1,VLOOKUP(AF87,_Afg07,3)=""),1,0) -> 0 | AJ87: =IF(AND(E87<>"",AF87>1,VLOOKUP(AF87,_Afg07,3)=""),E87,0) -> 0 | AM87: 1 | AP87: 0 | AQ87: 0
AM88: 0 | AN88: 0 | AO88: 0 | AP88: 0 | AQ88: 0
C89: =IF(E89>0,"",IF(E87>0,"",IF(AND(AF89>1,AI87+AI89=0),Fordelt_areal2/2,IF(AF89>1,Fordelt_areal2,"")))) ->  | D89: =IF(C89<>"","ha","") ->  | F89: ha | G89: =IF(I89<>"","",IF(VLOOKUP(AF89,_Afg07,Udbyttenr3)=0,"",VLOOKUP(AF89,_Afg07,Udbyttenr3))) ->  | H89: =IF(G89="","",IF(AF89>1,IF(VLOOKUP(AF89,_Afg07,3)<>"",VLOOKUP(AF89,_Afg07,3),""),"")) ->  | J89: hkg | AF89: 1 | AH89: =IF(AND(E89<>"",VLOOKUP(AF89,_Afg07,3)<>""),E89,0) -> 0 | AI89: =IF(AND(AF89>1,VLOOKUP(AF89,_Afg07,3)=""),1,0) -> 0 | AJ89: =IF(AND(E89<>"",AF89>1,VLOOKUP(AF89,_Afg07,3)=""),E89,0) -> 0 | AM89: 1 | AP89: 0 | AQ89: 0
AM90: 0 | AN90: 0 | AO90: 0 | AP90: 0 | AQ90: 0
AM91: 0 | AN91: 0 | AO91: 0 | AP91: 0 | AQ91: 0
A92: 7 | C92: =IF(E92>0,"",IF(AND(AF92>1,AF94>1,AI92+AI94=0),Fordelt_areal2/2,IF(AF92>1,Fordelt_areal2,""))) ->  | D92: =IF(C92<>"","ha","") ->  | F92: ha | G92: =IF(I92<>"","",IF(VLOOKUP(AF92,_Afg07,Udbyttenr3)=0,"",VLOOKUP(AF92,_Afg07,Udbyttenr3))) ->  | H92: =IF(G92="","",IF(AF92>1,IF(VLOOKUP(AF92,_Afg07,3)<>"",VLOOKUP(AF92,_Afg07,3),""),"")) ->  | J92: hkg | AE92: =A92 -> 7 | AF92: 1 | AG92: =IF(AND(AF92>1,AH92=0),1,0) -> 0 | AH92: =IF(AND(E92<>"",VLOOKUP(AF92,_Afg07,3)<>""),E92,0) -> 0 | AI92: =IF(AND(AF92>1,VLOOKUP(AF92,_Afg07,3)=""),1,0) -> 0 | AJ92: =IF(AND(E92<>"",AF92>1,VLOOKUP(AF92,_Afg07,3)=""),E92,0) -> 0 | AM92: 1 | AP92: 0 | AQ92: 0
AM93: 0 | AN93: 0 | AO93: 0 | AP93: 0 | AQ93: 0
C94: =IF(E94>0,"",IF(E92>0,"",IF(AND(AF94>1,AI92+AI94=0),Fordelt_areal2/2,IF(AF94>1,Fordelt_areal2,"")))) ->  | D94: =IF(C94<>"","ha","") ->  | F94: ha | G94: =IF(I94<>"","",IF(VLOOKUP(AF94,_Afg07,Udbyttenr3)=0,"",VLOOKUP(AF94,_Afg07,Udbyttenr3))) ->  | H94: =IF(G94="","",IF(AF94>1,IF(VLOOKUP(AF94,_Afg07,3)<>"",VLOOKUP(AF94,_Afg07,3),""),"")) ->  | J94: hkg | AF94: 1 | AH94: =IF(AND(E94<>"",VLOOKUP(AF94,_Afg07,3)<>""),E94,0) -> 0 | AI94: =IF(AND(AF94>1,VLOOKUP(AF94,_Afg07,3)=""),1,0) -> 0 | AJ94: =IF(AND(E94<>"",AF94>1,VLOOKUP(AF94,_Afg07,3)=""),E94,0) -> 0 | AM94: 1 | AP94: 0 | AQ94: 0
AE96: Sum | AG96: =AG62+AG64+AG67+AG69+AG72+AG74+AG77+AG79+AG82+AG84+AG87+AG89+AG92+AG94 -> 0 | AH96: =AH62+AH64+AH67+AH69+AH72+AH74+AH77+AH79+AH82+AH84+AH87+AH89+AH92+AH94 -> 0 | AJ96: =AJ62+AJ64+AJ67+AJ69+AJ72+AJ74+AJ77+AJ79+AJ82+AJ84+AJ87+AJ89+AJ92+AJ94 -> 0
A97: Delsædskifte 3
B100: Marker/ejendomme: | AG100: Udbyttenr4
B102: Jordtype | AF102: 4 | AG102: =IF(AF102=1,5,IF(AF102=2,6,IF(AF102=3,7,IF(AF102=4,8,IF(AF102=5,9,""))))) -> 8 | AH102: Areal
AH103: til fordeling | AI103: Fordelt_areal
B104: Samlet areal | D104: ha | AH104: =C104-AH142 -> 0 | AI104: =Areal_fordel3/Antal_skifter3 -> 
A106: Afgrødefølge | C106: Areal | G106: Udbytte pr. ha | L106: Kommentarer | AG106: Antal | AH106: Areal | AI106: Efter- | AJ106: Areal
AE107: Afgrødefølge | AG107: skifter | AH107: indtastet | AI107: afgrøde | AJ107: indtastet efterafgrøde
A108: 1 | C108: =IF(E108>0,"",IF(AND(AF108>1,AF110>1,AI108+AI110=0),Fordelt_areal3/2,IF(AF108>1,Fordelt_areal3,""))) ->  | D108: =IF(C108<>"","ha","") ->  | F108: ha | G108: =IF(I108<>"","",IF(VLOOKUP(AF108,_Afg07,Udbyttenr4)=0,"",VLOOKUP(AF108,_Afg07,Udbyttenr4))) ->  | H108: =IF(G108="","",IF(AF108>1,IF(VLOOKUP(AF108,_Afg07,3)<>"",VLOOKUP(AF108,_Afg07,3),""),"")) ->  | J108: hkg | AE108: =A108 -> 1 | AF108: 1 | AG108: =IF(AND(AF108>1,AH108=0),1,0) -> 0 | AH108: =IF(AND(E108<>"",VLOOKUP(AF108,_Afg07,3)<>""),E108,0) -> 0 | AI108: =IF(AND(AF108>1,VLOOKUP(AF108,_Afg07,3)=""),1,0) -> 0 | AJ108: =IF(AND(E108<>"",AF108>1,VLOOKUP(AF108,_Afg07,3)=""),E108,0) -> 0 | AM108: 1 | AP108: 0 | AQ108: =AI108 -> 0
AM109: 0 | AN109: 0 | AO109: 0 | AP109: 0 | AQ109: 0
C110: =IF(E110>0,"",IF(E108>0,"",IF(AND(AF110>1,AI108+AI110=0),Fordelt_areal3/2,IF(AF110>1,Fordelt_areal3,"")))) ->  | D110: =IF(C110<>"","ha","") ->  | F110: ha | G110: =IF(I110<>"","",IF(VLOOKUP(AF110,_Afg07,Udbyttenr4)=0,"",VLOOKUP(AF110,_Afg07,Udbyttenr4))) ->  | H110: =IF(G110="","",IF(AF110>1,IF(VLOOKUP(AF110,_Afg07,3)<>"",VLOOKUP(AF110,_Afg07,3),""),"")) ->  | J110: hkg | AF110: 1 | AH110: =IF(AND(E110<>"",VLOOKUP(AF110,_Afg07,3)<>""),E110,0) -> 0 | AI110: =IF(AND(AF110>1,VLOOKUP(AF110,_Afg07,3)=""),1,0) -> 0 | AJ110: =IF(AND(E110<>"",AF110>1,VLOOKUP(AF110,_Afg07,3)=""),E110,0) -> 0 | AM110: 1 | AP110: 0 | AQ110: 0
AM111: 0 | AN111: 0 | AO111: 0 | AP111: 0 | AQ111: 0
AM112: 0 | AN112: 0 | AO112: 0 | AP112: 0 | AQ112: 0
A113: 2 | C113: =IF(E113>0,"",IF(AND(AF113>1,AF115>1,AI113+AI115=0),Fordelt_areal3/2,IF(AF113>1,Fordelt_areal3,""))) ->  | D113: =IF(C113<>"","ha","") ->  | F113: ha | G113: =IF(I113<>"","",IF(VLOOKUP(AF113,_Afg07,Udbyttenr4)=0,"",VLOOKUP(AF113,_Afg07,Udbyttenr4))) ->  | H113: =IF(G113="","",IF(AF113>1,IF(VLOOKUP(AF113,_Afg07,3)<>"",VLOOKUP(AF113,_Afg07,3),""),"")) ->  | J113: hkg | AE113: =A113 -> 2 | AF113: 1 | AG113: =IF(AND(AF113>1,AH113=0),1,0) -> 0 | AH113: =IF(AND(E113<>"",VLOOKUP(AF113,_Afg07,3)<>""),E113,0) -> 0 | AI113: =IF(AND(AF113>1,VLOOKUP(AF113,_Afg07,3)=""),1,0) -> 0 | AJ113: =IF(AND(E113<>"",AF113>1,VLOOKUP(AF113,_Afg07,3)=""),E113,0) -> 0 | AM113: 1 | AP113: 0 | AQ113: 0
AM114: 0 | AN114: 0 | AO114: 0 | AP114: 0 | AQ114: 0
C115: =IF(E115>0,"",IF(E113>0,"",IF(AND(AF115>1,AI113+AI115=0),Fordelt_areal3/2,IF(AF115>1,Fordelt_areal3,"")))) ->  | D115: =IF(C115<>"","ha","") ->  | F115: ha | G115: =IF(I115<>"","",IF(VLOOKUP(AF115,_Afg07,Udbyttenr4)=0,"",VLOOKUP(AF115,_Afg07,Udbyttenr4))) ->  | H115: =IF(G115="","",IF(AF115>1,IF(VLOOKUP(AF115,_Afg07,3)<>"",VLOOKUP(AF115,_Afg07,3),""),"")) ->  | J115: hkg | AF115: 1 | AH115: =IF(AND(E115<>"",VLOOKUP(AF115,_Afg07,3)<>""),E115,0) -> 0 | AI115: =IF(AND(AF115>1,VLOOKUP(AF115,_Afg07,3)=""),1,0) -> 0 | AJ115: =IF(AND(E115<>"",AF115>1,VLOOKUP(AF115,_Afg07,3)=""),E115,0) -> 0 | AM115: 1 | AP115: 0 | AQ115: 0
AM116: 0 | AN116: 0 | AO116: 0 | AP116: 0 | AQ116: 0
AM117: 0 | AN117: 0 | AO117: 0 | AP117: 0 | AQ117: 0
A118: 3 | C118: =IF(E118>0,"",IF(AND(AF118>1,AF120>1,AI118+AI120=0),Fordelt_areal3/2,IF(AF118>1,Fordelt_areal3,""))) ->  | D118: =IF(C118<>"","ha","") ->  | F118: ha | G118: =IF(I118<>"","",IF(VLOOKUP(AF118,_Afg07,Udbyttenr4)=0,"",VLOOKUP(AF118,_Afg07,Udbyttenr4))) ->  | H118: =IF(G118="","",IF(AF118>1,IF(VLOOKUP(AF118,_Afg07,3)<>"",VLOOKUP(AF118,_Afg07,3),""),"")) ->  | J118: hkg | AE118: =A118 -> 3 | AF118: 1 | AG118: =IF(AND(AF118>1,AH118=0),1,0) -> 0 | AH118: =IF(AND(E118<>"",VLOOKUP(AF118,_Afg07,3)<>""),E118,0) -> 0 | AI118: =IF(AND(AF118>1,VLOOKUP(AF118,_Afg07,3)=""),1,0) -> 0 | AJ118: =IF(AND(E118<>"",AF118>1,VLOOKUP(AF118,_Afg07,3)=""),E118,0) -> 0 | AM118: 1 | AP118: 0 | AQ118: 0
AM119: 0 | AN119: 0 | AO119: 0 | AP119: 0 | AQ119: 0
C120: =IF(E120>0,"",IF(E118>0,"",IF(AND(AF120>1,AI118+AI120=0),Fordelt_areal3/2,IF(AF120>1,Fordelt_areal3,"")))) ->  | D120: =IF(C120<>"","ha","") ->  | F120: ha | G120: =IF(I120<>"","",IF(VLOOKUP(AF120,_Afg07,Udbyttenr4)=0,"",VLOOKUP(AF120,_Afg07,Udbyttenr4))) ->  | H120: =IF(G120="","",IF(AF120>1,IF(VLOOKUP(AF120,_Afg07,3)<>"",VLOOKUP(AF120,_Afg07,3),""),"")) ->  | J120: hkg | AF120: 1 | AH120: =IF(AND(E120<>"",VLOOKUP(AF120,_Afg07,3)<>""),E120,0) -> 0 | AI120: =IF(AND(AF120>1,VLOOKUP(AF120,_Afg07,3)=""),1,0) -> 0 | AJ120: =IF(AND(E120<>"",AF120>1,VLOOKUP(AF120,_Afg07,3)=""),E120,0) -> 0 | AM120: 1 | AP120: 0 | AQ120: 0
AM121: 0 | AN121: 0 | AO121: 0 | AP121: 0 | AQ121: 0
AM122: 0 | AN122: 0 | AO122: 0 | AP122: 0 | AQ122: 0
A123: 4 | C123: =IF(E123>0,"",IF(AND(AF123>1,AF125>1,AI123+AI125=0),Fordelt_areal3/2,IF(AF123>1,Fordelt_areal3,""))) ->  | D123: =IF(C123<>"","ha","") ->  | F123: ha | G123: =IF(I123<>"","",IF(VLOOKUP(AF123,_Afg07,Udbyttenr4)=0,"",VLOOKUP(AF123,_Afg07,Udbyttenr4))) ->  | H123: =IF(G123="","",IF(AF123>1,IF(VLOOKUP(AF123,_Afg07,3)<>"",VLOOKUP(AF123,_Afg07,3),""),"")) ->  | J123: hkg | AE123: =A123 -> 4 | AF123: 1 | AG123: =IF(AND(AF123>1,AH123=0),1,0) -> 0 | AH123: =IF(AND(E123<>"",VLOOKUP(AF123,_Afg07,3)<>""),E123,0) -> 0 | AI123: =IF(AND(AF123>1,VLOOKUP(AF123,_Afg07,3)=""),1,0) -> 0 | AJ123: =IF(AND(E123<>"",AF123>1,VLOOKUP(AF123,_Afg07,3)=""),E123,0) -> 0 | AM123: 1 | AP123: 0 | AQ123: 0
AM124: 0 | AN124: 0 | AO124: 0 | AP124: 0 | AQ124: 0
C125: =IF(E125>0,"",IF(E123>0,"",IF(AND(AF125>1,AI123+AI125=0),Fordelt_areal3/2,IF(AF125>1,Fordelt_areal3,"")))) ->  | D125: =IF(C125<>"","ha","") ->  | F125: ha | G125: =IF(I125<>"","",IF(VLOOKUP(AF125,_Afg07,Udbyttenr4)=0,"",VLOOKUP(AF125,_Afg07,Udbyttenr4))) ->  | H125: =IF(G125="","",IF(AF125>1,IF(VLOOKUP(AF125,_Afg07,3)<>"",VLOOKUP(AF125,_Afg07,3),""),"")) ->  | J125: hkg | AF125: 1 | AH125: =IF(AND(E125<>"",VLOOKUP(AF125,_Afg07,3)<>""),E125,0) -> 0 | AI125: =IF(AND(AF125>1,VLOOKUP(AF125,_Afg07,3)=""),1,0) -> 0 | AJ125: =IF(AND(E125<>"",AF125>1,VLOOKUP(AF125,_Afg07,3)=""),E125,0) -> 0 | AM125: 1 | AP125: 0 | AQ125: 0
AM126: 0 | AN126: 0 | AO126: 0 | AP126: 0 | AQ126: 0
AM127: 0 | AN127: 0 | AO127: 0 | AP127: 0 | AQ127: 0
A128: 5 | C128: =IF(E128>0,"",IF(AND(AF128>1,AF130>1,AI128+AI130=0),Fordelt_areal3/2,IF(AF128>1,Fordelt_areal3,""))) ->  | D128: =IF(C128<>"","ha","") ->  | F128: ha | G128: =IF(I128<>"","",IF(VLOOKUP(AF128,_Afg07,Udbyttenr4)=0,"",VLOOKUP(AF128,_Afg07,Udbyttenr4))) ->  | H128: =IF(G128="","",IF(AF128>1,IF(VLOOKUP(AF128,_Afg07,3)<>"",VLOOKUP(AF128,_Afg07,3),""),"")) ->  | J128: hkg | AE128: =A128 -> 5 | AF128: 1 | AG128: =IF(AND(AF128>1,AH128=0),1,0) -> 0 | AH128: =IF(AND(E128<>"",VLOOKUP(AF128,_Afg07,3)<>""),E128,0) -> 0 | AI128: =IF(AND(AF128>1,VLOOKUP(AF128,_Afg07,3)=""),1,0) -> 0 | AJ128: =IF(AND(E128<>"",AF128>1,VLOOKUP(AF128,_Afg07,3)=""),E128,0) -> 0 | AM128: 1 | AP128: 0 | AQ128: 0
AM129: 0 | AN129: 0 | AO129: 0 | AP129: 0 | AQ129: 0
C130: =IF(E130>0,"",IF(E128>0,"",IF(AND(AF130>1,AI128+AI130=0),Fordelt_areal3/2,IF(AF130>1,Fordelt_areal3,"")))) ->  | D130: =IF(C130<>"","ha","") ->  | F130: ha | G130: =IF(I130<>"","",IF(VLOOKUP(AF130,_Afg07,Udbyttenr4)=0,"",VLOOKUP(AF130,_Afg07,Udbyttenr4))) ->  | H130: =IF(G130="","",IF(AF130>1,IF(VLOOKUP(AF130,_Afg07,3)<>"",VLOOKUP(AF130,_Afg07,3),""),"")) ->  | J130: hkg | AF130: 1 | AH130: =IF(AND(E130<>"",VLOOKUP(AF130,_Afg07,3)<>""),E130,0) -> 0 | AI130: =IF(AND(AF130>1,VLOOKUP(AF130,_Afg07,3)=""),1,0) -> 0 | AJ130: =IF(AND(E130<>"",AF130>1,VLOOKUP(AF130,_Afg07,3)=""),E130,0) -> 0 | AM130: 1 | AP130: 0 | AQ130: 0
AM131: 0 | AN131: 0 | AO131: 0 | AP131: 0 | AQ131: 0
AM132: 0 | AN132: 0 | AO132: 0 | AP132: 0 | AQ132: 0
A133: 6 | C133: =IF(E133>0,"",IF(AND(AF133>1,AF135>1,AI133+AI135=0),Fordelt_areal3/2,IF(AF133>1,Fordelt_areal3,""))) ->  | D133: =IF(C133<>"","ha","") ->  | F133: ha | G133: =IF(I133<>"","",IF(VLOOKUP(AF133,_Afg07,Udbyttenr4)=0,"",VLOOKUP(AF133,_Afg07,Udbyttenr4))) ->  | H133: =IF(G133="","",IF(AF133>1,IF(VLOOKUP(AF133,_Afg07,3)<>"",VLOOKUP(AF133,_Afg07,3),""),"")) ->  | J133: hkg | AE133: =A133 -> 6 | AF133: 1 | AG133: =IF(AND(AF133>1,AH133=0),1,0) -> 0 | AH133: =IF(AND(E133<>"",VLOOKUP(AF133,_Afg07,3)<>""),E133,0) -> 0 | AI133: =IF(AND(AF133>1,VLOOKUP(AF133,_Afg07,3)=""),1,0) -> 0 | AJ133: =IF(AND(E133<>"",AF133>1,VLOOKUP(AF133,_Afg07,3)=""),E133,0) -> 0 | AM133: 1 | AP133: 0 | AQ133: 0
AM134: 0 | AN134: 0 | AO134: 0 | AP134: 0 | AQ134: 0
C135: =IF(E135>0,"",IF(E133>0,"",IF(AND(AF135>1,AI133+AI135=0),Fordelt_areal3/2,IF(AF135>1,Fordelt_areal3,"")))) ->  | D135: =IF(C135<>"","ha","") ->  | F135: ha | G135: =IF(I135<>"","",IF(VLOOKUP(AF135,_Afg07,Udbyttenr4)=0,"",VLOOKUP(AF135,_Afg07,Udbyttenr4))) ->  | H135: =IF(G135="","",IF(AF135>1,IF(VLOOKUP(AF135,_Afg07,3)<>"",VLOOKUP(AF135,_Afg07,3),""),"")) ->  | J135: hkg | AF135: 1 | AH135: =IF(AND(E135<>"",VLOOKUP(AF135,_Afg07,3)<>""),E135,0) -> 0 | AI135: =IF(AND(AF135>1,VLOOKUP(AF135,_Afg07,3)=""),1,0) -> 0 | AJ135: =IF(AND(E135<>"",AF135>1,VLOOKUP(AF135,_Afg07,3)=""),E135,0) -> 0 | AM135: 1 | AP135: 0 | AQ135: 0
AM136: 0 | AN136: 0 | AO136: 0 | AP136: 0 | AQ136: 0
AM137: 0 | AN137: 0 | AO137: 0 | AP137: 0 | AQ137: 0
A138: 7 | C138: =IF(E138>0,"",IF(AND(AF138>1,AF140>1,AI138+AI140=0),Fordelt_areal3/2,IF(AF138>1,Fordelt_areal3,""))) ->  | D138: =IF(C138<>"","ha","") ->  | F138: ha | G138: =IF(I138<>"","",IF(VLOOKUP(AF138,_Afg07,Udbyttenr4)=0,"",VLOOKUP(AF138,_Afg07,Udbyttenr4))) ->  | H138: =IF(G138="","",IF(AF138>1,IF(VLOOKUP(AF138,_Afg07,3)<>"",VLOOKUP(AF138,_Afg07,3),""),"")) ->  | J138: hkg | AE138: =A138 -> 7 | AF138: 1 | AG138: =IF(AND(AF138>1,AH138=0),1,0) -> 0 | AH138: =IF(AND(E138<>"",VLOOKUP(AF138,_Afg07,3)<>""),E138,0) -> 0 | AI138: =IF(AND(AF138>1,VLOOKUP(AF138,_Afg07,3)=""),1,0) -> 0 | AJ138: =IF(AND(E138<>"",AF138>1,VLOOKUP(AF138,_Afg07,3)=""),E138,0) -> 0 | AM138: 1 | AP138: 0 | AQ138: 0
AM139: 0 | AN139: 0 | AO139: 0 | AP139: 0 | AQ139: 0
C140: =IF(E140>0,"",IF(E138>0,"",IF(AND(AF140>1,AI138+AI140=0),Fordelt_areal3/2,IF(AF140>1,Fordelt_areal3,"")))) ->  | D140: =IF(C140<>"","ha","") ->  | F140: ha | G140: =IF(I140<>"","",IF(VLOOKUP(AF140,_Afg07,Udbyttenr4)=0,"",VLOOKUP(AF140,_Afg07,Udbyttenr4))) ->  | H140: =IF(G140="","",IF(AF140>1,IF(VLOOKUP(AF140,_Afg07,3)<>"",VLOOKUP(AF140,_Afg07,3),""),"")) ->  | J140: hkg | AF140: 1 | AH140: =IF(AND(E140<>"",VLOOKUP(AF140,_Afg07,3)<>""),E140,0) -> 0 | AI140: =IF(AND(AF140>1,VLOOKUP(AF140,_Afg07,3)=""),1,0) -> 0 | AJ140: =IF(AND(E140<>"",AF140>1,VLOOKUP(AF140,_Afg07,3)=""),E140,0) -> 0 | AM140: 1 | AP140: 0 | AQ140: 0
AE142: Sum | AG142: =AG108+AG110+AG113+AG115+AG118+AG120+AG123+AG125+AG128+AG130+AG133+AG135+AG138+AG140 -> 0 | AH142: =AH108+AH110+AH113+AH115+AH118+AH120+AH123+AH125+AH128+AH130+AH133+AH135+AH138+AH140 -> 0 | AJ142: =AJ108+AJ110+AJ113+AJ115+AJ118+AJ120+AJ123+AJ125+AJ128+AJ130+AJ133+AJ135+AJ138+AJ140 -> 0
A143: Samlet produktion | AI143: Foderproduktion fordelt på korntyper
AI144: Hvede | AK144: Byg | AM144: Havre | AO144: Rug | AQ144: Triticale | AS144: Majs | AW144: Areal med efterafgrøder
B145: Afgrøder | C145: Areal | E145: Gns. udbytte | H145: Udbytte i alt | J145: Foderudbytte | AX145: Efterafgrøde
AF146: Afgnr | AG146: Foderudbytte | AI146: Hkg | AJ146: Fesv | AK146: Hkg | AL146: Fesv | AM146: Hkg | AN146: Fesv | AO146: Hkg | AP146: Fesv | AQ146: Hkg | AR146: Fesv | AS146: Hkg | AT146: Fesv | AX146: 1
C147: =IF(AF147>1,IF(DSUM(Base,2,$AF146:$AF147)=0,"",DSUM(Base,2,$AF146:$AF147))) -> FALSE | D147: =IF(C147="","","ha") -> ha | E147: =IF(ISERROR(G147/C147),"",G147/C147) ->  | F147: =IF(E147="","","hkg") ->  | G147: =IF(DSUM(Base,4,$AF146:$AF147)=0,"",DSUM(Base,4,$AF146:$AF147)) ->  | I147: =IF(G147="","","hkg") ->  | J147: =IF(ISERROR(G147*VLOOKUP(AF147,_Afg07,'Ark1'!$BT$285)),"",G147*VLOOKUP(AF147,_Afg07,'Ark1'!$BT$285)) ->  | L147: =IF(J147="","","FEsv") ->  | AF147: 1 | AG147: =IF(J147<>"",J147,0) -> 0 | AI147: =IF(VLOOKUP($AF147,_Afg07,'Ark1'!$CK$285)="Hvede",$G147,0) -> 0 | AJ147: =IF(VLOOKUP($AF147,_Afg07,'Ark1'!$CK$285)="Hvede",$J147,0) -> 0 | AK147: =IF(VLOOKUP($AF147,_Afg07,'Ark1'!$CK$285)="Byg",$G147,0) -> 0 | AL147: =IF(VLOOKUP($AF147,_Afg07,'Ark1'!$CK$285)="Byg",$J147,0) -> 0 | AM147: =IF(VLOOKUP($AF147,_Afg07,'Ark1'!$CK$285)="Havre",$G147,0) -> 0 | AN147: =IF(VLOOKUP($AF147,_Afg07,'Ark1'!$CK$285)="Havre",$J147,0) -> 0 | AO147: =IF(VLOOKUP($AF147,_Afg07,'Ark1'!$CK$285)="Rug",$G147,0) -> 0 | AP147: =IF(VLOOKUP($AF147,_Afg07,'Ark1'!$CK$285)="Rug",$J147,0) -> 0 | AQ147: =IF(VLOOKUP($AF147,_Afg07,'Ark1'!$CK$285)="Triticale",$G147,0) -> 0 | AR147: =IF(VLOOKUP($AF147,_Afg07,'Ark1'!$CK$285)="Triticale",$J147,0) -> 0 | AS147: =IF(VLOOKUP($AF147,_Afg07,'Ark1'!$CK$285)="Majs",$G147,0) -> 0 | AT147: =IF(VLOOKUP($AF147,_Afg07,'Ark1'!$CK$285)="Majs",$J147,0) -> 0 | AX147: =DSUM(Base,2,AX145:AX146) -> 0
AF148: Afgnr | AX148: =IF(ISERROR(AX147*100/C310),"",ROUND(AX147*100/C310,1)) -> 
C149: =IF(AF149>1,IF(DSUM(Base,2,$AF148:$AF149)=0,"",DSUM(Base,2,$AF148:$AF149)),"") ->  | D149: =IF(C149="","","ha") ->  | E149: =IF(ISERROR(G149/C149),"",G149/C149) ->  | F149: =IF(E149="","","hkg") ->  | G149: =IF(DSUM(Base,4,$AF148:$AF149)=0,"",DSUM(Base,4,$AF148:$AF149)) ->  | I149: =IF(G149="","","hkg") ->  | J149: =IF(ISERROR(G149*VLOOKUP(AF149,_Afg07,'Ark1'!$BT$285)),"",G149*VLOOKUP(AF149,_Afg07,'Ark1'!$BT$285)) ->  | L149: =IF(J149="","","FEsv") ->  | AF149: 1 | AG149: =IF(J149<>"",J149,0) -> 0 | AI149: =IF(VLOOKUP($AF149,_Afg07,'Ark1'!$CK$285)="Hvede",$G149,0) -> 0 | AJ149: =IF(VLOOKUP($AF149,_Afg07,'Ark1'!$CK$285)="Hvede",$J149,0) -> 0 | AK149: =IF(VLOOKUP($AF149,_Afg07,'Ark1'!$CK$285)="Byg",$G149,0) -> 0 | AL149: =IF(VLOOKUP($AF149,_Afg07,'Ark1'!$CK$285)="Byg",$J149,0) -> 0 | AM149: =IF(VLOOKUP($AF149,_Afg07,'Ark1'!$CK$285)="Havre",$G149,0) -> 0 | AN149: =IF(VLOOKUP($AF149,_Afg07,'Ark1'!$CK$285)="Havre",$J149,0) -> 0 | AO149: =IF(VLOOKUP($AF149,_Afg07,'Ark1'!$CK$285)="Rug",$G149,0) -> 0 | AP149: =IF(VLOOKUP($AF149,_Afg07,'Ark1'!$CK$285)="Rug",$J149,0) -> 0 | AQ149: =IF(VLOOKUP($AF149,_Afg07,'Ark1'!$CK$285)="Triticale",$G149,0) -> 0 | AR149: =IF(VLOOKUP($AF149,_Afg07,'Ark1'!$CK$285)="Triticale",$J149,0) -> 0 | AS149: =IF(VLOOKUP($AF149,_Afg07,'Ark1'!$CK$285)="Majs",$G149,0) -> 0 | AT149: =IF(VLOOKUP($AF149,_Afg07,'Ark1'!$CK$285)="Majs",$J149,0) -> 0
AF150: Afgnr
C151: =IF(AF151>1,IF(DSUM(Base,2,$AF150:$AF151)=0,"",DSUM(Base,2,$AF150:$AF151)),"") ->  | D151: =IF(C151="","","ha") ->  | E151: =IF(ISERROR(G151/C151),"",G151/C151) ->  | F151: =IF(E151="","","hkg") ->  | G151: =IF(DSUM(Base,4,$AF150:$AF151)=0,"",DSUM(Base,4,$AF150:$AF151)) ->  | I151: =IF(G151="","","hkg") ->  | J151: =IF(ISERROR(G151*VLOOKUP(AF151,_Afg07,'Ark1'!$BT$285)),"",G151*VLOOKUP(AF151,_Afg07,'Ark1'!$BT$285)) ->  | L151: =IF(J151="","","FEsv") ->  | AF151: 1 | AG151: =IF(J151<>"",J151,0) -> 0 | AI151: =IF(VLOOKUP($AF151,_Afg07,'Ark1'!$CK$285)="Hvede",$G151,0) -> 0 | AJ151: =IF(VLOOKUP($AF151,_Afg07,'Ark1'!$CK$285)="Hvede",$J151,0) -> 0 | AK151: =IF(VLOOKUP($AF151,_Afg07,'Ark1'!$CK$285)="Byg",$G151,0) -> 0 | AL151: =IF(VLOOKUP($AF151,_Afg07,'Ark1'!$CK$285)="Byg",$J151,0) -> 0 | AM151: =IF(VLOOKUP($AF151,_Afg07,'Ark1'!$CK$285)="Havre",$G151,0) -> 0 | AN151: =IF(VLOOKUP($AF151,_Afg07,'Ark1'!$CK$285)="Havre",$J151,0) -> 0 | AO151: =IF(VLOOKUP($AF151,_Afg07,'Ark1'!$CK$285)="Rug",$G151,0) -> 0 | AP151: =IF(VLOOKUP($AF151,_Afg07,'Ark1'!$CK$285)="Rug",$J151,0) -> 0 | AQ151: =IF(VLOOKUP($AF151,_Afg07,'Ark1'!$CK$285)="Triticale",$G151,0) -> 0 | AR151: =IF(VLOOKUP($AF151,_Afg07,'Ark1'!$CK$285)="Triticale",$J151,0) -> 0 | AS151: =IF(VLOOKUP($AF151,_Afg07,'Ark1'!$CK$285)="Majs",$G151,0) -> 0 | AT151: =IF(VLOOKUP($AF151,_Afg07,'Ark1'!$CK$285)="Majs",$J151,0) -> 0
AF152: Afgnr
C153: =IF(AF153>1,IF(DSUM(Base,2,$AF152:$AF153)=0,"",DSUM(Base,2,$AF152:$AF153)),"") ->  | D153: =IF(C153="","","ha") ->  | E153: =IF(ISERROR(G153/C153),"",G153/C153) ->  | F153: =IF(E153="","","hkg") ->  | G153: =IF(DSUM(Base,4,$AF152:$AF153)=0,"",DSUM(Base,4,$AF152:$AF153)) ->  | I153: =IF(G153="","","hkg") ->  | J153: =IF(ISERROR(G153*VLOOKUP(AF153,_Afg07,'Ark1'!$BT$285)),"",G153*VLOOKUP(AF153,_Afg07,'Ark1'!$BT$285)) ->  | L153: =IF(J153="","","FEsv") ->  | AF153: 1 | AG153: =IF(J153<>"",J153,0) -> 0 | AI153: =IF(VLOOKUP($AF153,_Afg07,'Ark1'!$CK$285)="Hvede",$G153,0) -> 0 | AJ153: =IF(VLOOKUP($AF153,_Afg07,'Ark1'!$CK$285)="Hvede",$J153,0) -> 0 | AK153: =IF(VLOOKUP($AF153,_Afg07,'Ark1'!$CK$285)="Byg",$G153,0) -> 0 | AL153: =IF(VLOOKUP($AF153,_Afg07,'Ark1'!$CK$285)="Byg",$J153,0) -> 0 | AM153: =IF(VLOOKUP($AF153,_Afg07,'Ark1'!$CK$285)="Havre",$G153,0) -> 0 | AN153: =IF(VLOOKUP($AF153,_Afg07,'Ark1'!$CK$285)="Havre",$J153,0) -> 0 | AO153: =IF(VLOOKUP($AF153,_Afg07,'Ark1'!$CK$285)="Rug",$G153,0) -> 0 | AP153: =IF(VLOOKUP($AF153,_Afg07,'Ark1'!$CK$285)="Rug",$J153,0) -> 0 | AQ153: =IF(VLOOKUP($AF153,_Afg07,'Ark1'!$CK$285)="Triticale",$G153,0) -> 0 | AR153: =IF(VLOOKUP($AF153,_Afg07,'Ark1'!$CK$285)="Triticale",$J153,0) -> 0 | AS153: =IF(VLOOKUP($AF153,_Afg07,'Ark1'!$CK$285)="Majs",$G153,0) -> 0 | AT153: =IF(VLOOKUP($AF153,_Afg07,'Ark1'!$CK$285)="Majs",$J153,0) -> 0
AF154: Afgnr
C155: =IF(AF155>1,IF(DSUM(Base,2,$AF154:$AF155)=0,"",DSUM(Base,2,$AF154:$AF155)),"") ->  | D155: =IF(C155="","","ha") ->  | E155: =IF(ISERROR(G155/C155),"",G155/C155) ->  | F155: =IF(E155="","","hkg") ->  | G155: =IF(DSUM(Base,4,$AF154:$AF155)=0,"",DSUM(Base,4,$AF154:$AF155)) ->  | I155: =IF(G155="","","hkg") ->  | J155: =IF(ISERROR(G155*VLOOKUP(AF155,_Afg07,'Ark1'!$BT$285)),"",G155*VLOOKUP(AF155,_Afg07,'Ark1'!$BT$285)) ->  | L155: =IF(J155="","","FEsv") ->  | AF155: 1 | AG155: =IF(J155<>"",J155,0) -> 0 | AI155: =IF(VLOOKUP($AF155,_Afg07,'Ark1'!$CK$285)="Hvede",$G155,0) -> 0 | AJ155: =IF(VLOOKUP($AF155,_Afg07,'Ark1'!$CK$285)="Hvede",$J155,0) -> 0 | AK155: =IF(VLOOKUP($AF155,_Afg07,'Ark1'!$CK$285)="Byg",$G155,0) -> 0 | AL155: =IF(VLOOKUP($AF155,_Afg07,'Ark1'!$CK$285)="Byg",$J155,0) -> 0 | AM155: =IF(VLOOKUP($AF155,_Afg07,'Ark1'!$CK$285)="Havre",$G155,0) -> 0 | AN155: =IF(VLOOKUP($AF155,_Afg07,'Ark1'!$CK$285)="Havre",$J155,0) -> 0 | AO155: =IF(VLOOKUP($AF155,_Afg07,'Ark1'!$CK$285)="Rug",$G155,0) -> 0 | AP155: =IF(VLOOKUP($AF155,_Afg07,'Ark1'!$CK$285)="Rug",$J155,0) -> 0 | AQ155: =IF(VLOOKUP($AF155,_Afg07,'Ark1'!$CK$285)="Triticale",$G155,0) -> 0 | AR155: =IF(VLOOKUP($AF155,_Afg07,'Ark1'!$CK$285)="Triticale",$J155,0) -> 0 | AS155: =IF(VLOOKUP($AF155,_Afg07,'Ark1'!$CK$285)="Majs",$G155,0) -> 0 | AT155: =IF(VLOOKUP($AF155,_Afg07,'Ark1'!$CK$285)="Majs",$J155,0) -> 0
AF156: Afgnr
C157: =IF(AF157>1,IF(DSUM(Base,2,$AF156:$AF157)=0,"",DSUM(Base,2,$AF156:$AF157)),"") ->  | D157: =IF(C157="","","ha") ->  | E157: =IF(ISERROR(G157/C157),"",G157/C157) ->  | F157: =IF(E157="","","hkg") ->  | G157: =IF(DSUM(Base,4,$AF156:$AF157)=0,"",DSUM(Base,4,$AF156:$AF157)) ->  | I157: =IF(G157="","","hkg") ->  | J157: =IF(ISERROR(G157*VLOOKUP(AF157,_Afg07,'Ark1'!$BT$285)),"",G157*VLOOKUP(AF157,_Afg07,'Ark1'!$BT$285)) ->  | L157: =IF(J157="","","FEsv") ->  | AF157: 1 | AG157: =IF(J157<>"",J157,0) -> 0 | AI157: =IF(VLOOKUP($AF157,_Afg07,'Ark1'!$CK$285)="Hvede",$G157,0) -> 0 | AJ157: =IF(VLOOKUP($AF157,_Afg07,'Ark1'!$CK$285)="Hvede",$J157,0) -> 0 | AK157: =IF(VLOOKUP($AF157,_Afg07,'Ark1'!$CK$285)="Byg",$G157,0) -> 0 | AL157: =IF(VLOOKUP($AF157,_Afg07,'Ark1'!$CK$285)="Byg",$J157,0) -> 0 | AM157: =IF(VLOOKUP($AF157,_Afg07,'Ark1'!$CK$285)="Havre",$G157,0) -> 0 | AN157: =IF(VLOOKUP($AF157,_Afg07,'Ark1'!$CK$285)="Havre",$J157,0) -> 0 | AO157: =IF(VLOOKUP($AF157,_Afg07,'Ark1'!$CK$285)="Rug",$G157,0) -> 0 | AP157: =IF(VLOOKUP($AF157,_Afg07,'Ark1'!$CK$285)="Rug",$J157,0) -> 0 | AQ157: =IF(VLOOKUP($AF157,_Afg07,'Ark1'!$CK$285)="Triticale",$G157,0) -> 0 | AR157: =IF(VLOOKUP($AF157,_Afg07,'Ark1'!$CK$285)="Triticale",$J157,0) -> 0 | AS157: =IF(VLOOKUP($AF157,_Afg07,'Ark1'!$CK$285)="Majs",$G157,0) -> 0 | AT157: =IF(VLOOKUP($AF157,_Afg07,'Ark1'!$CK$285)="Majs",$J157,0) -> 0
AF158: Afgnr
C159: =IF(AF159>1,IF(DSUM(Base,2,$AF158:$AF159)=0,"",DSUM(Base,2,$AF158:$AF159)),"") ->  | D159: =IF(C159="","","ha") ->  | E159: =IF(ISERROR(G159/C159),"",G159/C159) ->  | F159: =IF(E159="","","hkg") ->  | G159: =IF(DSUM(Base,4,$AF158:$AF159)=0,"",DSUM(Base,4,$AF158:$AF159)) ->  | I159: =IF(G159="","","hkg") ->  | J159: =IF(ISERROR(G159*VLOOKUP(AF159,_Afg07,'Ark1'!$BT$285)),"",G159*VLOOKUP(AF159,_Afg07,'Ark1'!$BT$285)) ->  | L159: =IF(J159="","","FEsv") ->  | AF159: 1 | AG159: =IF(J159<>"",J159,0) -> 0 | AI159: =IF(VLOOKUP($AF159,_Afg07,'Ark1'!$CK$285)="Hvede",$G159,0) -> 0 | AJ159: =IF(VLOOKUP($AF159,_Afg07,'Ark1'!$CK$285)="Hvede",$J159,0) -> 0 | AK159: =IF(VLOOKUP($AF159,_Afg07,'Ark1'!$CK$285)="Byg",$G159,0) -> 0 | AL159: =IF(VLOOKUP($AF159,_Afg07,'Ark1'!$CK$285)="Byg",$J159,0) -> 0 | AM159: =IF(VLOOKUP($AF159,_Afg07,'Ark1'!$CK$285)="Havre",$G159,0) -> 0 | AN159: =IF(VLOOKUP($AF159,_Afg07,'Ark1'!$CK$285)="Havre",$J159,0) -> 0 | AO159: =IF(VLOOKUP($AF159,_Afg07,'Ark1'!$CK$285)="Rug",$G159,0) -> 0 | AP159: =IF(VLOOKUP($AF159,_Afg07,'Ark1'!$CK$285)="Rug",$J159,0) -> 0 | AQ159: =IF(VLOOKUP($AF159,_Afg07,'Ark1'!$CK$285)="Triticale",$G159,0) -> 0 | AR159: =IF(VLOOKUP($AF159,_Afg07,'Ark1'!$CK$285)="Triticale",$J159,0) -> 0 | AS159: =IF(VLOOKUP($AF159,_Afg07,'Ark1'!$CK$285)="Majs",$G159,0) -> 0 | AT159: =IF(VLOOKUP($AF159,_Afg07,'Ark1'!$CK$285)="Majs",$J159,0) -> 0
AF160: Afgnr
C161: =IF(AF161>1,IF(DSUM(Base,2,$AF160:$AF161)=0,"",DSUM(Base,2,$AF160:$AF161)),"") ->  | D161: =IF(C161="","","ha") ->  | E161: =IF(ISERROR(G161/C161),"",G161/C161) ->  | F161: =IF(E161="","","hkg") ->  | G161: =IF(DSUM(Base,4,$AF160:$AF161)=0,"",DSUM(Base,4,$AF160:$AF161)) ->  | I161: =IF(G161="","","hkg") ->  | J161: =IF(ISERROR(G161*VLOOKUP(AF161,_Afg07,'Ark1'!$BT$285)),"",G161*VLOOKUP(AF161,_Afg07,'Ark1'!$BT$285)) ->  | L161: =IF(J161="","","FEsv") ->  | AF161: 1 | AG161: =IF(J161<>"",J161,0) -> 0 | AI161: =IF(VLOOKUP($AF161,_Afg07,'Ark1'!$CK$285)="Hvede",$G161,0) -> 0 | AJ161: =IF(VLOOKUP($AF161,_Afg07,'Ark1'!$CK$285)="Hvede",$J161,0) -> 0 | AK161: =IF(VLOOKUP($AF161,_Afg07,'Ark1'!$CK$285)="Byg",$G161,0) -> 0 | AL161: =IF(VLOOKUP($AF161,_Afg07,'Ark1'!$CK$285)="Byg",$J161,0) -> 0 | AM161: =IF(VLOOKUP($AF161,_Afg07,'Ark1'!$CK$285)="Havre",$G161,0) -> 0 | AN161: =IF(VLOOKUP($AF161,_Afg07,'Ark1'!$CK$285)="Havre",$J161,0) -> 0 | AO161: =IF(VLOOKUP($AF161,_Afg07,'Ark1'!$CK$285)="Rug",$G161,0) -> 0 | AP161: =IF(VLOOKUP($AF161,_Afg07,'Ark1'!$CK$285)="Rug",$J161,0) -> 0 | AQ161: =IF(VLOOKUP($AF161,_Afg07,'Ark1'!$CK$285)="Triticale",$G161,0) -> 0 | AR161: =IF(VLOOKUP($AF161,_Afg07,'Ark1'!$CK$285)="Triticale",$J161,0) -> 0 | AS161: =IF(VLOOKUP($AF161,_Afg07,'Ark1'!$CK$285)="Majs",$G161,0) -> 0 | AT161: =IF(VLOOKUP($AF161,_Afg07,'Ark1'!$CK$285)="Majs",$J161,0) -> 0
AF162: I alt | AG162: =AG147+AG149+AG151+AG153+AG155+AG157+AG159+AG161 -> 0 | AI162: =AI147+AI149+AI151+AI153+AI155+AI157+AI159+AI161 -> 0 | AJ162: 0 | AK162: 0 | AL162: 0 | AM162: 0 | AN162: 0 | AO162: 0 | AP162: 0 | AQ162: 0 | AR162: 0 | AS162: 0 | AT162: 0
A164: Foderbehov | R164: Andel i kornration (vægtpct.) | AJ164: Hkg af hver kornart
B166: Besætning | J166: Foderforbrug | N166: Kornandel af Fesv | R166: Byg | T166: Havre | V166: Rug | X166: Triticale | Z166: Majs | AB166: Hvede | AF166: Foderforbrug_FE | AG166: Korn-FE | AH166: Gns FE/kg korn | AI166: hkg korn | AJ166: Byg | AK166: Havre | AL166: Rug | AM166: Triticale | AN166: Majs | AO166: Hvede
B168: Søer m. smågrise | D168: årssøer | J168: 1482 | K168: FE | M168: FE | N168: 81 | O168: % | Q168: % | R168: 50 | S168: % | U168: % | W168: % | Y168: % | AA168: % | AB168: =100-R168-T168-V168-X168-Z168 -> 50 | AC168: % | AF168: =C168*IF(L168<>"",L168,J168) -> 0 | AG168: =AF168*IF(P168<>"",P168,N168)*0.01 -> 0 | AH168: =R168*0.01*102+T168*0.01*87+V168*0.01*110+X168*0.01*113+Z168*0.01*122+AB168*0.01*115 -> 108.5 | AI168: =AG168/AH168 -> 0 | AJ168: =$AI168*R168*0.01 -> 0 | AK168: =$AI168*T168*0.01 -> 0 | AL168: =$AI168*V168*0.01 -> 0 | AM168: =$AI168*X168*0.01 -> 0 | AN168: =$AI168*Z168*0.01 -> 0 | AO168: =$AI168*AB168*0.01 -> 0
B170: Smågrise | D170: stk. | E170: Fra | F170: 7 | G170: kg Til | H170: 32 | I170: kg | J170: 1.98 | K170: Fesv | M170: Fesv | N170: 68 | O170: % | Q170: % | R170: 22 | S170: % | U170: % | W170: % | Y170: % | AA170: % | AB170: =100-R170-T170-V170-X170-Z170 -> 78 | AC170: % | AF170: =C170*(H170-F170)*IF(L170<>"",L170,J170) -> 0 | AG170: =AF170*IF(P170<>"",P170,N170)*0.01 -> 0 | AH170: =R170*0.01*102+T170*0.01*87+V170*0.01*110+X170*0.01*113+Z170*0.01*122+AB170*0.01*115 -> 112.14 | AI170: =AG170/AH170 -> 0 | AJ170: =$AI170*R170*0.01 -> 0 | AK170: =$AI170*T170*0.01 -> 0 | AL170: =$AI170*V170*0.01 -> 0 | AM170: =$AI170*X170*0.01 -> 0 | AN170: =$AI170*Z170*0.01 -> 0 | AO170: =$AI170*AB170*0.01 -> 0
B172: Slagtesvin | D172: stk. | E172: Fra | F172: 32 | G172: kg Til | H172: 107 | I172: kg | J172: 2.83 | K172: Fesv | M172: Fesv | N172: 78 | O172: % | Q172: % | R172: 25 | S172: % | U172: % | W172: % | Y172: % | AA172: % | AB172: =100-R172-T172-V172-X172-Z172 -> 75 | AC172: % | AF172: =C172*(H172-F172)*IF(L172<>"",L172,J172) -> 0 | AG172: =AF172*IF(P172<>"",P172,N172)*0.01 -> 0 | AH172: =R172*0.01*102+T172*0.01*87+V172*0.01*110+X172*0.01*113+Z172*0.01*122+AB172*0.01*115 -> 111.75 | AI172: =AG172/AH172 -> 0 | AJ172: =$AI172*R172*0.01 -> 0 | AK172: =$AI172*T172*0.01 -> 0 | AL172: =$AI172*V172*0.01 -> 0 | AM172: =$AI172*X172*0.01 -> 0 | AN172: =$AI172*Z172*0.01 -> 0 | AO172: =$AI172*AB172*0.01 -> 0
AI174: Sum | AJ174: =AJ168+AJ170+AJ172 -> 0 | AK174: 0 | AL174: 0 | AM174: 0 | AN174: 0 | AO174: 0
A176: Udskrift
A177: ="Sædskifteplan" -> Sædskifteplan
A179: Delsædskifte 1
A181: Marker/ejendom: | C181: =IF(C8<>"",C8,"") -> 
A183: Areal sædskifte 1: | C183: =C12 -> 0 | D183: =IF(C183="","","ha") -> ha | F183: =VLOOKUP(JBnr2,Jordtyper,2) -> JB 5-6
A186: 1 | B186: =IF(AF16>1,VLOOKUP(AF16,_Afg07,2),"") ->  | C186: =IF(AN16>0,AN16,"") ->  | D186: =IF(C186="","","ha") ->  | E186: =IF(AO16>0,AO16,"") ->  | F186: =IF(E186="","","hkg") ->  | H186: =IF(L16="","",L16) -> 
B188: =IF(AF18>1,VLOOKUP(AF18,_Afg07,2),"") ->  | C188: =IF(AN18>0,AN18,"") ->  | D188: =IF(C188="","","ha") ->  | E188: =IF(AO18>0,AO18,"") ->  | F188: =IF(E188="","","hkg") -> 
A191: 2 | B191: =IF(AF21>1,VLOOKUP(AF21,_Afg07,2),"") ->  | C191: =IF(AN21>0,AN21,"") ->  | D191: =IF(C191="","","ha") ->  | E191: =IF(AO21>0,AO21,"") ->  | F191: =IF(E191="","","hkg") ->  | H191: =IF(L21="","",L21) -> 
B193: =IF(AF23>1,VLOOKUP(AF23,_Afg07,2),"") ->  | C193: =IF(AN23>0,AN23,"") ->  | D193: =IF(C193="","","ha") ->  | E193: =IF(AO23>0,AO23,"") ->  | F193: =IF(E193="","","hkg") -> 
A196: 3 | B196: =IF(AF26>1,VLOOKUP(AF26,_Afg07,2),"") ->  | C196: =IF(AN26>0,AN26,"") ->  | D196: =IF(C196="","","ha") ->  | E196: =IF(AO26>0,AO26,"") ->  | F196: =IF(E196="","","hkg") ->  | H196: =IF(L26="","",L26) -> 
B198: =IF(AF28>1,VLOOKUP(AF28,_Afg07,2),"") ->  | C198: =IF(AN28>0,AN28,"") ->  | D198: =IF(C198="","","ha") ->  | E198: =IF(AO28>0,AO28,"") ->  | F198: =IF(E198="","","hkg") -> 
A201: 4 | B201: =IF(AF31>1,VLOOKUP(AF31,_Afg07,2),"") ->  | C201: =IF(AN31>0,AN31,"") ->  | D201: =IF(C201="","","ha") ->  | E201: =IF(AO31>0,AO31,"") ->  | F201: =IF(E201="","","hkg") ->  | H201: =IF(L31="","",L31) -> 
B203: =IF(AF33>1,VLOOKUP(AF33,_Afg07,2),"") ->  | C203: =IF(AN33>0,AN33,"") ->  | D203: =IF(C203="","","ha") ->  | E203: =IF(AO33>0,AO33,"") ->  | F203: =IF(E203="","","hkg") -> 
A206: 5 | B206: =IF(AF36>1,VLOOKUP(AF36,_Afg07,2),"") ->  | C206: =IF(AN36>0,AN36,"") ->  | D206: =IF(C206="","","ha") ->  | E206: =IF(AO36>0,AO36,"") ->  | F206: =IF(E206="","","hkg") ->  | H206: =IF(L36="","",L36) -> 
B208: =IF(AF38>1,VLOOKUP(AF38,_Afg07,2),"") ->  | C208: =IF(AN38>0,AN38,"") ->  | D208: =IF(C208="","","ha") ->  | E208: =IF(AO38>0,AO38,"") ->  | F208: =IF(E208="","","hkg") -> 
A211: 6 | B211: =IF(AF41>1,VLOOKUP(AF41,_Afg07,2),"") ->  | C211: =IF(AN41>0,AN41,"") ->  | D211: =IF(C211="","","ha") ->  | E211: =IF(AO41>0,AO41,"") ->  | F211: =IF(E211="","","hkg") ->  | H211: =IF(L41="","",L41) -> 
B213: =IF(AF43>1,VLOOKUP(AF43,_Afg07,2),"") ->  | C213: =IF(AN43>0,AN43,"") ->  | D213: =IF(C213="","","ha") ->  | E213: =IF(AO43>0,AO43,"") ->  | F213: =IF(E213="","","hkg") -> 
A216: 7 | B216: =IF(AF46>1,VLOOKUP(AF46,_Afg07,2),"") ->  | C216: =IF(AN46>0,AN46,"") ->  | D216: =IF(C216="","","ha") ->  | E216: =IF(AO46>0,AO46,"") ->  | F216: =IF(E216="","","hkg") ->  | H216: =IF(L46="","",L46) -> 
B218: =IF(AF48>1,VLOOKUP(AF48,_Afg07,2),"") ->  | C218: =IF(AN48>0,AN48,"") ->  | D218: =IF(C218="","","ha") ->  | E218: =IF(AO48>0,AO48,"") ->  | F218: =IF(E218="","","hkg") -> 
A222: Delsædskifte 2
A224: Marker/ejendom: | C224: =IF(C54<>"",C54,"") -> 
A226: Areal sædskifte 2: | C226: =C58 -> 0 | D226: =IF(C226="","","ha") -> ha | F226: =VLOOKUP(JBnr3,Jordtyper,2) -> JB 5-6
A229: 1 | B229: =IF(AF62>1,VLOOKUP(AF62,_Afg07,2),"") ->  | C229: =IF(AN62>0,AN62,"") ->  | D229: =IF(C229="","","ha") ->  | E229: =IF(AO62>0,AO62,"") ->  | F229: =IF(E229="","","hkg") ->  | H229: =IF(L62="","",L62) -> 
B231: =IF(AF64>1,VLOOKUP(AF64,_Afg07,2),"") ->  | C231: =IF(AN64>0,AN64,"") ->  | D231: =IF(C231="","","ha") ->  | E231: =IF(AO64>0,AO64,"") ->  | F231: =IF(E231="","","hkg") -> 
A234: 2 | B234: =IF(AF67>1,VLOOKUP(AF67,_Afg07,2),"") ->  | C234: =IF(AN67>0,AN67,"") ->  | D234: =IF(C234="","","ha") ->  | E234: =IF(AO67>0,AO67,"") ->  | F234: =IF(E234="","","hkg") ->  | H234: =IF(L67="","",L67) -> 
B236: =IF(AF69>1,VLOOKUP(AF69,_Afg07,2),"") ->  | C236: =IF(AN69>0,AN69,"") ->  | D236: =IF(C236="","","ha") ->  | E236: =IF(AO69>0,AO69,"") ->  | F236: =IF(E236="","","hkg") -> 
A239: 3 | B239: =IF(AF72>1,VLOOKUP(AF72,_Afg07,2),"") ->  | C239: =IF(AN72>0,AN72,"") ->  | D239: =IF(C239="","","ha") ->  | E239: =IF(AO72>0,AO72,"") ->  | F239: =IF(E239="","","hkg") ->  | H239: =IF(L72="","",L72) -> 
B241: =IF(AF74>1,VLOOKUP(AF74,_Afg07,2),"") ->  | C241: =IF(AN74>0,AN74,"") ->  | D241: =IF(C241="","","ha") ->  | E241: =IF(AO74>0,AO74,"") ->  | F241: =IF(E241="","","hkg") -> 
A244: 4 | B244: =IF(AF77>1,VLOOKUP(AF77,_Afg07,2),"") ->  | C244: =IF(AN77>0,AN77,"") ->  | D244: =IF(C244="","","ha") ->  | E244: =IF(AO77>0,AO77,"") ->  | F244: =IF(E244="","","hkg") ->  | H244: =IF(L77="","",L77) -> 
B246: =IF(AF79>1,VLOOKUP(AF79,_Afg07,2),"") ->  | C246: =IF(AN79>0,AN79,"") ->  | D246: =IF(C246="","","ha") ->  | E246: =IF(AO79>0,AO79,"") ->  | F246: =IF(E246="","","hkg") -> 
A249: 5 | B249: =IF(AF82>1,VLOOKUP(AF82,_Afg07,2),"") ->  | C249: =IF(AN82>0,AN82,"") ->  | D249: =IF(C249="","","ha") ->  | E249: =IF(AO82>0,AO82,"") ->  | F249: =IF(E249="","","hkg") ->  | H249: =IF(L82="","",L82) -> 
B251: =IF(AF84>1,VLOOKUP(AF84,_Afg07,2),"") ->  | C251: =IF(AN84>0,AN84,"") ->  | D251: =IF(C251="","","ha") ->  | E251: =IF(AO84>0,AO84,"") ->  | F251: =IF(E251="","","hkg") -> 
A254: 6 | B254: =IF(AF87>1,VLOOKUP(AF87,_Afg07,2),"") ->  | C254: =IF(AN87>0,AN87,"") ->  | D254: =IF(C254="","","ha") ->  | E254: =IF(AO87>0,AO87,"") ->  | F254: =IF(E254="","","hkg") ->  | H254: =IF(L87="","",L87) -> 
B256: =IF(AF89>1,VLOOKUP(AF89,_Afg07,2),"") ->  | C256: =IF(AN89>0,AN89,"") ->  | D256: =IF(C256="","","ha") ->  | E256: =IF(AO89>0,AO89,"") ->  | F256: =IF(E256="","","hkg") -> 
A259: 7 | B259: =IF(AF92>1,VLOOKUP(AF92,_Afg07,2),"") ->  | C259: =IF(AN92>0,AN92,"") ->  | D259: =IF(C259="","","ha") ->  | E259: =IF(AO92>0,AO92,"") ->  | F259: =IF(E259="","","hkg") ->  | H259: =IF(L92="","",L92) -> 
B261: =IF(AF94>1,VLOOKUP(AF94,_Afg07,2),"") ->  | C261: =IF(AN94>0,AN94,"") ->  | D261: =IF(C261="","","ha") ->  | E261: =IF(AO94>0,AO94,"") ->  | F261: =IF(E261="","","hkg") -> 
A263: ="Sædskifteplan - fortsat" -> Sædskifteplan - fortsat
A265: Delsædskifte 3
A267: Marker/ejendom: | C267: =IF(C100<>"",C100,"") -> 
A269: Areal sædskifte 3: | C269: =C104 -> 0 | D269: =IF(C269="","","ha") -> ha | F269: =VLOOKUP(JBnr4,Jordtyper,2) -> JB 5-6
A272: 1 | B272: =IF(AF108>1,VLOOKUP(AF108,_Afg07,2),"") ->  | C272: =IF(AN108>0,AN108,"") ->  | D272: =IF(C272="","","ha") ->  | E272: =IF(AO108>0,AO108,"") ->  | F272: =IF(E272="","","hkg") ->  | H272: =IF(L108="","",L108) -> 
B274: =IF(AF110>1,VLOOKUP(AF110,_Afg07,2),"") ->  | C274: =IF(AN110>0,AN110,"") ->  | D274: =IF(C274="","","ha") ->  | E274: =IF(AO110>0,AO110,"") ->  | F274: =IF(E274="","","hkg") -> 
A277: 2 | B277: =IF(AF113>1,VLOOKUP(AF113,_Afg07,2),"") ->  | C277: =IF(AN113>0,AN113,"") ->  | D277: =IF(C277="","","ha") ->  | E277: =IF(AO113>0,AO113,"") ->  | F277: =IF(E277="","","hkg") ->  | H277: =IF(L113="","",L113) -> 
B279: =IF(AF115>1,VLOOKUP(AF115,_Afg07,2),"") ->  | C279: =IF(AN115>0,AN115,"") ->  | D279: =IF(C279="","","ha") ->  | E279: =IF(AO115>0,AO115,"") ->  | F279: =IF(E279="","","hkg") -> 
A282: 3 | B282: =IF(AF118>1,VLOOKUP(AF118,_Afg07,2),"") ->  | C282: =IF(AN118>0,AN118,"") ->  | D282: =IF(C282="","","ha") ->  | E282: =IF(AO118>0,AO118,"") ->  | F282: =IF(E282="","","hkg") ->  | H282: =IF(L118="","",L118) -> 
B284: =IF(AF120>1,VLOOKUP(AF120,_Afg07,2),"") ->  | C284: =IF(AN120>0,AN120,"") ->  | D284: =IF(C284="","","ha") ->  | E284: =IF(AO120>0,AO120,"") ->  | F284: =IF(E284="","","hkg") -> 
A287: 4 | B287: =IF(AF123>1,VLOOKUP(AF123,_Afg07,2),"") ->  | C287: =IF(AN123>0,AN123,"") ->  | D287: =IF(C287="","","ha") ->  | E287: =IF(AO123>0,AO123,"") ->  | F287: =IF(E287="","","hkg") ->  | H287: =IF(L123="","",L123) -> 
B289: =IF(AF125>1,VLOOKUP(AF125,_Afg07,2),"") ->  | C289: =IF(AN125>0,AN125,"") ->  | D289: =IF(C289="","","ha") ->  | E289: =IF(AO125>0,AO125,"") ->  | F289: =IF(E289="","","hkg") -> 
... 37 more rows

Sheet Ark4 (hidden)
